Publisher Label,Publisher URI,"Directorate code","Directorate","Service code","Service","Revenue or capital code","Revenue capital","Cost centre","Cost centre description","Bvsub Category","Bvsub description","Bvsum code","Bvsum description","Account code","Account description","Transaction No","Period","Transaction Date","Amount","Classification code","Classification description","Supplier ID","Supplier description","Company registration number","Company registration number Uri","VAT registration number"
"London Borough of Redbridge","http://opendatacommunities.org/doc/london-borough-council/redbridge","9BNONBVO","Outside the BVACOP Objective Structure","9CNONBVO","Outside the BVACOP Objective Structure","REV","Revenue","R0026","Collection Fund","05-THIRD","Third Party Payments","05E","Government departments","6752","GLA Council Tax � Precepts","60441854","202107",01/10/2020 00:00:00,3087091,"48583","Local Government","REDACTED DATA","GREATER LONDON AUTHORITY","",,""
"London Borough of Redbridge","http://opendatacommunities.org/doc/london-borough-council/redbridge","2BCULTUR&REL","Cultural & Related Services","2CREC&SPORT","Recreation & Sport","REV","Revenue","R6999","Leisure Client","05-THIRD","Third Party Payments","05H","Private contractors","6915","Contractor Payments","60442455","202107",13/10/2020 00:00:00,2068361,"48583","Local Government","REDACTED DATA","VISION REDBRIDGE CULTURE AND LEISURE","6032714","http://opencorporates.com/companies/gb/6032714","906429031"
"London Borough of Redbridge","http://opendatacommunities.org/doc/london-borough-council/redbridge","9BNONBVO","Outside the BVACOP Objective Structure","9CNONBVO","Outside the BVACOP Objective Structure","BAL","Balance Sheet","B0132","Better Care Fund","99-NONBV","Capital, Balance Sheet and Control","50Q","Other Balances & Reserves","9912","Personal Account - Creditor","60441693","202107",29/09/2020 00:00:00,977068,"42200","Health Authorities","REDACTED DATA","REDBRIDGE CLINICAL COMMISSIONING GROUP","",,"654446033"
"London Borough of Redbridge","http://opendatacommunities.org/doc/london-borough-council/redbridge","3BINDSCHFUND","Individual School Funds","3CDELSECOND","Delegated Individual Secondary School Budgets","REV","Revenue","R3618","Seven Kings High School","05-THIRD","Third Party Payments","05G","Other establishments","7451","LMS Bank Accounts Pilot","3613135","202107",16/10/2020 00:00:00,911454.21,"67981","Schools - Local Authority","REDACTED DATA","SEVEN KINGS HIGH SCHOOL PAYROLL A/C","",,""
"London Borough of Redbridge","http://opendatacommunities.org/doc/london-borough-council/redbridge","3BINDSCHFUND","Individual School Funds","3CDELSECOND","Delegated Individual Secondary School Budgets","REV","Revenue","R3628","Woodbridge High School and Language College","05-THIRD","Third Party Payments","05G","Other establishments","7451","LMS Bank Accounts Pilot","3613137","202107",16/10/2020 00:00:00,750000,"67981","Schools - Local Authority","REDACTED DATA","WOODBRIDGE HIGH SCHOOL PAYROLL A/C","",,""
"London Borough of Redbridge","http://opendatacommunities.org/doc/london-borough-council/redbridge","3BINDSCHFUND","Individual School Funds","3CDELSECOND","Delegated Individual Secondary School Budgets","REV","Revenue","R3634","Oaks Park High School","05-THIRD","Third Party Payments","05G","Other establishments","7451","LMS Bank Accounts Pilot","3613133","202107",16/10/2020 00:00:00,680000,"67981","Schools - Local Authority","REDACTED DATA","OAKS PARK HIGH SCHOOL ACCOUNT NO2","",,""
"London Borough of Redbridge","http://opendatacommunities.org/doc/london-borough-council/redbridge","9BNONBVO","Outside the BVACOP Objective Structure","9CNONBVO","Outside the BVACOP Objective Structure","CAP","Capital","C3102","Ashton Playing Field","99-NONBV","Capital, Balance Sheet and Control","50E","Capital - Contract Payments","9150","Main Contract","60441389","202107",30/09/2020 00:00:00,541696.46,"21555","Construction Contractors - General","REDACTED DATA","Longley Group Ltd","7633349","http://opencorporates.com/companies/gb/7633349","165771972"
"London Borough of Redbridge","http://opendatacommunities.org/doc/london-borough-council/redbridge","3BINDSCHFUND","Individual School Funds","3CDELSECOND","Delegated Individual Secondary School Budgets","REV","Revenue","R3624","Valentines High School","05-THIRD","Third Party Payments","05G","Other establishments","7451","LMS Bank Accounts Pilot","3613136","202107",16/10/2020 00:00:00,500000,"67981","Schools - Local Authority","REDACTED DATA","VALENTINES HIGH SCHOOL PAYROLL A/C","",,""
"London Borough of Redbridge","http://opendatacommunities.org/doc/london-borough-council/redbridge","9BNONBVO","Outside the BVACOP Objective Structure","9CNONBVO","Outside the BVACOP Objective Structure","REV","Revenue","R0095","Insurance Contribution","04-SUPPLIES","Supplies And Services","04K","Miscellaneous expenses","6200","Insurance Premiums - General","60443456","202107",05/08/2020 00:00:00,478720.15,"1630","Actuaries","REDACTED DATA","JLT SPECIALITY LTD","1536540","http://opencorporates.com/companies/gb/1536540","244232196"
"London Borough of Redbridge","http://opendatacommunities.org/doc/london-borough-council/redbridge","3BINDSCHFUND","Individual School Funds","3CDELSECOND","Delegated Individual Secondary School Budgets","REV","Revenue","R3632","King Solomon High School","05-THIRD","Third Party Payments","05G","Other establishments","7451","LMS Bank Accounts Pilot","3613141","202107",16/10/2020 00:00:00,476340,"67981","Schools - Local Authority","REDACTED DATA","KING SOLOMON HIGH SCHOOL A/C","",,""
"London Borough of Redbridge","http://opendatacommunities.org/doc/london-borough-council/redbridge","9BNONBVO","Outside the BVACOP Objective Structure","9CNONBVO","Outside the BVACOP Objective Structure","REV","Revenue","R5131","Repairs and Maintenance - MFS","02-PREMISES","Premises","02A","Repairs, alteration and maintenance of buildings","3027","Miscellaneous Maintenance","70115619","202107",06/10/2020 00:00:00,388997.9,"61961","Property Maintenance and Repairs","REDACTED DATA","MORRISONS FACILITIES SERVICES LTD","SC120550","http://opencorporates.com/companies/gb/SC120550","297280913"
"London Borough of Redbridge","http://opendatacommunities.org/doc/london-borough-council/redbridge","9BNONBVO","Outside the BVACOP Objective Structure","9CNONBVO","Outside the BVACOP Objective Structure","CAP","Capital","C4331","Uphall Kitchen Diner - feasibility","99-NONBV","Capital, Balance Sheet and Control","50E","Capital - Contract Payments","9150","Main Contract","60439978","202107",10/09/2020 00:00:00,368988.2,"11400","Building Services","REDACTED DATA","ENGIE REGENERATION LIMITED","1738371","http://opencorporates.com/companies/gb/1738371","915771313"
"London Borough of Redbridge","http://opendatacommunities.org/doc/london-borough-council/redbridge","9BNONBVO","Outside the BVACOP Objective Structure","9CNONBVO","Outside the BVACOP Objective Structure","CAP","Capital","C4331","Uphall Kitchen Diner - feasibility","99-NONBV","Capital, Balance Sheet and Control","50E","Capital - Contract Payments","9150","Main Contract","60442091","202107",08/10/2020 00:00:00,331685.75,"11400","Building Services","REDACTED DATA","ENGIE REGENERATION LIMITED","1738371","http://opencorporates.com/companies/gb/1738371","915771313"
"London Borough of Redbridge","http://opendatacommunities.org/doc/london-borough-council/redbridge","3BLEACENTFND","LEA Centrally Held School Funds","3CNONSCH","Non Schools","REV","Revenue","R3323","Little Heath Foundation School","05-THIRD","Third Party Payments","05G","Other establishments","7451","LMS Bank Accounts Pilot","3613140","202107",16/10/2020 00:00:00,372813.76,"67981","Schools - Local Authority","REDACTED DATA","LITTLE HEATH SCHOOL A/C","",,""
"London Borough of Redbridge","http://opendatacommunities.org/doc/london-borough-council/redbridge","3BLEACENTFND","LEA Centrally Held School Funds","3CNONSCH","Non Schools","REV","Revenue","R3321","Hatton School","05-THIRD","Third Party Payments","05G","Other establishments","7451","LMS Bank Accounts Pilot","3613129","202107",16/10/2020 00:00:00,340000,"67981","Schools - Local Authority","REDACTED DATA","HATTON SCHOOL PAYROLL A/C","",,""
"London Borough of Redbridge","http://opendatacommunities.org/doc/london-borough-council/redbridge","3BINDSCHFUND","Individual School Funds","3CDELPRIMARY","Delegated Individual Primary School Budgets","REV","Revenue","R3591","Woodlands Primary School","05-THIRD","Third Party Payments","05G","Other establishments","7451","LMS Bank Accounts Pilot","3613138","202107",16/10/2020 00:00:00,300630.84,"67981","Schools - Local Authority","REDACTED DATA","WOODLANDS PRIMARY SCHOOL - PAYROLL ACCOUNT","",,"24654647"
"London Borough of Redbridge","http://opendatacommunities.org/doc/london-borough-council/redbridge","3BINDSCHFUND","Individual School Funds","3CDELPRIMARY","Delegated Individual Primary School Budgets","REV","Revenue","R3518","Cranbrook Primary School","05-THIRD","Third Party Payments","05G","Other establishments","7451","LMS Bank Accounts Pilot","3613124","202107",16/10/2020 00:00:00,281612.44,"67981","Schools - Local Authority","REDACTED DATA","CRANBROOK PRIMARY SCHOOL ACCOUNT 2","",,""
"London Borough of Redbridge","http://opendatacommunities.org/doc/london-borough-council/redbridge","1BCENTRALPUB","Central Services to the Public","1CLOCALTAXCO","Local Tax Collection","REV","Revenue","R5760","Local Tax Collection","01-EMPLOYEES","Employees","01A","Direct employee expenses","4","Agency Staff - Pay","3610809","202107",07/10/2020 00:00:00,1063.1,"31230","Employment and Recruitment Agencies","REDACTED DATA","MATRIX SCM LTD","2227962","http://opencorporates.com/companies/gb/2227962","249573468"
"London Borough of Redbridge","http://opendatacommunities.org/doc/london-borough-council/redbridge","1BCENTRALPUB","Central Services to the Public","1CLOCALTAXCO","Local Tax Collection","REV","Revenue","R5760","Local Tax Collection","01-EMPLOYEES","Employees","01A","Direct employee expenses","4","Agency Staff - Pay","3610809","202107",07/10/2020 00:00:00,1147.03,"31230","Employment and Recruitment Agencies","REDACTED DATA","MATRIX SCM LTD","2227962","http://opencorporates.com/companies/gb/2227962","249573468"
"London Borough of Redbridge","http://opendatacommunities.org/doc/london-borough-council/redbridge","1BCENTRALPUB","Central Services to the Public","1CLOCALTAXCO","Local Tax Collection","REV","Revenue","R5760","Local Tax Collection","01-EMPLOYEES","Employees","01A","Direct employee expenses","4","Agency Staff - Pay","3610809","202107",07/10/2020 00:00:00,971.15,"31230","Employment and Recruitment Agencies","REDACTED DATA","MATRIX SCM LTD","2227962","http://opencorporates.com/companies/gb/2227962","249573468"
"London Borough of Redbridge","http://opendatacommunities.org/doc/london-borough-council/redbridge","1BOTHEROPI&E","Other Operating Income & Expenditure","1CTRADSURDEF","Trading Account Surpluses & Deficits","REV","Revenue","R7207","Capital Team Staffing","01-EMPLOYEES","Employees","01A","Direct employee expenses","4","Agency Staff - Pay","3610809","202107",07/10/2020 00:00:00,4482.2,"31230","Employment and Recruitment Agencies","REDACTED DATA","MATRIX SCM LTD","2227962","http://opencorporates.com/companies/gb/2227962","249573468"
"London Borough of Redbridge","http://opendatacommunities.org/doc/london-borough-council/redbridge","1BOTHEROPI&E","Other Operating Income & Expenditure","1CTRADSURDEF","Trading Account Surpluses & Deficits","REV","Revenue","R7207","Capital Team Staffing","01-EMPLOYEES","Employees","01A","Direct employee expenses","4","Agency Staff - Pay","3610809","202107",07/10/2020 00:00:00,2814.9,"31230","Employment and Recruitment Agencies","REDACTED DATA","MATRIX SCM LTD","2227962","http://opencorporates.com/companies/gb/2227962","249573468"
"London Borough of Redbridge","http://opendatacommunities.org/doc/london-borough-council/redbridge","1BOTHEROPI&E","Other Operating Income & Expenditure","1CTRADSURDEF","Trading Account Surpluses & Deficits","REV","Revenue","R7207","Capital Team Staffing","01-EMPLOYEES","Employees","01A","Direct employee expenses","4","Agency Staff - Pay","3610809","202107",07/10/2020 00:00:00,2814.9,"31230","Employment and Recruitment Agencies","REDACTED DATA","MATRIX SCM LTD","2227962","http://opencorporates.com/companies/gb/2227962","249573468"
"London Borough of Redbridge","http://opendatacommunities.org/doc/london-borough-council/redbridge","1BOTHEROPI&E","Other Operating Income & Expenditure","1CTRADSURDEF","Trading Account Surpluses & Deficits","REV","Revenue","R7207","Capital Team Staffing","01-EMPLOYEES","Employees","01A","Direct employee expenses","4","Agency Staff - Pay","3610809","202107",07/10/2020 00:00:00,1967.85,"31230","Employment and Recruitment Agencies","REDACTED DATA","MATRIX SCM LTD","2227962","http://opencorporates.com/companies/gb/2227962","249573468"
"London Borough of Redbridge","http://opendatacommunities.org/doc/london-borough-council/redbridge","1BOTHEROPI&E","Other Operating Income & Expenditure","1CTRADSURDEF","Trading Account Surpluses & Deficits","REV","Revenue","R9152","Operational Accounting","01-EMPLOYEES","Employees","01A","Direct employee expenses","4","Agency Staff - Pay","3610809","202107",07/10/2020 00:00:00,2752.65,"31230","Employment and Recruitment Agencies","REDACTED DATA","MATRIX SCM LTD","2227962","http://opencorporates.com/companies/gb/2227962","249573468"
"London Borough of Redbridge","http://opendatacommunities.org/doc/london-borough-council/redbridge","1BOTHEROPI&E","Other Operating Income & Expenditure","1CTRADSURDEF","Trading Account Surpluses & Deficits","REV","Revenue","R9152","Operational Accounting","01-EMPLOYEES","Employees","01A","Direct employee expenses","4","Agency Staff - Pay","3610809","202107",07/10/2020 00:00:00,1742.95,"31230","Employment and Recruitment Agencies","REDACTED DATA","MATRIX SCM LTD","2227962","http://opencorporates.com/companies/gb/2227962","249573468"
"London Borough of Redbridge","http://opendatacommunities.org/doc/london-borough-council/redbridge","1BOTHEROPI&E","Other Operating Income & Expenditure","1CTRADSURDEF","Trading Account Surpluses & Deficits","REV","Revenue","R9152","Operational Accounting","01-EMPLOYEES","Employees","01A","Direct employee expenses","4","Agency Staff - Pay","3610809","202107",07/10/2020 00:00:00,2024.04,"31230","Employment and Recruitment Agencies","REDACTED DATA","MATRIX SCM LTD","2227962","http://opencorporates.com/companies/gb/2227962","249573468"
"London Borough of Redbridge","http://opendatacommunities.org/doc/london-borough-council/redbridge","1BOTHEROPI&E","Other Operating Income & Expenditure","1CTRADSURDEF","Trading Account Surpluses & Deficits","REV","Revenue","R9252","Programme Services","01-EMPLOYEES","Employees","01A","Direct employee expenses","4","Agency Staff - Pay","3610809","202107",07/10/2020 00:00:00,3113.7,"31230","Employment and Recruitment Agencies","REDACTED DATA","MATRIX SCM LTD","2227962","http://opencorporates.com/companies/gb/2227962","249573468"
"London Borough of Redbridge","http://opendatacommunities.org/doc/london-borough-council/redbridge","1BOTHEROPI&E","Other Operating Income & Expenditure","1CTRADSURDEF","Trading Account Surpluses & Deficits","REV","Revenue","R9350","Management Team","01-EMPLOYEES","Employees","01A","Direct employee expenses","4","Agency Staff - Pay","3610809","202107",07/10/2020 00:00:00,2572.2,"31230","Employment and Recruitment Agencies","REDACTED DATA","MATRIX SCM LTD","2227962","http://opencorporates.com/companies/gb/2227962","249573468"
"London Borough of Redbridge","http://opendatacommunities.org/doc/london-borough-council/redbridge","1BOTHEROPI&E","Other Operating Income & Expenditure","1CTRADSURDEF","Trading Account Surpluses & Deficits","REV","Revenue","R9351","Litigation Team","01-EMPLOYEES","Employees","01A","Direct employee expenses","4","Agency Staff - Pay","3610809","202107",07/10/2020 00:00:00,1083.8,"31230","Employment and Recruitment Agencies","REDACTED DATA","MATRIX SCM LTD","2227962","http://opencorporates.com/companies/gb/2227962","249573468"
"London Borough of Redbridge","http://opendatacommunities.org/doc/london-borough-council/redbridge","1BOTHEROPI&E","Other Operating Income & Expenditure","1CTRADSURDEF","Trading Account Surpluses & Deficits","REV","Revenue","R9351","Litigation Team","01-EMPLOYEES","Employees","01A","Direct employee expenses","4","Agency Staff - Pay","3610809","202107",07/10/2020 00:00:00,891.12,"31230","Employment and Recruitment Agencies","REDACTED DATA","MATRIX SCM LTD","2227962","http://opencorporates.com/companies/gb/2227962","249573468"
"London Borough of Redbridge","http://opendatacommunities.org/doc/london-borough-council/redbridge","1BOTHEROPI&E","Other Operating Income & Expenditure","1CTRADSURDEF","Trading Account Surpluses & Deficits","REV","Revenue","R9353","Advisory Team","01-EMPLOYEES","Employees","01A","Direct employee expenses","4","Agency Staff - Pay","3610809","202107",07/10/2020 00:00:00,1659.5,"31230","Employment and Recruitment Agencies","REDACTED DATA","MATRIX SCM LTD","2227962","http://opencorporates.com/companies/gb/2227962","249573468"
"London Borough of Redbridge","http://opendatacommunities.org/doc/london-borough-council/redbridge","1BOTHEROPI&E","Other Operating Income & Expenditure","1CTRADSURDEF","Trading Account Surpluses & Deficits","REV","Revenue","R9353","Advisory Team","01-EMPLOYEES","Employees","01A","Direct employee expenses","4","Agency Staff - Pay","3610809","202107",07/10/2020 00:00:00,1770.75,"31230","Employment and Recruitment Agencies","REDACTED DATA","MATRIX SCM LTD","2227962","http://opencorporates.com/companies/gb/2227962","249573468"
"London Borough of Redbridge","http://opendatacommunities.org/doc/london-borough-council/redbridge","1BOTHEROPI&E","Other Operating Income & Expenditure","1CTRADSURDEF","Trading Account Surpluses & Deficits","REV","Revenue","R9353","Advisory Team","01-EMPLOYEES","Employees","01A","Direct employee expenses","4","Agency Staff - Pay","3610809","202107",07/10/2020 00:00:00,1414.7,"31230","Employment and Recruitment Agencies","REDACTED DATA","MATRIX SCM LTD","2227962","http://opencorporates.com/companies/gb/2227962","249573468"
"London Borough of Redbridge","http://opendatacommunities.org/doc/london-borough-council/redbridge","1BOTHEROPI&E","Other Operating Income & Expenditure","1CTRADSURDEF","Trading Account Surpluses & Deficits","REV","Revenue","R9353","Advisory Team","01-EMPLOYEES","Employees","01A","Direct employee expenses","4","Agency Staff - Pay","3610809","202107",07/10/2020 00:00:00,1430.64,"31230","Employment and Recruitment Agencies","REDACTED DATA","MATRIX SCM LTD","2227962","http://opencorporates.com/companies/gb/2227962","249573468"
"London Borough of Redbridge","http://opendatacommunities.org/doc/london-borough-council/redbridge","1BOTHEROPI&E","Other Operating Income & Expenditure","1CTRADSURDEF","Trading Account Surpluses & Deficits","REV","Revenue","R9353","Advisory Team","01-EMPLOYEES","Employees","01A","Direct employee expenses","4","Agency Staff - Pay","3610809","202107",07/10/2020 00:00:00,1659.5,"31230","Employment and Recruitment Agencies","REDACTED DATA","MATRIX SCM LTD","2227962","http://opencorporates.com/companies/gb/2227962","249573468"
"London Borough of Redbridge","http://opendatacommunities.org/doc/london-borough-council/redbridge","1BOTHEROPI&E","Other Operating Income & Expenditure","1CTRADSURDEF","Trading Account Surpluses & Deficits","REV","Revenue","R9353","Advisory Team","01-EMPLOYEES","Employees","01A","Direct employee expenses","4","Agency Staff - Pay","3610809","202107",07/10/2020 00:00:00,1659.5,"31230","Employment and Recruitment Agencies","REDACTED DATA","MATRIX SCM LTD","2227962","http://opencorporates.com/companies/gb/2227962","249573468"
"London Borough of Redbridge","http://opendatacommunities.org/doc/london-borough-council/redbridge","1BOTHEROPI&E","Other Operating Income & Expenditure","1CTRADSURDEF","Trading Account Surpluses & Deficits","REV","Revenue","R9353","Advisory Team","01-EMPLOYEES","Employees","01A","Direct employee expenses","4","Agency Staff - Pay","3610809","202107",07/10/2020 00:00:00,1659.5,"31230","Employment and Recruitment Agencies","REDACTED DATA","MATRIX SCM LTD","2227962","http://opencorporates.com/companies/gb/2227962","249573468"
"London Borough of Redbridge","http://opendatacommunities.org/doc/london-borough-council/redbridge","1BOTHEROPI&E","Other Operating Income & Expenditure","1CTRADSURDEF","Trading Account Surpluses & Deficits","REV","Revenue","R9353","Advisory Team","01-EMPLOYEES","Employees","01A","Direct employee expenses","4","Agency Staff - Pay","3610809","202107",07/10/2020 00:00:00,1608.32,"31230","Employment and Recruitment Agencies","REDACTED DATA","MATRIX SCM LTD","2227962","http://opencorporates.com/companies/gb/2227962","249573468"
"London Borough of Redbridge","http://opendatacommunities.org/doc/london-borough-council/redbridge","1BOTHEROPI&E","Other Operating Income & Expenditure","1CTRADSURDEF","Trading Account Surpluses & Deficits","REV","Revenue","R9353","Advisory Team","01-EMPLOYEES","Employees","01A","Direct employee expenses","4","Agency Staff - Pay","3610809","202107",07/10/2020 00:00:00,1407,"31230","Employment and Recruitment Agencies","REDACTED DATA","MATRIX SCM LTD","2227962","http://opencorporates.com/companies/gb/2227962","249573468"
"London Borough of Redbridge","http://opendatacommunities.org/doc/london-borough-council/redbridge","1BOTHEROPI&E","Other Operating Income & Expenditure","1CTRADSURDEF","Trading Account Surpluses & Deficits","REV","Revenue","R9462","HR Employee Experience","01-EMPLOYEES","Employees","01A","Direct employee expenses","4","Agency Staff - Pay","3610809","202107",07/10/2020 00:00:00,945.32,"31230","Employment and Recruitment Agencies","REDACTED DATA","MATRIX SCM LTD","2227962","http://opencorporates.com/companies/gb/2227962","249573468"
"London Borough of Redbridge","http://opendatacommunities.org/doc/london-borough-council/redbridge","1BOTHEROPI&E","Other Operating Income & Expenditure","1CTRADSURDEF","Trading Account Surpluses & Deficits","REV","Revenue","R9462","HR Employee Experience","01-EMPLOYEES","Employees","01A","Direct employee expenses","4","Agency Staff - Pay","3610809","202107",07/10/2020 00:00:00,991.43,"31230","Employment and Recruitment Agencies","REDACTED DATA","MATRIX SCM LTD","2227962","http://opencorporates.com/companies/gb/2227962","249573468"
"London Borough of Redbridge","http://opendatacommunities.org/doc/london-borough-council/redbridge","1BOTHEROPI&E","Other Operating Income & Expenditure","1CTRADSURDEF","Trading Account Surpluses & Deficits","REV","Revenue","R9462","HR Employee Experience","01-EMPLOYEES","Employees","01A","Direct employee expenses","4","Agency Staff - Pay","3610809","202107",07/10/2020 00:00:00,1260,"31230","Employment and Recruitment Agencies","REDACTED DATA","MATRIX SCM LTD","2227962","http://opencorporates.com/companies/gb/2227962","249573468"
"London Borough of Redbridge","http://opendatacommunities.org/doc/london-borough-council/redbridge","1BOTHEROPI&E","Other Operating Income & Expenditure","1CTRADSURDEF","Trading Account Surpluses & Deficits","REV","Revenue","R9565","Estates Team Staffing","01-EMPLOYEES","Employees","01A","Direct employee expenses","4","Agency Staff - Pay","3610809","202107",07/10/2020 00:00:00,1951.25,"31230","Employment and Recruitment Agencies","REDACTED DATA","MATRIX SCM LTD","2227962","http://opencorporates.com/companies/gb/2227962","249573468"
"London Borough of Redbridge","http://opendatacommunities.org/doc/london-borough-council/redbridge","1BOTHEROPI&E","Other Operating Income & Expenditure","1CTRADSURDEF","Trading Account Surpluses & Deficits","REV","Revenue","R9596","Corporate Facilities Team Staffing","01-EMPLOYEES","Employees","01A","Direct employee expenses","4","Agency Staff - Pay","3610809","202107",07/10/2020 00:00:00,1507.4,"31230","Employment and Recruitment Agencies","REDACTED DATA","MATRIX SCM LTD","2227962","http://opencorporates.com/companies/gb/2227962","249573468"
"London Borough of Redbridge","http://opendatacommunities.org/doc/london-borough-council/redbridge","2BBUILDCONT","Building Control","","","REV","Revenue","R6502","Enforcement and Appeals","01-EMPLOYEES","Employees","01A","Direct employee expenses","4","Agency Staff - Pay","3610809","202107",07/10/2020 00:00:00,1412.3,"31230","Employment and Recruitment Agencies","REDACTED DATA","MATRIX SCM LTD","2227962","http://opencorporates.com/companies/gb/2227962","249573468"
"London Borough of Redbridge","http://opendatacommunities.org/doc/london-borough-council/redbridge","2BENVIRONMEN","Environmental Services","2CCONSPROT","Consumer Protection","REV","Revenue","R6772","Licensing Authority","01-EMPLOYEES","Employees","01A","Direct employee expenses","4","Agency Staff - Pay","3610809","202107",07/10/2020 00:00:00,542.38,"31230","Employment and Recruitment Agencies","REDACTED DATA","MATRIX SCM LTD","2227962","http://opencorporates.com/companies/gb/2227962","249573468"
"London Borough of Redbridge","http://opendatacommunities.org/doc/london-borough-council/redbridge","2BENVIRONMEN","Environmental Services","2CSERVMGTSUP","Service Management & Support Services","REV","Revenue","R6001","Head of Waste, Recycling and Fleet","01-EMPLOYEES","Employees","01A","Direct employee expenses","4","Agency Staff - Pay","3610809","202107",07/10/2020 00:00:00,2413.5,"31230","Employment and Recruitment Agencies","REDACTED DATA","MATRIX SCM LTD","2227962","http://opencorporates.com/companies/gb/2227962","249573468"
"London Borough of Redbridge","http://opendatacommunities.org/doc/london-borough-council/redbridge","2BENVIRONMEN","Environmental Services","2CWASTECOLLN","Waste Collection","REV","Revenue","R6215","Garden Waste","01-EMPLOYEES","Employees","01A","Direct employee expenses","4","Agency Staff - Pay","3610809","202107",07/10/2020 00:00:00,628.72,"31230","Employment and Recruitment Agencies","REDACTED DATA","MATRIX SCM LTD","2227962","http://opencorporates.com/companies/gb/2227962","249573468"
"London Borough of Redbridge","http://opendatacommunities.org/doc/london-borough-council/redbridge","2BPLANPOL","Planning Policy","","","REV","Revenue","R6513","Planning Business Manager Technical Support","01-EMPLOYEES","Employees","01A","Direct employee expenses","4","Agency Staff - Pay","3610809","202107",07/10/2020 00:00:00,516.56,"31230","Employment and Recruitment Agencies","REDACTED DATA","MATRIX SCM LTD","2227962","http://opencorporates.com/companies/gb/2227962","249573468"
"London Borough of Redbridge","http://opendatacommunities.org/doc/london-borough-council/redbridge","3BINDSCHFUND","Individual School Funds","3CNONSCH","Non Schools","REV","Revenue","R2627","SEN Team","01-EMPLOYEES","Employees","01A","Direct employee expenses","4","Agency Staff - Pay","3610809","202107",07/10/2020 00:00:00,715.75,"31230","Employment and Recruitment Agencies","REDACTED DATA","MATRIX SCM LTD","2227962","http://opencorporates.com/companies/gb/2227962","249573468"
"London Borough of Redbridge","http://opendatacommunities.org/doc/london-borough-council/redbridge","3BINDSCHFUND","Individual School Funds","3CNONSCH","Non Schools","REV","Revenue","R2627","SEN Team","01-EMPLOYEES","Employees","01A","Direct employee expenses","4","Agency Staff - Pay","3610809","202107",07/10/2020 00:00:00,715.75,"31230","Employment and Recruitment Agencies","REDACTED DATA","MATRIX SCM LTD","2227962","http://opencorporates.com/companies/gb/2227962","249573468"
"London Borough of Redbridge","http://opendatacommunities.org/doc/london-borough-council/redbridge","3BINDSCHFUND","Individual School Funds","3CNONSCH","Non Schools","REV","Revenue","R2627","SEN Team","01-EMPLOYEES","Employees","01A","Direct employee expenses","4","Agency Staff - Pay","3610809","202107",07/10/2020 00:00:00,739.15,"31230","Employment and Recruitment Agencies","REDACTED DATA","MATRIX SCM LTD","2227962","http://opencorporates.com/companies/gb/2227962","249573468"
"London Borough of Redbridge","http://opendatacommunities.org/doc/london-borough-council/redbridge","3BLEACENTFND","LEA Centrally Held School Funds","3CFACILIMPRO","Facilitating School Improvement","REV","Revenue","R3243","Operational Direction","01-EMPLOYEES","Employees","01A","Direct employee expenses","4","Agency Staff - Pay","3610809","202107",07/10/2020 00:00:00,3048.9,"31230","Employment and Recruitment Agencies","REDACTED DATA","MATRIX SCM LTD","2227962","http://opencorporates.com/companies/gb/2227962","249573468"
"London Borough of Redbridge","http://opendatacommunities.org/doc/london-borough-council/redbridge","3BLEACENTFND","LEA Centrally Held School Funds","3CFACILIMPRO","Facilitating School Improvement","REV","Revenue","R3877","Recruitment Services","01-EMPLOYEES","Employees","01A","Direct employee expenses","4","Agency Staff - Pay","3610809","202107",07/10/2020 00:00:00,280.23,"31230","Employment and Recruitment Agencies","REDACTED DATA","MATRIX SCM LTD","2227962","http://opencorporates.com/companies/gb/2227962","249573468"
"London Borough of Redbridge","http://opendatacommunities.org/doc/london-borough-council/redbridge","3BLEACENTFND","LEA Centrally Held School Funds","3CNONSCH","Non Schools","REV","Revenue","R2211","SEN Commissioning DSG","01-EMPLOYEES","Employees","01A","Direct employee expenses","4","Agency Staff - Pay","3610809","202107",07/10/2020 00:00:00,1471.3,"31230","Employment and Recruitment Agencies","REDACTED DATA","MATRIX SCM LTD","2227962","http://opencorporates.com/companies/gb/2227962","249573468"
"London Borough of Redbridge","http://opendatacommunities.org/doc/london-borough-council/redbridge","3BLEACENTFND","LEA Centrally Held School Funds","3CNONSCH","Non Schools","REV","Revenue","R2211","SEN Commissioning DSG","01-EMPLOYEES","Employees","01A","Direct employee expenses","4","Agency Staff - Pay","3610809","202107",07/10/2020 00:00:00,1403.2,"31230","Employment and Recruitment Agencies","REDACTED DATA","MATRIX SCM LTD","2227962","http://opencorporates.com/companies/gb/2227962","249573468"
"London Borough of Redbridge","http://opendatacommunities.org/doc/london-borough-council/redbridge","3BLEACENTFND","LEA Centrally Held School Funds","3CNONSCH","Non Schools","REV","Revenue","R2211","SEN Commissioning DSG","01-EMPLOYEES","Employees","01A","Direct employee expenses","4","Agency Staff - Pay","3610809","202107",07/10/2020 00:00:00,557.42,"31230","Employment and Recruitment Agencies","REDACTED DATA","MATRIX SCM LTD","2227962","http://opencorporates.com/companies/gb/2227962","249573468"
"London Borough of Redbridge","http://opendatacommunities.org/doc/london-borough-council/redbridge","3BLEACENTFND","LEA Centrally Held School Funds","3CNONSCH","Non Schools","REV","Revenue","R2230","Local Offer","01-EMPLOYEES","Employees","01A","Direct employee expenses","4","Agency Staff - Pay","3610809","202107",07/10/2020 00:00:00,884.86,"31230","Employment and Recruitment Agencies","REDACTED DATA","MATRIX SCM LTD","2227962","http://opencorporates.com/companies/gb/2227962","249573468"
"London Borough of Redbridge","http://opendatacommunities.org/doc/london-borough-council/redbridge","3BLEACENTFND","LEA Centrally Held School Funds","3CNONSCH","Non Schools","REV","Revenue","R2230","Local Offer","01-EMPLOYEES","Employees","01A","Direct employee expenses","4","Agency Staff - Pay","3610809","202107",07/10/2020 00:00:00,888.39,"31230","Employment and Recruitment Agencies","REDACTED DATA","MATRIX SCM LTD","2227962","http://opencorporates.com/companies/gb/2227962","249573468"
"London Borough of Redbridge","http://opendatacommunities.org/doc/london-borough-council/redbridge","3BLEACENTFND","LEA Centrally Held School Funds","3CNONSCH","Non Schools","REV","Revenue","R2230","Local Offer","01-EMPLOYEES","Employees","01A","Direct employee expenses","4","Agency Staff - Pay","3610809","202107",07/10/2020 00:00:00,1280.13,"31230","Employment and Recruitment Agencies","REDACTED DATA","MATRIX SCM LTD","2227962","http://opencorporates.com/companies/gb/2227962","249573468"
"London Borough of Redbridge","http://opendatacommunities.org/doc/london-borough-council/redbridge","3BLEACENTFND","LEA Centrally Held School Funds","3CNONSCH","Non Schools","REV","Revenue","R2230","Local Offer","01-EMPLOYEES","Employees","01A","Direct employee expenses","4","Agency Staff - Pay","3610809","202107",07/10/2020 00:00:00,418.94,"31230","Employment and Recruitment Agencies","REDACTED DATA","MATRIX SCM LTD","2227962","http://opencorporates.com/companies/gb/2227962","249573468"
"London Borough of Redbridge","http://opendatacommunities.org/doc/london-borough-council/redbridge","3BLEACENTFND","LEA Centrally Held School Funds","3CNONSCH","Non Schools","REV","Revenue","R2230","Local Offer","01-EMPLOYEES","Employees","01A","Direct employee expenses","4","Agency Staff - Pay","3610809","202107",07/10/2020 00:00:00,2094.7,"31230","Employment and Recruitment Agencies","REDACTED DATA","MATRIX SCM LTD","2227962","http://opencorporates.com/companies/gb/2227962","249573468"
"London Borough of Redbridge","http://opendatacommunities.org/doc/london-borough-council/redbridge","3BLEACENTFND","LEA Centrally Held School Funds","3CNONSCH","Non Schools","REV","Revenue","R2230","Local Offer","01-EMPLOYEES","Employees","01A","Direct employee expenses","4","Agency Staff - Pay","3610809","202107",07/10/2020 00:00:00,1256.82,"31230","Employment and Recruitment Agencies","REDACTED DATA","MATRIX SCM LTD","2227962","http://opencorporates.com/companies/gb/2227962","249573468"
"London Borough of Redbridge","http://opendatacommunities.org/doc/london-borough-council/redbridge","3BLEACENTFND","LEA Centrally Held School Funds","3CSCHSTRATMG","Schools Strategic Management","REV","Revenue","R3172","BSA (People)","01-EMPLOYEES","Employees","01A","Direct employee expenses","4","Agency Staff - Pay","3610809","202107",07/10/2020 00:00:00,583.95,"31230","Employment and Recruitment Agencies","REDACTED DATA","MATRIX SCM LTD","2227962","http://opencorporates.com/companies/gb/2227962","249573468"
"London Borough of Redbridge","http://opendatacommunities.org/doc/london-borough-council/redbridge","3BLEACENTFND","LEA Centrally Held School Funds","3CSCHSTRATMG","Schools Strategic Management","REV","Revenue","R3172","BSA (People)","01-EMPLOYEES","Employees","01A","Direct employee expenses","4","Agency Staff - Pay","3610809","202107",07/10/2020 00:00:00,588.15,"31230","Employment and Recruitment Agencies","REDACTED DATA","MATRIX SCM LTD","2227962","http://opencorporates.com/companies/gb/2227962","249573468"
"London Borough of Redbridge","http://opendatacommunities.org/doc/london-borough-council/redbridge","3BLEACENTFND","LEA Centrally Held School Funds","3CSCHSTRATMG","Schools Strategic Management","REV","Revenue","R3172","BSA (People)","01-EMPLOYEES","Employees","01A","Direct employee expenses","4","Agency Staff - Pay","3610809","202107",07/10/2020 00:00:00,485.28,"31230","Employment and Recruitment Agencies","REDACTED DATA","MATRIX SCM LTD","2227962","http://opencorporates.com/companies/gb/2227962","249573468"
"London Borough of Redbridge","http://opendatacommunities.org/doc/london-borough-council/redbridge","3BLEACENTFND","LEA Centrally Held School Funds","3CSCHSTRATMG","Schools Strategic Management","REV","Revenue","R3172","BSA (People)","01-EMPLOYEES","Employees","01A","Direct employee expenses","4","Agency Staff - Pay","3610809","202107",07/10/2020 00:00:00,588.15,"31230","Employment and Recruitment Agencies","REDACTED DATA","MATRIX SCM LTD","2227962","http://opencorporates.com/companies/gb/2227962","249573468"
"London Borough of Redbridge","http://opendatacommunities.org/doc/london-borough-council/redbridge","3BLEACENTFND","LEA Centrally Held School Funds","3CSCHSTRATMG","Schools Strategic Management","REV","Revenue","R3172","BSA (People)","01-EMPLOYEES","Employees","01A","Direct employee expenses","4","Agency Staff - Pay","3610809","202107",07/10/2020 00:00:00,642.55,"31230","Employment and Recruitment Agencies","REDACTED DATA","MATRIX SCM LTD","2227962","http://opencorporates.com/companies/gb/2227962","249573468"
"London Borough of Redbridge","http://opendatacommunities.org/doc/london-borough-council/redbridge","3BLEACENTFND","LEA Centrally Held School Funds","3CSCHSTRATMG","Schools Strategic Management","REV","Revenue","R3172","BSA (People)","01-EMPLOYEES","Employees","01A","Direct employee expenses","4","Agency Staff - Pay","3610809","202107",07/10/2020 00:00:00,583.95,"31230","Employment and Recruitment Agencies","REDACTED DATA","MATRIX SCM LTD","2227962","http://opencorporates.com/companies/gb/2227962","249573468"
"London Borough of Redbridge","http://opendatacommunities.org/doc/london-borough-council/redbridge","3BLEACENTFND","LEA Centrally Held School Funds","3CSCHSTRATMG","Schools Strategic Management","REV","Revenue","R3172","BSA (People)","01-EMPLOYEES","Employees","01A","Direct employee expenses","4","Agency Staff - Pay","3610809","202107",07/10/2020 00:00:00,512.95,"31230","Employment and Recruitment Agencies","REDACTED DATA","MATRIX SCM LTD","2227962","http://opencorporates.com/companies/gb/2227962","249573468"
"London Borough of Redbridge","http://opendatacommunities.org/doc/london-borough-council/redbridge","3BLEACENTFND","LEA Centrally Held School Funds","3CSCHSTRATMG","Schools Strategic Management","REV","Revenue","R3172","BSA (People)","01-EMPLOYEES","Employees","01A","Direct employee expenses","4","Agency Staff - Pay","3610809","202107",07/10/2020 00:00:00,398.96,"31230","Employment and Recruitment Agencies","REDACTED DATA","MATRIX SCM LTD","2227962","http://opencorporates.com/companies/gb/2227962","249573468"
"London Borough of Redbridge","http://opendatacommunities.org/doc/london-borough-council/redbridge","3BLEACENTFND","LEA Centrally Held School Funds","3CSCHSTRATMG","Schools Strategic Management","REV","Revenue","R3172","BSA (People)","01-EMPLOYEES","Employees","01A","Direct employee expenses","4","Agency Staff - Pay","3610809","202107",07/10/2020 00:00:00,328.29,"31230","Employment and Recruitment Agencies","REDACTED DATA","MATRIX SCM LTD","2227962","http://opencorporates.com/companies/gb/2227962","249573468"
"London Borough of Redbridge","http://opendatacommunities.org/doc/london-borough-council/redbridge","3BOPTIONHLDG","Optional Holding Accounts","3CYOUTH","Youth Service","REV","Revenue","R3371","LBR Costs","01-EMPLOYEES","Employees","01A","Direct employee expenses","4","Agency Staff - Pay","3610809","202107",07/10/2020 00:00:00,588.14,"31230","Employment and Recruitment Agencies","REDACTED DATA","MATRIX SCM LTD","2227962","http://opencorporates.com/companies/gb/2227962","249573468"
"London Borough of Redbridge","http://opendatacommunities.org/doc/london-borough-council/redbridge","3BOPTIONHLDG","Optional Holding Accounts","3CYOUTH","Youth Service","REV","Revenue","R3371","LBR Costs","01-EMPLOYEES","Employees","01A","Direct employee expenses","4","Agency Staff - Pay","3610809","202107",07/10/2020 00:00:00,1023.25,"31230","Employment and Recruitment Agencies","REDACTED DATA","MATRIX SCM LTD","2227962","http://opencorporates.com/companies/gb/2227962","249573468"
"London Borough of Redbridge","http://opendatacommunities.org/doc/london-borough-council/redbridge","3BOPTIONHLDG","Optional Holding Accounts","3CYOUTH","Youth Service","REV","Revenue","R3371","LBR Costs","01-EMPLOYEES","Employees","01A","Direct employee expenses","4","Agency Staff - Pay","3610809","202107",07/10/2020 00:00:00,997.55,"31230","Employment and Recruitment Agencies","REDACTED DATA","MATRIX SCM LTD","2227962","http://opencorporates.com/companies/gb/2227962","249573468"
"London Borough of Redbridge","http://opendatacommunities.org/doc/london-borough-council/redbridge","3BOPTIONHLDG","Optional Holding Accounts","3CYOUTH","Youth Service","REV","Revenue","R3371","LBR Costs","01-EMPLOYEES","Employees","01A","Direct employee expenses","4","Agency Staff - Pay","3610809","202107",07/10/2020 00:00:00,1026.07,"31230","Employment and Recruitment Agencies","REDACTED DATA","MATRIX SCM LTD","2227962","http://opencorporates.com/companies/gb/2227962","249573468"
"London Borough of Redbridge","http://opendatacommunities.org/doc/london-borough-council/redbridge","3BOPTIONHLDG","Optional Holding Accounts","3CYOUTH","Youth Service","REV","Revenue","R3371","LBR Costs","01-EMPLOYEES","Employees","01A","Direct employee expenses","4","Agency Staff - Pay","3610809","202107",07/10/2020 00:00:00,595.02,"31230","Employment and Recruitment Agencies","REDACTED DATA","MATRIX SCM LTD","2227962","http://opencorporates.com/companies/gb/2227962","249573468"
"London Borough of Redbridge","http://opendatacommunities.org/doc/london-borough-council/redbridge","4BMANGT&SUPP","Management & Support Services","4CTRANSPP&S","Transport Planning, Policy & Strategy","REV","Revenue","R7001","London Permit Scheme","01-EMPLOYEES","Employees","01A","Direct employee expenses","4","Agency Staff - Pay","3610809","202107",07/10/2020 00:00:00,67.5,"31230","Employment and Recruitment Agencies","REDACTED DATA","MATRIX SCM LTD","2227962","http://opencorporates.com/companies/gb/2227962","249573468"
"London Borough of Redbridge","http://opendatacommunities.org/doc/london-borough-council/redbridge","4BMANGT&SUPP","Management & Support Services","4CTRANSPP&S","Transport Planning, Policy & Strategy","REV","Revenue","R7001","London Permit Scheme","01-EMPLOYEES","Employees","01A","Direct employee expenses","4","Agency Staff - Pay","3610809","202107",07/10/2020 00:00:00,969.79,"31230","Employment and Recruitment Agencies","REDACTED DATA","MATRIX SCM LTD","2227962","http://opencorporates.com/companies/gb/2227962","249573468"
"London Borough of Redbridge","http://opendatacommunities.org/doc/london-borough-council/redbridge","6BADULTSOCIA","Adult Social Care","6COTHADSERV","Other Adult Services","REV","Revenue","R4447","Older People - Wanstead & Woodford","09-INCOME","Income","09C","Customer and Client Receipts","8545","Direct Payments Income","3611595","202107",09/10/2020 00:00:00,-111.8,"90005","Home Care Services DP","REDACTED DATA","REDACTED DATA","",,""
"London Borough of Redbridge","http://opendatacommunities.org/doc/london-borough-council/redbridge","1BOTHEROPI&E","Other Operating Income & Expenditure","1CTRADSURDEF","Trading Account Surpluses & Deficits","REV","Revenue","R9575","Ilford Chambers Service Charge Account","02-PREMISES","Premises","02H","Cleaning and domestic supplies","4620","Cleaning Contract Payments","3612556","202107",06/10/2020 00:00:00,716.44,"15269","Cleaning Services - Commercial","REDACTED DATA","LEWIS & GRAVES PARTNERSHIP LLP","8953594","http://opencorporates.com/companies/gb/8953594","135553810"
"London Borough of Redbridge","http://opendatacommunities.org/doc/london-borough-council/redbridge","6BADULTSOCIA","Adult Social Care","6CLONGT65","Long-Term Support 65+ Years","REV","Revenue","R4440","Learning Disabilities - Seven Kings","05-THIRD","Third Party Payments","05H","Private contractors","6904","Day Centres","91180133","202107",06/10/2020 00:00:00,399.2,"25820","Disability and Special Needs - Services","REDACTED DATA","BR3AK FREE LTD","6274766","http://opencorporates.com/companies/gb/6274766",""
"London Borough of Redbridge","http://opendatacommunities.org/doc/london-borough-council/redbridge","6BADULTSOCIA","Adult Social Care","6CLONGT65","Long-Term Support 65+ Years","REV","Revenue","R4440","Learning Disabilities - Seven Kings","05-THIRD","Third Party Payments","05H","Private contractors","6904","Day Centres","91180133","202107",06/10/2020 00:00:00,399.2,"25820","Disability and Special Needs - Services","REDACTED DATA","BR3AK FREE LTD","6274766","http://opencorporates.com/companies/gb/6274766",""
"London Borough of Redbridge","http://opendatacommunities.org/doc/london-borough-council/redbridge","6BADULTSOCIA","Adult Social Care","6CLONGT65","Long-Term Support 65+ Years","REV","Revenue","R4440","Learning Disabilities - Seven Kings","05-THIRD","Third Party Payments","05H","Private contractors","6904","Day Centres","91180133","202107",06/10/2020 00:00:00,60,"25820","Disability and Special Needs - Services","REDACTED DATA","BR3AK FREE LTD","6274766","http://opencorporates.com/companies/gb/6274766",""
"London Borough of Redbridge","http://opendatacommunities.org/doc/london-borough-council/redbridge","1BOTHEROPI&E","Other Operating Income & Expenditure","1CTRADSURDEF","Trading Account Surpluses & Deficits","REV","Revenue","R9354","Legal Disbursements","04-SUPPLIES","Supplies And Services","04H","Grants and subscriptions","5954","Professional Fees","60442419","202107",18/02/2020 00:00:00,715,"79980","Training Services","REDACTED DATA","EVERSHEDS LLP","OC304065","http://opencorporates.com/companies/gb/OC304065","820704559"
"London Borough of Redbridge","http://opendatacommunities.org/doc/london-borough-council/redbridge","6BSOCIALSERV","Social Services","6CCHILLOOKED","Children Looked After","REV","Revenue","R2117","SEN and CD Care and Support Packages Social Care","06-TRANSFER","Transfer Payments","06B","Social Services Clients","7050","Agency Homecare","60442994","202107",16/10/2020 00:00:00,854.76,"79980","Training Services","REDACTED DATA","ASK CARE LTD","5656634","http://opencorporates.com/companies/gb/5656634",""
"London Borough of Redbridge","http://opendatacommunities.org/doc/london-borough-council/redbridge","1BOTHEROPI&E","Other Operating Income & Expenditure","1CTRADSURDEF","Trading Account Surpluses & Deficits","REV","Revenue","R9551","CLM Maintenance","02-PREMISES","Premises","02A","Repairs, alteration and maintenance of buildings","3026","Minor Maintenance","3610835","202107",23/09/2020 00:00:00,711.5,"11040","Builders","REDACTED DATA","M & G CONSTRUCTION LTD.","1918880","http://opencorporates.com/companies/gb/1918880","406392853"
"London Borough of Redbridge","http://opendatacommunities.org/doc/london-borough-council/redbridge","3BINDSCHFUND","Individual School Funds","3CDELSECOND","Delegated Individual Secondary School Budgets","REV","Revenue","S3669","KING SOLOMON - Central Stationery","04-SUPPLIES","Supplies And Services","04A","Equipment, furniture and materials","5502","Equipment Purchase","60441376","202106",17/06/2020 00:00:00,709.41,"29340","Educational Equipment and Supplies","REDACTED DATA","GLS EDUCATIONAL SUPPLIES LTD","",,""
"London Borough of Redbridge","http://opendatacommunities.org/doc/london-borough-council/redbridge","6BSOCIALSERV","Social Services","6CCHILLOOKED","Children Looked After","REV","Revenue","R2117","SEN and CD Care and Support Packages Social Care","06-TRANSFER","Transfer Payments","06B","Social Services Clients","7050","Agency Homecare","60442862","202107",25/09/2018 00:00:00,850,"31230","Employment and Recruitment Agencies","REDACTED DATA","SHARED CARE SERVICES LTD","4704680","http://opencorporates.com/companies/gb/4704680",""
"London Borough of Redbridge","http://opendatacommunities.org/doc/london-borough-council/redbridge","6BADULTSOCIA","Adult Social Care","6CLONGT65","Long-Term Support 65+ Years","REV","Revenue","R4446","Learning Disabilities - Wanstead and Woodford","06-TRANSFER","Transfer Payments","06B","Social Services Clients","7053","Direct Payments","3611402","202107",09/10/2020 00:00:00,937,"90005","Home Care Services DP","REDACTED DATA","REDACTED DATA","",,""
"London Borough of Redbridge","http://opendatacommunities.org/doc/london-borough-council/redbridge","5BGFHOUSING","General Fund Housing","5CHOMELESS","Homelessness","REV","Revenue","R5637","GF Income Recovery Team","01-EMPLOYEES","Employees","01A","Direct employee expenses","4","Agency Staff - Pay","3610809","202107",07/10/2020 00:00:00,825.48,"31230","Employment and Recruitment Agencies","REDACTED DATA","MATRIX SCM LTD","2227962","http://opencorporates.com/companies/gb/2227962","249573468"
"London Borough of Redbridge","http://opendatacommunities.org/doc/london-borough-council/redbridge","5BGFHOUSING","General Fund Housing","5CHOMELESS","Homelessness","REV","Revenue","R5651","HAC Managers","01-EMPLOYEES","Employees","01A","Direct employee expenses","4","Agency Staff - Pay","3610809","202107",07/10/2020 00:00:00,1441.5,"31230","Employment and Recruitment Agencies","REDACTED DATA","MATRIX SCM LTD","2227962","http://opencorporates.com/companies/gb/2227962","249573468"
"London Borough of Redbridge","http://opendatacommunities.org/doc/london-borough-council/redbridge","5BGFHOUSING","General Fund Housing","5CHOUSBENADM","Housing Benefits Administration","REV","Revenue","R5604","Housing Benefit Team","01-EMPLOYEES","Employees","01A","Direct employee expenses","4","Agency Staff - Pay","3610809","202107",07/10/2020 00:00:00,891.92,"31230","Employment and Recruitment Agencies","REDACTED DATA","MATRIX SCM LTD","2227962","http://opencorporates.com/companies/gb/2227962","249573468"
"London Borough of Redbridge","http://opendatacommunities.org/doc/london-borough-council/redbridge","5BGFHOUSING","General Fund Housing","5CPRIVSECREN","Private Sector Housing Renewal","REV","Revenue","R5623","Housing Improvement Team","01-EMPLOYEES","Employees","01A","Direct employee expenses","4","Agency Staff - Pay","3610809","202107",07/10/2020 00:00:00,724.27,"31230","Employment and Recruitment Agencies","REDACTED DATA","MATRIX SCM LTD","2227962","http://opencorporates.com/companies/gb/2227962","249573468"
"London Borough of Redbridge","http://opendatacommunities.org/doc/london-borough-council/redbridge","5BGFHOUSING","General Fund Housing","5CPRIVSECREN","Private Sector Housing Renewal","REV","Revenue","R5623","Housing Improvement Team","01-EMPLOYEES","Employees","01A","Direct employee expenses","4","Agency Staff - Pay","3610809","202107",07/10/2020 00:00:00,1038.37,"31230","Employment and Recruitment Agencies","REDACTED DATA","MATRIX SCM LTD","2227962","http://opencorporates.com/companies/gb/2227962","249573468"
"London Borough of Redbridge","http://opendatacommunities.org/doc/london-borough-council/redbridge","5BGFHOUSING","General Fund Housing","5CPRIVSECREN","Private Sector Housing Renewal","REV","Revenue","R5623","Housing Improvement Team","01-EMPLOYEES","Employees","01A","Direct employee expenses","4","Agency Staff - Pay","3610809","202107",07/10/2020 00:00:00,1002.95,"31230","Employment and Recruitment Agencies","REDACTED DATA","MATRIX SCM LTD","2227962","http://opencorporates.com/companies/gb/2227962","249573468"
"London Borough of Redbridge","http://opendatacommunities.org/doc/london-borough-council/redbridge","6BADULTSOCIA","Adult Social Care","6CADMENHLTH","Adults Under 65 with Mental Health Needs","REV","Revenue","R4254","Community Mental Health Team AMHP Base","01-EMPLOYEES","Employees","01A","Direct employee expenses","4","Agency Staff - Pay","3610809","202107",07/10/2020 00:00:00,1461.94,"31230","Employment and Recruitment Agencies","REDACTED DATA","MATRIX SCM LTD","2227962","http://opencorporates.com/companies/gb/2227962","249573468"
"London Borough of Redbridge","http://opendatacommunities.org/doc/london-borough-council/redbridge","6BADULTSOCIA","Adult Social Care","6CADMENHLTH","Adults Under 65 with Mental Health Needs","REV","Revenue","R4379","Redbridge Community Recovery Services","01-EMPLOYEES","Employees","01A","Direct employee expenses","4","Agency Staff - Pay","3610809","202107",07/10/2020 00:00:00,1203,"31230","Employment and Recruitment Agencies","REDACTED DATA","MATRIX SCM LTD","2227962","http://opencorporates.com/companies/gb/2227962","249573468"
"London Borough of Redbridge","http://opendatacommunities.org/doc/london-borough-council/redbridge","6BADULTSOCIA","Adult Social Care","6CADMENHLTH","Adults Under 65 with Mental Health Needs","REV","Revenue","R4379","Redbridge Community Recovery Services","01-EMPLOYEES","Employees","01A","Direct employee expenses","4","Agency Staff - Pay","3610809","202107",07/10/2020 00:00:00,1263.35,"31230","Employment and Recruitment Agencies","REDACTED DATA","MATRIX SCM LTD","2227962","http://opencorporates.com/companies/gb/2227962","249573468"
"London Borough of Redbridge","http://opendatacommunities.org/doc/london-borough-council/redbridge","6BADULTSOCIA","Adult Social Care","6CADMENHLTH","Adults Under 65 with Mental Health Needs","REV","Revenue","R4379","Redbridge Community Recovery Services","01-EMPLOYEES","Employees","01A","Direct employee expenses","4","Agency Staff - Pay","3610809","202107",07/10/2020 00:00:00,1263.33,"31230","Employment and Recruitment Agencies","REDACTED DATA","MATRIX SCM LTD","2227962","http://opencorporates.com/companies/gb/2227962","249573468"
"London Borough of Redbridge","http://opendatacommunities.org/doc/london-borough-council/redbridge","6BADULTSOCIA","Adult Social Care","6CADMENHLTH","Adults Under 65 with Mental Health Needs","REV","Revenue","R4463","Mental Health Capacity Act and Safeguarding Adults","01-EMPLOYEES","Employees","01A","Direct employee expenses","4","Agency Staff - Pay","3610809","202107",07/10/2020 00:00:00,1431.68,"31230","Employment and Recruitment Agencies","REDACTED DATA","MATRIX SCM LTD","2227962","http://opencorporates.com/companies/gb/2227962","249573468"
"London Borough of Redbridge","http://opendatacommunities.org/doc/london-borough-council/redbridge","6BADULTSOCIA","Adult Social Care","6CLONGT65","Long-Term Support 65+ Years","REV","Revenue","R4446","Learning Disabilities - Wanstead and Woodford","09-INCOME","Income","09C","Customer and Client Receipts","8545","Direct Payments Income","3611402","202107",09/10/2020 00:00:00,-87.2,"90005","Home Care Services DP","REDACTED DATA","REDACTED DATA","",,""
"London Borough of Redbridge","http://opendatacommunities.org/doc/london-borough-council/redbridge","5BGFHOUSING","General Fund Housing","5CHOMELESS","Homelessness","REV","Revenue","R5622","The Foyer","02-PREMISES","Premises","02B","Energy costs","4002","Gas","80037811","202106",08/07/2020 00:00:00,809.18,"30586","Electricity Companies","REDACTED DATA","CORONA ENERGY RETAIL 4 LIMITED","2798334","http://opencorporates.com/companies/gb/2798334",""
"London Borough of Redbridge","http://opendatacommunities.org/doc/london-borough-council/redbridge","6BSOCIALSERV","Social Services","6CASYLUMSEEK","Asylum Seekers","REV","Revenue","R2129","Unaccompanied Asylum Seekers","05-THIRD","Third Party Payments","05E","Government departments","6962","Semi-Independent (Children Services)","60441037","202106",31/07/2020 00:00:00,846.25,"47846","Letting Agents","REDACTED DATA","FINEFAIR CONSULTANCY  LTD(NIGHTLY LETS)","4661895","http://opencorporates.com/companies/gb/4661895",""
"London Borough of Redbridge","http://opendatacommunities.org/doc/london-borough-council/redbridge","3BINDSCHFUND","Individual School Funds","3CDELSECOND","Delegated Individual Secondary School Budgets","REV","Revenue","S3503","KING SOLOMON -  Education Support","04-SUPPLIES","Supplies And Services","04H","Grants and subscriptions","5954","Professional Fees","60441841","202107",17/07/2020 00:00:00,705,"72460","Solicitors","REDACTED DATA","STONE KING LLP","OC315280","http://opencorporates.com/companies/gb/OC315280","138147369"
"London Borough of Redbridge","http://opendatacommunities.org/doc/london-borough-council/redbridge","1BOTHEROPI&E","Other Operating Income & Expenditure","1CTRADSURDEF","Trading Account Surpluses & Deficits","REV","Revenue","R9551","CLM Maintenance","02-PREMISES","Premises","02A","Repairs, alteration and maintenance of buildings","3026","Minor Maintenance","3613806","202107",22/10/2020 00:00:00,704.76,"11040","Builders","REDACTED DATA","M & G CONSTRUCTION LTD.","1918880","http://opencorporates.com/companies/gb/1918880","406392853"
"London Borough of Redbridge","http://opendatacommunities.org/doc/london-borough-council/redbridge","1BOTHEROPI&E","Other Operating Income & Expenditure","1CTRADSURDEF","Trading Account Surpluses & Deficits","REV","Revenue","R9148","Tree Holding Account","02-PREMISES","Premises","02I","Grounds maintenance costs","4753","Trees / Recreational","60441167","202106",28/09/2020 00:00:00,703.12,"80228","Tree Work and Forestry Services","REDACTED DATA","CSG USHERS LTD","6496317","http://opencorporates.com/companies/gb/6496317",""
"London Borough of Redbridge","http://opendatacommunities.org/doc/london-borough-council/redbridge","1BOTHEROPI&E","Other Operating Income & Expenditure","1CTRADSURDEF","Trading Account Surpluses & Deficits","REV","Revenue","R9576","Broadway Chambers Service Charge Account","02-PREMISES","Premises","02A","Repairs, alteration and maintenance of buildings","3026","Minor Maintenance","3610902","202107",05/10/2020 00:00:00,702,"30250","Electrical Heating Equipment and Systems","REDACTED DATA","OAKRAY LTD","1458147","http://opencorporates.com/companies/gb/1458147","327787712"
"London Borough of Redbridge","http://opendatacommunities.org/doc/london-borough-council/redbridge","1BOTHEROPI&E","Other Operating Income & Expenditure","1CTRADSURDEF","Trading Account Surpluses & Deficits","REV","Revenue","R9670","Redbridge Living","04-SUPPLIES","Supplies And Services","04H","Grants and subscriptions","5954","Professional Fees","60441751","202107",31/07/2020 00:00:00,700,"1340","Accountants","REDACTED DATA","Haslers","",,"246 3937 40"
"London Borough of Redbridge","http://opendatacommunities.org/doc/london-borough-council/redbridge","6BADULTSOCIA","Adult Social Care","6CLONGT65","Long-Term Support 65+ Years","REV","Revenue","R4438","Older People - Cranbrook & Loxford","06-TRANSFER","Transfer Payments","06B","Social Services Clients","7053","Direct Payments","3611145","202107",09/10/2020 00:00:00,917.4,"90005","Home Care Services DP","REDACTED DATA","REDACTED DATA","",,""
"London Borough of Redbridge","http://opendatacommunities.org/doc/london-borough-council/redbridge","6BADULTSOCIA","Adult Social Care","6CLONGT65","Long-Term Support 65+ Years","REV","Revenue","R4438","Older People - Cranbrook & Loxford","09-INCOME","Income","09C","Customer and Client Receipts","8545","Direct Payments Income","3611145","202107",09/10/2020 00:00:00,-77.56,"90005","Home Care Services DP","REDACTED DATA","REDACTED DATA","",,""
"London Borough of Redbridge","http://opendatacommunities.org/doc/london-borough-council/redbridge","3BLEACENTFND","LEA Centrally Held School Funds","3CSUPPORTSEN","Supporting Special Education Needs","REV","Revenue","R3435","Behaviour & Exclusion DSG","05-THIRD","Third Party Payments","05A","Independent units within the council","6513","Agency & Contracted Services","60441269","202106",29/09/2020 00:00:00,696,"31230","Employment and Recruitment Agencies","REDACTED DATA","BALTIMORE CONSULTING LTD","8387222","http://opencorporates.com/companies/gb/8387222",""
"London Borough of Redbridge","http://opendatacommunities.org/doc/london-borough-council/redbridge","3BLEACENTFND","LEA Centrally Held School Funds","3CSUPPORTSEN","Supporting Special Education Needs","REV","Revenue","R3435","Behaviour & Exclusion DSG","05-THIRD","Third Party Payments","05A","Independent units within the council","6513","Agency & Contracted Services","60440670","202106",21/09/2020 00:00:00,696,"31230","Employment and Recruitment Agencies","REDACTED DATA","BALTIMORE CONSULTING LTD","8387222","http://opencorporates.com/companies/gb/8387222",""
"London Borough of Redbridge","http://opendatacommunities.org/doc/london-borough-council/redbridge","1BOTHEROPI&E","Other Operating Income & Expenditure","1CTRADSURDEF","Trading Account Surpluses & Deficits","REV","Revenue","R9551","CLM Maintenance","02-PREMISES","Premises","02A","Repairs, alteration and maintenance of buildings","3026","Minor Maintenance","3610893","202107",08/09/2020 00:00:00,695.89,"16111","Catering Equipment","REDACTED DATA","J SCOTT & SONS  LTD","",,"354241082"
"London Borough of Redbridge","http://opendatacommunities.org/doc/london-borough-council/redbridge","1BOTHEROPI&E","Other Operating Income & Expenditure","1CTRADSURDEF","Trading Account Surpluses & Deficits","REV","Revenue","R9148","Tree Holding Account","02-PREMISES","Premises","02I","Grounds maintenance costs","4753","Trees / Recreational","60442240","202107",09/10/2020 00:00:00,695,"80228","Tree Work and Forestry Services","REDACTED DATA","DEAN TUCKER LTD","9178711","http://opencorporates.com/companies/gb/9178711","193245792"
"London Borough of Redbridge","http://opendatacommunities.org/doc/london-borough-council/redbridge","6BSOCIALSERV","Social Services","6CCHILLOOKED","Children Looked After","REV","Revenue","R2177","Public Law Outline","04-SUPPLIES","Supplies And Services","04H","Grants and subscriptions","5954","Professional Fees","60442406","202107",12/10/2020 00:00:00,695,"6700","Barristers","REDACTED DATA","New Court Chambers","",,"305892296"
"London Borough of Redbridge","http://opendatacommunities.org/doc/london-borough-council/redbridge","6BADULTSOCIA","Adult Social Care","6CLONGT1864","Long-Term Support 18 - 64 Years","REV","Revenue","R4441","Older People - Seven Kings","06-TRANSFER","Transfer Payments","06B","Social Services Clients","7053","Direct Payments","3611434","202107",09/10/2020 00:00:00,834,"90005","Home Care Services DP","REDACTED DATA","REDACTED DATA","",,""
"London Borough of Redbridge","http://opendatacommunities.org/doc/london-borough-council/redbridge","6BADULTSOCIA","Adult Social Care","6CLONGT1864","Long-Term Support 18 - 64 Years","REV","Revenue","R4441","Older People - Seven Kings","06-TRANSFER","Transfer Payments","06B","Social Services Clients","7053","Direct Payments","3611086","202107",09/10/2020 00:00:00,834,"90005","Home Care Services DP","REDACTED DATA","REDACTED DATA","",,""
"London Borough of Redbridge","http://opendatacommunities.org/doc/london-borough-council/redbridge","6BADULTSOCIA","Adult Social Care","6CLONGT65","Long-Term Support 65+ Years","REV","Revenue","R4444","Older People - Fairlop","06-TRANSFER","Transfer Payments","06B","Social Services Clients","7053","Direct Payments","3611316","202107",09/10/2020 00:00:00,834,"90005","Home Care Services DP","REDACTED DATA","REDACTED DATA","",,""
"London Borough of Redbridge","http://opendatacommunities.org/doc/london-borough-council/redbridge","1BOTHEROPI&E","Other Operating Income & Expenditure","1CTRADSURDEF","Trading Account Surpluses & Deficits","REV","Revenue","R9557","CLM Utilities","02-PREMISES","Premises","02B","Energy costs","4000","Electricity","70115505","202107",13/09/2020 00:00:00,694.99,"39564","Gas Companies","REDACTED DATA","KENT COUNTY COUNCIL (GAS & ELECTRIC)","",,"204269191"
"London Borough of Redbridge","http://opendatacommunities.org/doc/london-borough-council/redbridge","9BNONBVO","Outside the BVACOP Objective Structure","9CNONBVO","Outside the BVACOP Objective Structure","REV","Revenue","R7702","Vehicle Workshop","04-SUPPLIES","Supplies And Services","04A","Equipment, furniture and materials","5508","General Consumables","675850","202107",14/09/2020 00:00:00,694.79,"52160","Motor Factors","REDACTED DATA","WURTH UK LTD","1124802","http://opencorporates.com/companies/gb/1124802","204272209"
"London Borough of Redbridge","http://opendatacommunities.org/doc/london-borough-council/redbridge","9BNONBVO","Outside the BVACOP Objective Structure","9CNONBVO","Outside the BVACOP Objective Structure","REV","Revenue","R5132","Repairs and Maintenance - Other","02-PREMISES","Premises","02A","Repairs, alteration and maintenance of buildings","3038","Service Repairs","80037830","202106",29/09/2020 00:00:00,692.76,"9321","Boilers - Servicing, Replacements and Repairs","REDACTED DATA","ATLAS MAINTENANCE SERVICES LTD","8203263","http://opencorporates.com/companies/gb/8203263",""
"London Borough of Redbridge","http://opendatacommunities.org/doc/london-borough-council/redbridge","9BNONBVO","Outside the BVACOP Objective Structure","9CNONBVO","Outside the BVACOP Objective Structure","REV","Revenue","R7703","Passenger Transport Unit","03-TRANSPORT","Transport","03A","Direct - transport costs","5208","Taxi/Contractors","60442617","202107",12/10/2020 00:00:00,692.5,"51180","Mini Buses - Hire and Leasing","REDACTED DATA","DILSHAN TRANSPORT GROUP LIMITED","5880601","http://opencorporates.com/companies/gb/5880601","888080679"
"London Borough of Redbridge","http://opendatacommunities.org/doc/london-borough-council/redbridge","9BNONBVO","Outside the BVACOP Objective Structure","9CNONBVO","Outside the BVACOP Objective Structure","REV","Revenue","R7703","Passenger Transport Unit","03-TRANSPORT","Transport","03A","Direct - transport costs","5208","Taxi/Contractors","60442618","202107",05/10/2020 00:00:00,692.5,"51180","Mini Buses - Hire and Leasing","REDACTED DATA","DILSHAN TRANSPORT GROUP LIMITED","5880601","http://opencorporates.com/companies/gb/5880601","888080679"
"London Borough of Redbridge","http://opendatacommunities.org/doc/london-borough-council/redbridge","6BADULTSOCIA","Adult Social Care","6COTHADSERV","Other Adult Services","REV","Revenue","R4447","Older People - Wanstead & Woodford","05-THIRD","Third Party Payments","05H","Private contractors","6909","Nursing Homes","91176563","202107",29/09/2020 00:00:00,2063.84,"64710","Residential Care Homes","REDACTED DATA","DIAGRAMA HEALTHCARE SERVICES LTD","9262083","http://opencorporates.com/companies/gb/9262083",""
"London Borough of Redbridge","http://opendatacommunities.org/doc/london-borough-council/redbridge","6BADULTSOCIA","Adult Social Care","6COTHADSERV","Other Adult Services","REV","Revenue","R4447","Older People - Wanstead & Woodford","09-INCOME","Income","09C","Customer and Client Receipts","8557","Nursing Home Charges","91176563","202107",29/09/2020 00:00:00,-1232.88,"64710","Residential Care Homes","REDACTED DATA","DIAGRAMA HEALTHCARE SERVICES LTD","9262083","http://opencorporates.com/companies/gb/9262083",""
"London Borough of Redbridge","http://opendatacommunities.org/doc/london-borough-council/redbridge","6BADULTSOCIA","Adult Social Care","6CADMENHLTH","Adults Under 65 with Mental Health Needs","REV","Revenue","R4463","Mental Health Capacity Act and Safeguarding Adults","04-SUPPLIES","Supplies And Services","04H","Grants and subscriptions","5954","Professional Fees","60441778","202107",17/09/2020 00:00:00,830.6,"5170","Assessors","REDACTED DATA","Sonic Assessments Limited","12000113","http://opencorporates.com/companies/gb/12000113",""
"London Borough of Redbridge","http://opendatacommunities.org/doc/london-borough-council/redbridge","6BADULTSOCIA","Adult Social Care","6CLONGT1864","Long-Term Support 18 - 64 Years","REV","Revenue","R4437","Learning Disabilities - Cranbrook & Loxford","06-TRANSFER","Transfer Payments","06B","Social Services Clients","7053","Direct Payments","3611362","202107",09/10/2020 00:00:00,945.2,"90005","Home Care Services DP","REDACTED DATA","REDACTED DATA","",,""
"London Borough of Redbridge","http://opendatacommunities.org/doc/london-borough-council/redbridge","6BADULTSOCIA","Adult Social Care","6CLONGT1864","Long-Term Support 18 - 64 Years","REV","Revenue","R4437","Learning Disabilities - Cranbrook & Loxford","09-INCOME","Income","09C","Customer and Client Receipts","8545","Direct Payments Income","3611362","202107",09/10/2020 00:00:00,-115.6,"90005","Home Care Services DP","REDACTED DATA","REDACTED DATA","",,""
"London Borough of Redbridge","http://opendatacommunities.org/doc/london-borough-council/redbridge","6BADULTSOCIA","Adult Social Care","6CLONGT65","Long-Term Support 65+ Years","REV","Revenue","R4438","Older People - Cranbrook & Loxford","05-THIRD","Third Party Payments","05A","Independent units within the council","6502","Agency Homecare","91176888","202107",15/09/2020 00:00:00,828.92,"79980","Training Services","REDACTED DATA","CHOSEN CARE GROUP LTD","6942967","http://opencorporates.com/companies/gb/6942967",""
"London Borough of Redbridge","http://opendatacommunities.org/doc/london-borough-council/redbridge","9BNONBVO","Outside the BVACOP Objective Structure","9CNONBVO","Outside the BVACOP Objective Structure","REV","Revenue","R7702","Vehicle Workshop","04-SUPPLIES","Supplies And Services","04A","Equipment, furniture and materials","5510","Materials","675779","202107",02/10/2020 00:00:00,690.76,"13330","Car Body Repairs","REDACTED DATA","BARKING PANELCRAFT","",,""
"London Borough of Redbridge","http://opendatacommunities.org/doc/london-borough-council/redbridge","6BADULTSOCIA","Adult Social Care","6CLONGT65","Long-Term Support 65+ Years","REV","Revenue","R4440","Learning Disabilities - Seven Kings","06-TRANSFER","Transfer Payments","06B","Social Services Clients","7053","Direct Payments","3611073","202107",09/10/2020 00:00:00,1002.16,"90005","Home Care Services DP","REDACTED DATA","REDACTED DATA","",,""
"London Borough of Redbridge","http://opendatacommunities.org/doc/london-borough-council/redbridge","6BADULTSOCIA","Adult Social Care","6CLONGT65","Long-Term Support 65+ Years","REV","Revenue","R4440","Learning Disabilities - Seven Kings","09-INCOME","Income","09C","Customer and Client Receipts","8545","Direct Payments Income","3611073","202107",09/10/2020 00:00:00,-175.6,"90005","Home Care Services DP","REDACTED DATA","REDACTED DATA","",,""
"London Borough of Redbridge","http://opendatacommunities.org/doc/london-borough-council/redbridge","6BADULTSOCIA","Adult Social Care","6CNONSALT","Non-Salt and Support Services","REV","Revenue","R4448","Physical Disabilities - Wanstead & Woodford","06-TRANSFER","Transfer Payments","06B","Social Services Clients","7053","Direct Payments","3611242","202107",09/10/2020 00:00:00,973.04,"90005","Home Care Services DP","REDACTED DATA","REDACTED DATA","",,""
"London Borough of Redbridge","http://opendatacommunities.org/doc/london-borough-council/redbridge","6BADULTSOCIA","Adult Social Care","6CNONSALT","Non-Salt and Support Services","REV","Revenue","R4448","Physical Disabilities - Wanstead & Woodford","09-INCOME","Income","09C","Customer and Client Receipts","8545","Direct Payments Income","3611242","202107",09/10/2020 00:00:00,-146.6,"90005","Home Care Services DP","REDACTED DATA","REDACTED DATA","",,""
"London Borough of Redbridge","http://opendatacommunities.org/doc/london-borough-council/redbridge","3BINDSCHFUND","Individual School Funds","3CDELPRIMARY","Delegated Individual Primary School Budgets","REV","Revenue","S2340","GROVE : BUILDING MAINTENANCE","02-PREMISES","Premises","02H","Cleaning and domestic supplies","4622","Cleaning Equipment & Materials","60440883","202106",15/09/2020 00:00:00,727.12,"19000","Cleaning Contractors Equipment and Supplies","REDACTED DATA","POWER HYGIENE & SAFETY PRODUCTS LTD","5087991","http://opencorporates.com/companies/gb/5087991",""
"London Borough of Redbridge","http://opendatacommunities.org/doc/london-borough-council/redbridge","6BADULTSOCIA","Adult Social Care","6CLONGT65","Long-Term Support 65+ Years","REV","Revenue","R4440","Learning Disabilities - Seven Kings","06-TRANSFER","Transfer Payments","06B","Social Services Clients","7053","Direct Payments","3611107","202107",09/10/2020 00:00:00,1223.2,"90005","Home Care Services DP","REDACTED DATA","REDACTED DATA","",,""
"London Borough of Redbridge","http://opendatacommunities.org/doc/london-borough-council/redbridge","6BADULTSOCIA","Adult Social Care","6CLONGT65","Long-Term Support 65+ Years","REV","Revenue","R4440","Learning Disabilities - Seven Kings","09-INCOME","Income","09C","Customer and Client Receipts","8545","Direct Payments Income","3611107","202107",09/10/2020 00:00:00,-397.2,"90005","Home Care Services DP","REDACTED DATA","REDACTED DATA","",,""
"London Borough of Redbridge","http://opendatacommunities.org/doc/london-borough-council/redbridge","1BOTHEROPI&E","Other Operating Income & Expenditure","1CTRADSURDEF","Trading Account Surpluses & Deficits","REV","Revenue","R9551","CLM Maintenance","02-PREMISES","Premises","02A","Repairs, alteration and maintenance of buildings","3037","Service Contracts","3612550","202107",01/10/2020 00:00:00,687.67,"57130","Pest and Vermin Control Products","REDACTED DATA","RAPTOR SERVICES LTD (SOUTH EAST) LTD","6624216","http://opencorporates.com/companies/gb/6624216","650089346"
"London Borough of Redbridge","http://opendatacommunities.org/doc/london-borough-council/redbridge","6BADULTSOCIA","Adult Social Care","6COTHADSERV","Other Adult Services","REV","Revenue","R4447","Older People - Wanstead & Woodford","05-THIRD","Third Party Payments","05A","Independent units within the council","6502","Agency Homecare","91182284","202107",26/10/2020 00:00:00,825.02,"64710","Residential Care Homes","REDACTED DATA","NOMASE CARE LTD","8859648","http://opencorporates.com/companies/gb/8859648","194983937"
"London Borough of Redbridge","http://opendatacommunities.org/doc/london-borough-council/redbridge","6BADULTSOCIA","Adult Social Care","6COTHADSERV","Other Adult Services","REV","Revenue","R4447","Older People - Wanstead & Woodford","05-THIRD","Third Party Payments","05A","Independent units within the council","6502","Agency Homecare","91182285","202107",26/10/2020 00:00:00,825.02,"64710","Residential Care Homes","REDACTED DATA","NOMASE CARE LTD","8859648","http://opencorporates.com/companies/gb/8859648","194983937"
"London Borough of Redbridge","http://opendatacommunities.org/doc/london-borough-council/redbridge","6BADULTSOCIA","Adult Social Care","6COTHADSERV","Other Adult Services","REV","Revenue","R4447","Older People - Wanstead & Woodford","05-THIRD","Third Party Payments","05A","Independent units within the council","6502","Agency Homecare","91182286","202107",26/10/2020 00:00:00,825.02,"64710","Residential Care Homes","REDACTED DATA","NOMASE CARE LTD","8859648","http://opencorporates.com/companies/gb/8859648","194983937"
"London Borough of Redbridge","http://opendatacommunities.org/doc/london-borough-council/redbridge","6BADULTSOCIA","Adult Social Care","6COTHADSERV","Other Adult Services","REV","Revenue","R4447","Older People - Wanstead & Woodford","05-THIRD","Third Party Payments","05A","Independent units within the council","6502","Agency Homecare","91182287","202107",26/10/2020 00:00:00,825.02,"64710","Residential Care Homes","REDACTED DATA","NOMASE CARE LTD","8859648","http://opencorporates.com/companies/gb/8859648","194983937"
"London Borough of Redbridge","http://opendatacommunities.org/doc/london-borough-council/redbridge","6BADULTSOCIA","Adult Social Care","6COTHADSERV","Other Adult Services","REV","Revenue","R4447","Older People - Wanstead & Woodford","05-THIRD","Third Party Payments","05A","Independent units within the council","6502","Agency Homecare","91182288","202107",26/10/2020 00:00:00,825.02,"64710","Residential Care Homes","REDACTED DATA","NOMASE CARE LTD","8859648","http://opencorporates.com/companies/gb/8859648","194983937"
"London Borough of Redbridge","http://opendatacommunities.org/doc/london-borough-council/redbridge","6BADULTSOCIA","Adult Social Care","6COTHADSERV","Other Adult Services","REV","Revenue","R4447","Older People - Wanstead & Woodford","05-THIRD","Third Party Payments","05A","Independent units within the council","6502","Agency Homecare","91182282","202107",26/10/2020 00:00:00,825.02,"64710","Residential Care Homes","REDACTED DATA","NOMASE CARE LTD","8859648","http://opencorporates.com/companies/gb/8859648","194983937"
"London Borough of Redbridge","http://opendatacommunities.org/doc/london-borough-council/redbridge","6BADULTSOCIA","Adult Social Care","6COTHADSERV","Other Adult Services","REV","Revenue","R4447","Older People - Wanstead & Woodford","05-THIRD","Third Party Payments","05A","Independent units within the council","6502","Agency Homecare","91182283","202107",26/10/2020 00:00:00,825.02,"64710","Residential Care Homes","REDACTED DATA","NOMASE CARE LTD","8859648","http://opencorporates.com/companies/gb/8859648","194983937"
"London Borough of Redbridge","http://opendatacommunities.org/doc/london-borough-council/redbridge","3BLEACENTFND","LEA Centrally Held School Funds","3CNONSCH","Non Schools","REV","Revenue","R2231","Special School Top Up Fees","05-THIRD","Third Party Payments","05G","Other establishments","7432","OOB Pre 16 Top Up","60443566","202107",27/10/2020 00:00:00,825,"29360","Educational Services","REDACTED DATA","DANIELLE HARRISON","",,""
"London Borough of Redbridge","http://opendatacommunities.org/doc/london-borough-council/redbridge","1BOTHEROPI&E","Other Operating Income & Expenditure","1CTRADSURDEF","Trading Account Surpluses & Deficits","REV","Revenue","R9557","CLM Utilities","02-PREMISES","Premises","02B","Energy costs","4000","Electricity","80037941","202107",15/10/2020 00:00:00,785.19,"39564","Gas Companies","REDACTED DATA","KENT COUNTY COUNCIL (GAS & ELECTRIC)","",,"204269191"
"London Borough of Redbridge","http://opendatacommunities.org/doc/london-borough-council/redbridge","4BMANGT&SUPP","Management & Support Services","4CHIGHRDROUT","Highways/Roads (Routine)","REV","Revenue","R7070","Reactive Maintenance","05-THIRD","Third Party Payments","05H","Private contractors","6915","Contractor Payments","3612156","202107",15/10/2020 00:00:00,686.4,"18632","Civil Engineers","REDACTED DATA","KENSON CONTRACTORS BENINGTON LTD","1314691","http://opencorporates.com/companies/gb/1314691","301629589"
"London Borough of Redbridge","http://opendatacommunities.org/doc/london-borough-council/redbridge","6BADULTSOCIA","Adult Social Care","6CLONGT1864","Long-Term Support 18 - 64 Years","REV","Revenue","R4445","Physical Disabilities - Fairlop","06-TRANSFER","Transfer Payments","06B","Social Services Clients","7053","Direct Payments","3611115","202107",09/10/2020 00:00:00,820.08,"90005","Home Care Services DP","REDACTED DATA","REDACTED DATA","",,""
"London Borough of Redbridge","http://opendatacommunities.org/doc/london-borough-council/redbridge","6BSOCIALSERV","Social Services","6CCHILCOMSNG","Children's Services - Commissioning & Social Work","REV","Revenue","R2186","F&A - Leaving Care Team","05-THIRD","Third Party Payments","05E","Government departments","6962","Semi-Independent (Children Services)","60442878","202107",30/09/2020 00:00:00,819.97,"17580","Childcare Services","REDACTED DATA","Assetgrove Youth Services","52091 15893","http://opencorporates.com/companies/gb/52091 15893",""
"London Borough of Redbridge","http://opendatacommunities.org/doc/london-borough-council/redbridge","3BINDSCHFUND","Individual School Funds","3CDELSECOND","Delegated Individual Secondary School Budgets","REV","Revenue","S2075","TRINITY : ICT learning resources","04-SUPPLIES","Supplies And Services","04A","Equipment, furniture and materials","5502","Equipment Purchase","60441381","202107",30/09/2020 00:00:00,683.03,"20703","Computer Systems and Software","REDACTED DATA","INFORMATION & DATA NETWORKS SUPPLIES LTD(IDN)","2248449","http://opencorporates.com/companies/gb/2248449","498052417"
"London Borough of Redbridge","http://opendatacommunities.org/doc/london-borough-council/redbridge","9BNONBVO","Outside the BVACOP Objective Structure","9CNONBVO","Outside the BVACOP Objective Structure","REV","Revenue","R7703","Passenger Transport Unit","03-TRANSPORT","Transport","03A","Direct - transport costs","5208","Taxi/Contractors","60441611","202107",28/09/2020 00:00:00,682.5,"51180","Mini Buses - Hire and Leasing","REDACTED DATA","DILSHAN TRANSPORT GROUP LIMITED","5880601","http://opencorporates.com/companies/gb/5880601","888080679"
"London Borough of Redbridge","http://opendatacommunities.org/doc/london-borough-council/redbridge","6BADULTSOCIA","Adult Social Care","6CLONGT65","Long-Term Support 65+ Years","REV","Revenue","R4444","Older People - Fairlop","06-TRANSFER","Transfer Payments","06B","Social Services Clients","7053","Direct Payments","3611183","202107",09/10/2020 00:00:00,1181.48,"90005","Home Care Services DP","REDACTED DATA","REDACTED DATA","",,""
"London Borough of Redbridge","http://opendatacommunities.org/doc/london-borough-council/redbridge","6BADULTSOCIA","Adult Social Care","6CLONGT65","Long-Term Support 65+ Years","REV","Revenue","R4444","Older People - Fairlop","09-INCOME","Income","09C","Customer and Client Receipts","8545","Direct Payments Income","3611183","202107",09/10/2020 00:00:00,-364.84,"90005","Home Care Services DP","REDACTED DATA","REDACTED DATA","",,""
"London Borough of Redbridge","http://opendatacommunities.org/doc/london-borough-council/redbridge","6BADULTSOCIA","Adult Social Care","6CLONGT65","Long-Term Support 65+ Years","REV","Revenue","R4438","Older People - Cranbrook & Loxford","05-THIRD","Third Party Payments","05A","Independent units within the council","6502","Agency Homecare","91178235","202107",16/09/2020 00:00:00,813.28,"79980","Training Services","REDACTED DATA","CHOSEN CARE GROUP LTD","6942967","http://opencorporates.com/companies/gb/6942967",""
"London Borough of Redbridge","http://opendatacommunities.org/doc/london-borough-council/redbridge","1BOTHEROPI&E","Other Operating Income & Expenditure","1CTRADSURDEF","Trading Account Surpluses & Deficits","REV","Revenue","R9556","CLM Cleaning","02-PREMISES","Premises","02H","Cleaning and domestic supplies","4620","Cleaning Contract Payments","3612546","202107",30/06/2020 00:00:00,677.5,"12100","Business and Management Consultants","REDACTED DATA","KJP UK LTD T/A One Consulting Group","6591306","http://opencorporates.com/companies/gb/6591306","935274119"
"London Borough of Redbridge","http://opendatacommunities.org/doc/london-borough-council/redbridge","2BPLAN&DEVEL","Planning & Development Services","2CCOMMDEVT","Community Development","REV","Revenue","R9820","NHS Complaints Advocacy","04-SUPPLIES","Supplies And Services","04K","Miscellaneous expenses","6216","Contract","60442328","202107",30/09/2020 00:00:00,810,"22570","Counselling and Advice Services","REDACTED DATA","POhWER","3323040","http://opencorporates.com/companies/gb/3323040",""
"London Borough of Redbridge","http://opendatacommunities.org/doc/london-borough-council/redbridge","1BOTHEROPI&E","Other Operating Income & Expenditure","1CTRADSURDEF","Trading Account Surpluses & Deficits","REV","Revenue","R9551","CLM Maintenance","02-PREMISES","Premises","02A","Repairs, alteration and maintenance of buildings","3026","Minor Maintenance","3613785","202107",11/09/2020 00:00:00,673.5,"61961","Property Maintenance and Repairs","REDACTED DATA","Tecno Lift UK Ltd","7005630","http://opencorporates.com/companies/gb/7005630","9772289 68"
"London Borough of Redbridge","http://opendatacommunities.org/doc/london-borough-council/redbridge","1BOTHEROPI&E","Other Operating Income & Expenditure","1CTRADSURDEF","Trading Account Surpluses & Deficits","REV","Revenue","R9551","CLM Maintenance","02-PREMISES","Premises","02A","Repairs, alteration and maintenance of buildings","3026","Minor Maintenance","3613785","202107",11/09/2020 00:00:00,0,"61961","Property Maintenance and Repairs","REDACTED DATA","Tecno Lift UK Ltd","7005630","http://opencorporates.com/companies/gb/7005630","9772289 68"
"London Borough of Redbridge","http://opendatacommunities.org/doc/london-borough-council/redbridge","6BADULTSOCIA","Adult Social Care","6CNONSALT","Non-Salt and Support Services","REV","Revenue","R4448","Physical Disabilities - Wanstead & Woodford","06-TRANSFER","Transfer Payments","06B","Social Services Clients","7053","Direct Payments","3611348","202107",09/10/2020 00:00:00,903.48,"90005","Home Care Services DP","REDACTED DATA","REDACTED DATA","",,""
"London Borough of Redbridge","http://opendatacommunities.org/doc/london-borough-council/redbridge","6BADULTSOCIA","Adult Social Care","6CNONSALT","Non-Salt and Support Services","REV","Revenue","R4448","Physical Disabilities - Wanstead & Woodford","09-INCOME","Income","09C","Customer and Client Receipts","8545","Direct Payments Income","3611348","202107",09/10/2020 00:00:00,-96.84,"90005","Home Care Services DP","REDACTED DATA","REDACTED DATA","",,""
"London Borough of Redbridge","http://opendatacommunities.org/doc/london-borough-council/redbridge","1BOTHEROPI&E","Other Operating Income & Expenditure","1CTRADSURDEF","Trading Account Surpluses & Deficits","REV","Revenue","R9596","Corporate Facilities Team Staffing","04-SUPPLIES","Supplies And Services","04H","Grants and subscriptions","5954","Professional Fees","3613896","202107",13/09/2019 00:00:00,32,"31589","Engineering Services","REDACTED DATA","HERTEL SOLUTIONS LTD","2425951","http://opencorporates.com/companies/gb/2425951","168465863"
"London Borough of Redbridge","http://opendatacommunities.org/doc/london-borough-council/redbridge","1BOTHEROPI&E","Other Operating Income & Expenditure","1CTRADSURDEF","Trading Account Surpluses & Deficits","REV","Revenue","R9596","Corporate Facilities Team Staffing","04-SUPPLIES","Supplies And Services","04H","Grants and subscriptions","5954","Professional Fees","3613896","202107",13/09/2019 00:00:00,32,"31589","Engineering Services","REDACTED DATA","HERTEL SOLUTIONS LTD","2425951","http://opencorporates.com/companies/gb/2425951","168465863"
"London Borough of Redbridge","http://opendatacommunities.org/doc/london-borough-council/redbridge","1BOTHEROPI&E","Other Operating Income & Expenditure","1CTRADSURDEF","Trading Account Surpluses & Deficits","REV","Revenue","R9596","Corporate Facilities Team Staffing","04-SUPPLIES","Supplies And Services","04H","Grants and subscriptions","5954","Professional Fees","3613896","202107",13/09/2019 00:00:00,32,"31589","Engineering Services","REDACTED DATA","HERTEL SOLUTIONS LTD","2425951","http://opencorporates.com/companies/gb/2425951","168465863"
"London Borough of Redbridge","http://opendatacommunities.org/doc/london-borough-council/redbridge","1BOTHEROPI&E","Other Operating Income & Expenditure","1CTRADSURDEF","Trading Account Surpluses & Deficits","REV","Revenue","R9596","Corporate Facilities Team Staffing","04-SUPPLIES","Supplies And Services","04H","Grants and subscriptions","5954","Professional Fees","3613896","202107",13/09/2019 00:00:00,32,"31589","Engineering Services","REDACTED DATA","HERTEL SOLUTIONS LTD","2425951","http://opencorporates.com/companies/gb/2425951","168465863"
"London Borough of Redbridge","http://opendatacommunities.org/doc/london-borough-council/redbridge","1BOTHEROPI&E","Other Operating Income & Expenditure","1CTRADSURDEF","Trading Account Surpluses & Deficits","REV","Revenue","R9596","Corporate Facilities Team Staffing","04-SUPPLIES","Supplies And Services","04H","Grants and subscriptions","5954","Professional Fees","3613896","202107",13/09/2019 00:00:00,32,"31589","Engineering Services","REDACTED DATA","HERTEL SOLUTIONS LTD","2425951","http://opencorporates.com/companies/gb/2425951","168465863"
"London Borough of Redbridge","http://opendatacommunities.org/doc/london-borough-council/redbridge","1BOTHEROPI&E","Other Operating Income & Expenditure","1CTRADSURDEF","Trading Account Surpluses & Deficits","REV","Revenue","R9596","Corporate Facilities Team Staffing","04-SUPPLIES","Supplies And Services","04H","Grants and subscriptions","5954","Professional Fees","3613896","202107",13/09/2019 00:00:00,32,"31589","Engineering Services","REDACTED DATA","HERTEL SOLUTIONS LTD","2425951","http://opencorporates.com/companies/gb/2425951","168465863"
"London Borough of Redbridge","http://opendatacommunities.org/doc/london-borough-council/redbridge","1BOTHEROPI&E","Other Operating Income & Expenditure","1CTRADSURDEF","Trading Account Surpluses & Deficits","REV","Revenue","R9596","Corporate Facilities Team Staffing","04-SUPPLIES","Supplies And Services","04H","Grants and subscriptions","5954","Professional Fees","3613896","202107",13/09/2019 00:00:00,32,"31589","Engineering Services","REDACTED DATA","HERTEL SOLUTIONS LTD","2425951","http://opencorporates.com/companies/gb/2425951","168465863"
"London Borough of Redbridge","http://opendatacommunities.org/doc/london-borough-council/redbridge","1BOTHEROPI&E","Other Operating Income & Expenditure","1CTRADSURDEF","Trading Account Surpluses & Deficits","REV","Revenue","R9596","Corporate Facilities Team Staffing","04-SUPPLIES","Supplies And Services","04H","Grants and subscriptions","5954","Professional Fees","3613896","202107",13/09/2019 00:00:00,32,"31589","Engineering Services","REDACTED DATA","HERTEL SOLUTIONS LTD","2425951","http://opencorporates.com/companies/gb/2425951","168465863"
"London Borough of Redbridge","http://opendatacommunities.org/doc/london-borough-council/redbridge","1BOTHEROPI&E","Other Operating Income & Expenditure","1CTRADSURDEF","Trading Account Surpluses & Deficits","REV","Revenue","R9596","Corporate Facilities Team Staffing","04-SUPPLIES","Supplies And Services","04H","Grants and subscriptions","5954","Professional Fees","3613896","202107",13/09/2019 00:00:00,32,"31589","Engineering Services","REDACTED DATA","HERTEL SOLUTIONS LTD","2425951","http://opencorporates.com/companies/gb/2425951","168465863"
"London Borough of Redbridge","http://opendatacommunities.org/doc/london-borough-council/redbridge","1BOTHEROPI&E","Other Operating Income & Expenditure","1CTRADSURDEF","Trading Account Surpluses & Deficits","REV","Revenue","R9596","Corporate Facilities Team Staffing","04-SUPPLIES","Supplies And Services","04H","Grants and subscriptions","5954","Professional Fees","3613896","202107",13/09/2019 00:00:00,32,"31589","Engineering Services","REDACTED DATA","HERTEL SOLUTIONS LTD","2425951","http://opencorporates.com/companies/gb/2425951","168465863"
"London Borough of Redbridge","http://opendatacommunities.org/doc/london-borough-council/redbridge","1BOTHEROPI&E","Other Operating Income & Expenditure","1CTRADSURDEF","Trading Account Surpluses & Deficits","REV","Revenue","R9596","Corporate Facilities Team Staffing","04-SUPPLIES","Supplies And Services","04H","Grants and subscriptions","5954","Professional Fees","3613896","202107",13/09/2019 00:00:00,32,"31589","Engineering Services","REDACTED DATA","HERTEL SOLUTIONS LTD","2425951","http://opencorporates.com/companies/gb/2425951","168465863"
"London Borough of Redbridge","http://opendatacommunities.org/doc/london-borough-council/redbridge","1BOTHEROPI&E","Other Operating Income & Expenditure","1CTRADSURDEF","Trading Account Surpluses & Deficits","REV","Revenue","R9596","Corporate Facilities Team Staffing","04-SUPPLIES","Supplies And Services","04H","Grants and subscriptions","5954","Professional Fees","3613896","202107",13/09/2019 00:00:00,32,"31589","Engineering Services","REDACTED DATA","HERTEL SOLUTIONS LTD","2425951","http://opencorporates.com/companies/gb/2425951","168465863"
"London Borough of Redbridge","http://opendatacommunities.org/doc/london-borough-council/redbridge","1BOTHEROPI&E","Other Operating Income & Expenditure","1CTRADSURDEF","Trading Account Surpluses & Deficits","REV","Revenue","R9596","Corporate Facilities Team Staffing","04-SUPPLIES","Supplies And Services","04H","Grants and subscriptions","5954","Professional Fees","3613896","202107",13/09/2019 00:00:00,32,"31589","Engineering Services","REDACTED DATA","HERTEL SOLUTIONS LTD","2425951","http://opencorporates.com/companies/gb/2425951","168465863"
"London Borough of Redbridge","http://opendatacommunities.org/doc/london-borough-council/redbridge","1BOTHEROPI&E","Other Operating Income & Expenditure","1CTRADSURDEF","Trading Account Surpluses & Deficits","REV","Revenue","R9596","Corporate Facilities Team Staffing","04-SUPPLIES","Supplies And Services","04H","Grants and subscriptions","5954","Professional Fees","3613896","202107",13/09/2019 00:00:00,32,"31589","Engineering Services","REDACTED DATA","HERTEL SOLUTIONS LTD","2425951","http://opencorporates.com/companies/gb/2425951","168465863"
"London Borough of Redbridge","http://opendatacommunities.org/doc/london-borough-council/redbridge","1BOTHEROPI&E","Other Operating Income & Expenditure","1CTRADSURDEF","Trading Account Surpluses & Deficits","REV","Revenue","R9596","Corporate Facilities Team Staffing","04-SUPPLIES","Supplies And Services","04H","Grants and subscriptions","5954","Professional Fees","3613896","202107",13/09/2019 00:00:00,32,"31589","Engineering Services","REDACTED DATA","HERTEL SOLUTIONS LTD","2425951","http://opencorporates.com/companies/gb/2425951","168465863"
"London Borough of Redbridge","http://opendatacommunities.org/doc/london-borough-council/redbridge","1BOTHEROPI&E","Other Operating Income & Expenditure","1CTRADSURDEF","Trading Account Surpluses & Deficits","REV","Revenue","R9596","Corporate Facilities Team Staffing","04-SUPPLIES","Supplies And Services","04H","Grants and subscriptions","5954","Professional Fees","3613896","202107",13/09/2019 00:00:00,32,"31589","Engineering Services","REDACTED DATA","HERTEL SOLUTIONS LTD","2425951","http://opencorporates.com/companies/gb/2425951","168465863"
"London Borough of Redbridge","http://opendatacommunities.org/doc/london-borough-council/redbridge","1BOTHEROPI&E","Other Operating Income & Expenditure","1CTRADSURDEF","Trading Account Surpluses & Deficits","REV","Revenue","R9596","Corporate Facilities Team Staffing","04-SUPPLIES","Supplies And Services","04H","Grants and subscriptions","5954","Professional Fees","3613896","202107",13/09/2019 00:00:00,32,"31589","Engineering Services","REDACTED DATA","HERTEL SOLUTIONS LTD","2425951","http://opencorporates.com/companies/gb/2425951","168465863"
"London Borough of Redbridge","http://opendatacommunities.org/doc/london-borough-council/redbridge","1BOTHEROPI&E","Other Operating Income & Expenditure","1CTRADSURDEF","Trading Account Surpluses & Deficits","REV","Revenue","R9596","Corporate Facilities Team Staffing","04-SUPPLIES","Supplies And Services","04H","Grants and subscriptions","5954","Professional Fees","3613896","202107",13/09/2019 00:00:00,32,"31589","Engineering Services","REDACTED DATA","HERTEL SOLUTIONS LTD","2425951","http://opencorporates.com/companies/gb/2425951","168465863"
"London Borough of Redbridge","http://opendatacommunities.org/doc/london-borough-council/redbridge","1BOTHEROPI&E","Other Operating Income & Expenditure","1CTRADSURDEF","Trading Account Surpluses & Deficits","REV","Revenue","R9596","Corporate Facilities Team Staffing","04-SUPPLIES","Supplies And Services","04H","Grants and subscriptions","5954","Professional Fees","3613896","202107",13/09/2019 00:00:00,32,"31589","Engineering Services","REDACTED DATA","HERTEL SOLUTIONS LTD","2425951","http://opencorporates.com/companies/gb/2425951","168465863"
"London Borough of Redbridge","http://opendatacommunities.org/doc/london-borough-council/redbridge","1BOTHEROPI&E","Other Operating Income & Expenditure","1CTRADSURDEF","Trading Account Surpluses & Deficits","REV","Revenue","R9596","Corporate Facilities Team Staffing","04-SUPPLIES","Supplies And Services","04H","Grants and subscriptions","5954","Professional Fees","3613896","202107",13/09/2019 00:00:00,32,"31589","Engineering Services","REDACTED DATA","HERTEL SOLUTIONS LTD","2425951","http://opencorporates.com/companies/gb/2425951","168465863"
"London Borough of Redbridge","http://opendatacommunities.org/doc/london-borough-council/redbridge","1BOTHEROPI&E","Other Operating Income & Expenditure","1CTRADSURDEF","Trading Account Surpluses & Deficits","REV","Revenue","R9596","Corporate Facilities Team Staffing","04-SUPPLIES","Supplies And Services","04H","Grants and subscriptions","5954","Professional Fees","3613896","202107",13/09/2019 00:00:00,32,"31589","Engineering Services","REDACTED DATA","HERTEL SOLUTIONS LTD","2425951","http://opencorporates.com/companies/gb/2425951","168465863"
"London Borough of Redbridge","http://opendatacommunities.org/doc/london-borough-council/redbridge","6BADULTSOCIA","Adult Social Care","6CLONGT65","Long-Term Support 65+ Years","REV","Revenue","R4444","Older People - Fairlop","06-TRANSFER","Transfer Payments","06B","Social Services Clients","7053","Direct Payments","3611129","202107",09/10/2020 00:00:00,-1158.56,"90005","Home Care Services DP","REDACTED DATA","REDACTED DATA","",,""
"London Borough of Redbridge","http://opendatacommunities.org/doc/london-borough-council/redbridge","6BADULTSOCIA","Adult Social Care","6CLONGT65","Long-Term Support 65+ Years","REV","Revenue","R4444","Older People - Fairlop","06-TRANSFER","Transfer Payments","06B","Social Services Clients","7053","Direct Payments","3611129","202107",09/10/2020 00:00:00,2085,"90005","Home Care Services DP","REDACTED DATA","REDACTED DATA","",,""
"London Borough of Redbridge","http://opendatacommunities.org/doc/london-borough-council/redbridge","6BADULTSOCIA","Adult Social Care","6CLONGT65","Long-Term Support 65+ Years","REV","Revenue","R4444","Older People - Fairlop","09-INCOME","Income","09C","Customer and Client Receipts","8545","Direct Payments Income","3611129","202107",09/10/2020 00:00:00,-121.2,"90005","Home Care Services DP","REDACTED DATA","REDACTED DATA","",,""
"London Borough of Redbridge","http://opendatacommunities.org/doc/london-borough-council/redbridge","6BADULTSOCIA","Adult Social Care","6COTHADSERV","Other Adult Services","REV","Revenue","R4447","Older People - Wanstead & Woodford","05-THIRD","Third Party Payments","05H","Private contractors","6910","Care Packages","60441638","202107",01/09/2020 00:00:00,670.27,"8640","Boarding Kennels and Catteries","REDACTED DATA","CHINGFORD KENNELS & CATTERY","",,""
"London Borough of Redbridge","http://opendatacommunities.org/doc/london-borough-council/redbridge","9BNONBVO","Outside the BVACOP Objective Structure","9CNONBVO","Outside the BVACOP Objective Structure","REV","Revenue","R5132","Repairs and Maintenance - Other","02-PREMISES","Premises","02A","Repairs, alteration and maintenance of buildings","3038","Service Repairs","80037860","202107",08/10/2020 00:00:00,670.15,"9321","Boilers - Servicing, Replacements and Repairs","REDACTED DATA","ATLAS MAINTENANCE SERVICES LTD","8203263","http://opencorporates.com/companies/gb/8203263","313820630"
"London Borough of Redbridge","http://opendatacommunities.org/doc/london-borough-council/redbridge","6BADULTSOCIA","Adult Social Care","6CLONGT1864","Long-Term Support 18 - 64 Years","REV","Revenue","R4445","Physical Disabilities - Fairlop","06-TRANSFER","Transfer Payments","06B","Social Services Clients","7053","Direct Payments","3611298","202107",09/10/2020 00:00:00,1028.6,"90005","Home Care Services DP","REDACTED DATA","REDACTED DATA","",,""
"London Borough of Redbridge","http://opendatacommunities.org/doc/london-borough-council/redbridge","6BADULTSOCIA","Adult Social Care","6CLONGT1864","Long-Term Support 18 - 64 Years","REV","Revenue","R4445","Physical Disabilities - Fairlop","09-INCOME","Income","09C","Customer and Client Receipts","8545","Direct Payments Income","3611298","202107",09/10/2020 00:00:00,-224.52,"90005","Home Care Services DP","REDACTED DATA","REDACTED DATA","",,""
"London Borough of Redbridge","http://opendatacommunities.org/doc/london-borough-council/redbridge","1BOTHEROPI&E","Other Operating Income & Expenditure","1CTRADSURDEF","Trading Account Surpluses & Deficits","REV","Revenue","R9557","CLM Utilities","02-PREMISES","Premises","02E","Water services","4320","Water Charges & Sewerage","70115496","202107",07/07/2020 00:00:00,802.1,"83682","Water Companies","REDACTED DATA","THAMES WATER UTILITIES LTD","2366661","http://opencorporates.com/companies/gb/2366661",""
"London Borough of Redbridge","http://opendatacommunities.org/doc/london-borough-council/redbridge","1BOTHEROPI&E","Other Operating Income & Expenditure","1CTRADSURDEF","Trading Account Surpluses & Deficits","REV","Revenue","R9557","CLM Utilities","02-PREMISES","Premises","02B","Energy costs","4000","Electricity","70115602","202107",29/05/2020 00:00:00,667.12,"39564","Gas Companies","REDACTED DATA","KENT COUNTY COUNCIL (GAS & ELECTRIC)","",,"204269191"
"London Borough of Redbridge","http://opendatacommunities.org/doc/london-borough-council/redbridge","9BNONBVO","Outside the BVACOP Objective Structure","9CNONBVO","Outside the BVACOP Objective Structure","BAL","Balance Sheet","B0059","DUMMY VAT ACCOUNT","99-NONBV","Capital, Balance Sheet and Control","50L","Debtors","9359","VAT only invoices","70115665","202107",06/10/2020 00:00:00,-800.46,"24230","Debt Collection Agencies","REDACTED DATA","EQUITA LIMITED","",,""
"London Borough of Redbridge","http://opendatacommunities.org/doc/london-borough-council/redbridge","9BNONBVO","Outside the BVACOP Objective Structure","9CNONBVO","Outside the BVACOP Objective Structure","BAL","Balance Sheet","B0059","DUMMY VAT ACCOUNT","99-NONBV","Capital, Balance Sheet and Control","50L","Debtors","9359","VAT only invoices","70115665","202107",06/10/2020 00:00:00,800.46,"24230","Debt Collection Agencies","REDACTED DATA","EQUITA LIMITED","",,""
"London Borough of Redbridge","http://opendatacommunities.org/doc/london-borough-council/redbridge","6BSOCIALSERV","Social Services","6CCHILLOOKED","Children Looked After","REV","Revenue","R2117","SEN and CD Care and Support Packages Social Care","06-TRANSFER","Transfer Payments","06B","Social Services Clients","7050","Agency Homecare","60442277","202107",05/10/2020 00:00:00,800,"31230","Employment and Recruitment Agencies","REDACTED DATA","SHARED CARE SERVICES LTD","4704680","http://opencorporates.com/companies/gb/4704680",""
"London Borough of Redbridge","http://opendatacommunities.org/doc/london-borough-council/redbridge","6BSOCIALSERV","Social Services","6CCHILLOOKED","Children Looked After","REV","Revenue","R2117","SEN and CD Care and Support Packages Social Care","06-TRANSFER","Transfer Payments","06B","Social Services Clients","7050","Agency Homecare","60440795","202107",02/09/2020 00:00:00,800,"31230","Employment and Recruitment Agencies","REDACTED DATA","SHARED CARE SERVICES LTD","4704680","http://opencorporates.com/companies/gb/4704680",""
"London Borough of Redbridge","http://opendatacommunities.org/doc/london-borough-council/redbridge","6BSOCIALSERV","Social Services","6CCHILLOOKED","Children Looked After","REV","Revenue","R2117","SEN and CD Care and Support Packages Social Care","06-TRANSFER","Transfer Payments","06B","Social Services Clients","7050","Agency Homecare","60438817","202107",30/06/2020 00:00:00,800,"31230","Employment and Recruitment Agencies","REDACTED DATA","SHARED CARE SERVICES LTD","4704680","http://opencorporates.com/companies/gb/4704680",""
"London Borough of Redbridge","http://opendatacommunities.org/doc/london-borough-council/redbridge","6BSOCIALSERV","Social Services","6CCHILLOOKED","Children Looked After","REV","Revenue","R2149","Redbridge Safeguarding Children Partnership (RSCP)","01-EMPLOYEES","Employees","01B","Indirect employee expenses","2403","External Training","60441603","202107",01/10/2020 00:00:00,800,"79960","Training Consultants","REDACTED DATA","BAL KAUR HOWARD BKH TRAINING","",,""
"London Borough of Redbridge","http://opendatacommunities.org/doc/london-borough-council/redbridge","6BADULTSOCIA","Adult Social Care","6COLDINCMENT","Older People (65 or over) incl. Older Mentally Ill","REV","Revenue","R4340","Oakfield Lodge Sheltered Unit","04-SUPPLIES","Supplies And Services","04B","Catering","5601","Catering Provisions (Food & Drink)","60440385","202106",15/09/2020 00:00:00,797.83,"16250","Catering Food and Drink Suppliers","REDACTED DATA","THOMAS RIDLEY & SONS","",,""
"London Borough of Redbridge","http://opendatacommunities.org/doc/london-borough-council/redbridge","6BADULTSOCIA","Adult Social Care","6CLONGT65","Long-Term Support 65+ Years","REV","Revenue","R4446","Learning Disabilities - Wanstead and Woodford","06-TRANSFER","Transfer Payments","06B","Social Services Clients","7053","Direct Payments","3611404","202107",09/10/2020 00:00:00,798.76,"90005","Home Care Services DP","REDACTED DATA","REDACTED DATA","",,""
"London Borough of Redbridge","http://opendatacommunities.org/doc/london-borough-council/redbridge","6BSOCIALSERV","Social Services","6CCHILLOOKED","Children Looked After","REV","Revenue","R2177","Public Law Outline","04-SUPPLIES","Supplies And Services","04H","Grants and subscriptions","5954","Professional Fees","60443490","202107",27/10/2020 00:00:00,665,"6700","Barristers","REDACTED DATA","New Court Chambers","",,"305892296"
"London Borough of Redbridge","http://opendatacommunities.org/doc/london-borough-council/redbridge","6BADULTSOCIA","Adult Social Care","6COLDINCMENT","Older People (65 or over) incl. Older Mentally Ill","REV","Revenue","R4333","George Davis Lodge Sheltered Unit","04-SUPPLIES","Supplies And Services","04B","Catering","5601","Catering Provisions (Food & Drink)","60440205","202106",15/09/2020 00:00:00,782.18,"16250","Catering Food and Drink Suppliers","REDACTED DATA","THOMAS RIDLEY & SONS","",,""
"London Borough of Redbridge","http://opendatacommunities.org/doc/london-borough-council/redbridge","6BADULTSOCIA","Adult Social Care","6CLONGT65","Long-Term Support 65+ Years","REV","Revenue","R4438","Older People - Cranbrook & Loxford","05-THIRD","Third Party Payments","05A","Independent units within the council","6502","Agency Homecare","91176890","202107",15/09/2020 00:00:00,797.64,"79980","Training Services","REDACTED DATA","CHOSEN CARE GROUP LTD","6942967","http://opencorporates.com/companies/gb/6942967",""
"London Borough of Redbridge","http://opendatacommunities.org/doc/london-borough-council/redbridge","6BADULTSOCIA","Adult Social Care","6CLONGT65","Long-Term Support 65+ Years","REV","Revenue","R4444","Older People - Fairlop","05-THIRD","Third Party Payments","05A","Independent units within the council","6502","Agency Homecare","91177529","202107",05/10/2020 00:00:00,797.64,"43419","Home Care Services","REDACTED DATA","Spire Home Care & Training Limited","12254019","http://opencorporates.com/companies/gb/12254019",""
"London Borough of Redbridge","http://opendatacommunities.org/doc/london-borough-council/redbridge","6BADULTSOCIA","Adult Social Care","6CLONGT65","Long-Term Support 65+ Years","REV","Revenue","R4444","Older People - Fairlop","05-THIRD","Third Party Payments","05A","Independent units within the council","6502","Agency Homecare","91181101","202107",15/10/2020 00:00:00,797.64,"43419","Home Care Services","REDACTED DATA","Spire Home Care & Training Limited","12254019","http://opencorporates.com/companies/gb/12254019",""
"London Borough of Redbridge","http://opendatacommunities.org/doc/london-borough-council/redbridge","6BADULTSOCIA","Adult Social Care","6CLONGT65","Long-Term Support 65+ Years","REV","Revenue","R4444","Older People - Fairlop","05-THIRD","Third Party Payments","05A","Independent units within the council","6502","Agency Homecare","91179295","202107",10/10/2020 00:00:00,797.64,"43419","Home Care Services","REDACTED DATA","Spire Home Care & Training Limited","12254019","http://opencorporates.com/companies/gb/12254019",""
"London Borough of Redbridge","http://opendatacommunities.org/doc/london-borough-council/redbridge","6BADULTSOCIA","Adult Social Care","6CLONGT65","Long-Term Support 65+ Years","REV","Revenue","R4444","Older People - Fairlop","05-THIRD","Third Party Payments","05A","Independent units within the council","6502","Agency Homecare","91182389","202107",23/10/2020 00:00:00,797.64,"43419","Home Care Services","REDACTED DATA","Spire Home Care & Training Limited","12254019","http://opencorporates.com/companies/gb/12254019",""
"London Borough of Redbridge","http://opendatacommunities.org/doc/london-borough-council/redbridge","6BADULTSOCIA","Adult Social Care","6COTHADSERV","Other Adult Services","REV","Revenue","R4447","Older People - Wanstead & Woodford","05-THIRD","Third Party Payments","05A","Independent units within the council","6502","Agency Homecare","91180541","202107",15/10/2020 00:00:00,797.64,"43419","Home Care Services","REDACTED DATA","CARE NEXUS LTD T/A KARE PLUS REDBRIDGE","9099423316","http://opencorporates.com/companies/gb/9099423316","145075030"
"London Borough of Redbridge","http://opendatacommunities.org/doc/london-borough-council/redbridge","6BADULTSOCIA","Adult Social Care","6COTHADSERV","Other Adult Services","REV","Revenue","R4447","Older People - Wanstead & Woodford","05-THIRD","Third Party Payments","05A","Independent units within the council","6502","Agency Homecare","91180494","202107",15/10/2020 00:00:00,797.64,"43419","Home Care Services","REDACTED DATA","CARE NEXUS LTD T/A KARE PLUS REDBRIDGE","9099423316","http://opencorporates.com/companies/gb/9099423316","145075030"
"London Borough of Redbridge","http://opendatacommunities.org/doc/london-borough-council/redbridge","6BSOCIALSERV","Social Services","6CCHILLOOKED","Children Looked After","REV","Revenue","R2117","SEN and CD Care and Support Packages Social Care","06-TRANSFER","Transfer Payments","06B","Social Services Clients","7050","Agency Homecare","60442095","202107",07/10/2020 00:00:00,797.5,"43419","Home Care Services","REDACTED DATA","CARE AVENUES LIMITED","",,""
"London Borough of Redbridge","http://opendatacommunities.org/doc/london-borough-council/redbridge","3BINDSCHFUND","Individual School Funds","3CDELSECOND","Delegated Individual Secondary School Budgets","REV","Revenue","S2048","TRINITY : Capitation: English","04-SUPPLIES","Supplies And Services","04D","Printing, stationery and general office expenses","5700","Books","60440196","202106",14/09/2020 00:00:00,797.26,"29340","Educational Equipment and Supplies","REDACTED DATA","MBE, LABURNUM & BB (SCHOLASTIC)","7184031","http://opencorporates.com/companies/gb/7184031",""
"London Borough of Redbridge","http://opendatacommunities.org/doc/london-borough-council/redbridge","6BADULTSOCIA","Adult Social Care","6CLONGT1864","Long-Term Support 18 - 64 Years","REV","Revenue","R4437","Learning Disabilities - Cranbrook & Loxford","06-TRANSFER","Transfer Payments","06B","Social Services Clients","7066","Supported Living","91178210","202107",01/10/2020 00:00:00,797.23,"17020","Charities and Voluntary Organisations","REDACTED DATA","THREE C'S SUPPORT","2768427","http://opencorporates.com/companies/gb/2768427",""
"London Borough of Redbridge","http://opendatacommunities.org/doc/london-borough-council/redbridge","3BINDSCHFUND","Individual School Funds","3CDELSECOND","Delegated Individual Secondary School Budgets","REV","Revenue","S2013","TRINITY : Repairs and Maintenance Upper Site","02-PREMISES","Premises","02A","Repairs, alteration and maintenance of buildings","3056","Schools ONLY - Minor Maintenance","60442823","202107",26/08/2020 00:00:00,663.9,"16111","Catering Equipment","REDACTED DATA","J SCOTT & SONS  LTD","",,"354241082"
"London Borough of Redbridge","http://opendatacommunities.org/doc/london-borough-council/redbridge","1BOTHEROPI&E","Other Operating Income & Expenditure","1CTRADSURDEF","Trading Account Surpluses & Deficits","REV","Revenue","R9557","CLM Utilities","02-PREMISES","Premises","02B","Energy costs","4000","Electricity","70115501","202107",19/08/2020 00:00:00,663.66,"39564","Gas Companies","REDACTED DATA","KENT COUNTY COUNCIL (GAS & ELECTRIC)","",,"204269191"
"London Borough of Redbridge","http://opendatacommunities.org/doc/london-borough-council/redbridge","6BADULTSOCIA","Adult Social Care","6CLONGT65","Long-Term Support 65+ Years","REV","Revenue","R4446","Learning Disabilities - Wanstead and Woodford","06-TRANSFER","Transfer Payments","06B","Social Services Clients","7053","Direct Payments","3611463","202107",09/10/2020 00:00:00,986.68,"90005","Home Care Services DP","REDACTED DATA","REDACTED DATA","",,""
"London Borough of Redbridge","http://opendatacommunities.org/doc/london-borough-council/redbridge","6BADULTSOCIA","Adult Social Care","6CLONGT65","Long-Term Support 65+ Years","REV","Revenue","R4446","Learning Disabilities - Wanstead and Woodford","09-INCOME","Income","09C","Customer and Client Receipts","8545","Direct Payments Income","3611463","202107",09/10/2020 00:00:00,-191.6,"90005","Home Care Services DP","REDACTED DATA","REDACTED DATA","",,""
"London Borough of Redbridge","http://opendatacommunities.org/doc/london-borough-council/redbridge","6BADULTSOCIA","Adult Social Care","6CLONGT65","Long-Term Support 65+ Years","REV","Revenue","R4440","Learning Disabilities - Seven Kings","05-THIRD","Third Party Payments","05H","Private contractors","6904","Day Centres","91180105","202107",12/10/2020 00:00:00,334.7,"4855","Arts","REDACTED DATA","SNARESBROOK ARTS PROJECT","6503281","http://opencorporates.com/companies/gb/6503281",""
"London Borough of Redbridge","http://opendatacommunities.org/doc/london-borough-council/redbridge","6BADULTSOCIA","Adult Social Care","6CLONGT65","Long-Term Support 65+ Years","REV","Revenue","R4440","Learning Disabilities - Seven Kings","05-THIRD","Third Party Payments","05H","Private contractors","6904","Day Centres","91180105","202107",12/10/2020 00:00:00,125,"4855","Arts","REDACTED DATA","SNARESBROOK ARTS PROJECT","6503281","http://opencorporates.com/companies/gb/6503281",""
"London Borough of Redbridge","http://opendatacommunities.org/doc/london-borough-council/redbridge","6BADULTSOCIA","Adult Social Care","6CLONGT65","Long-Term Support 65+ Years","REV","Revenue","R4440","Learning Disabilities - Seven Kings","05-THIRD","Third Party Payments","05H","Private contractors","6904","Day Centres","91180099","202107",12/10/2020 00:00:00,125,"4855","Arts","REDACTED DATA","SNARESBROOK ARTS PROJECT","6503281","http://opencorporates.com/companies/gb/6503281",""
"London Borough of Redbridge","http://opendatacommunities.org/doc/london-borough-council/redbridge","6BADULTSOCIA","Adult Social Care","6CLONGT65","Long-Term Support 65+ Years","REV","Revenue","R4440","Learning Disabilities - Seven Kings","05-THIRD","Third Party Payments","05H","Private contractors","6904","Day Centres","91180093","202107",12/10/2020 00:00:00,334.7,"4855","Arts","REDACTED DATA","SNARESBROOK ARTS PROJECT","6503281","http://opencorporates.com/companies/gb/6503281",""
"London Borough of Redbridge","http://opendatacommunities.org/doc/london-borough-council/redbridge","6BADULTSOCIA","Adult Social Care","6CLONGT65","Long-Term Support 65+ Years","REV","Revenue","R4440","Learning Disabilities - Seven Kings","05-THIRD","Third Party Payments","05H","Private contractors","6904","Day Centres","91180093","202107",12/10/2020 00:00:00,334.7,"4855","Arts","REDACTED DATA","SNARESBROOK ARTS PROJECT","6503281","http://opencorporates.com/companies/gb/6503281",""
"London Borough of Redbridge","http://opendatacommunities.org/doc/london-borough-council/redbridge","6BADULTSOCIA","Adult Social Care","6CLONGT65","Long-Term Support 65+ Years","REV","Revenue","R4440","Learning Disabilities - Seven Kings","05-THIRD","Third Party Payments","05H","Private contractors","6904","Day Centres","91180093","202107",12/10/2020 00:00:00,125,"4855","Arts","REDACTED DATA","SNARESBROOK ARTS PROJECT","6503281","http://opencorporates.com/companies/gb/6503281",""
"London Borough of Redbridge","http://opendatacommunities.org/doc/london-borough-council/redbridge","6BADULTSOCIA","Adult Social Care","6CLONGT65","Long-Term Support 65+ Years","REV","Revenue","R4440","Learning Disabilities - Seven Kings","05-THIRD","Third Party Payments","05H","Private contractors","6904","Day Centres","91180111","202107",12/10/2020 00:00:00,334.7,"4855","Arts","REDACTED DATA","SNARESBROOK ARTS PROJECT","6503281","http://opencorporates.com/companies/gb/6503281",""
"London Borough of Redbridge","http://opendatacommunities.org/doc/london-borough-council/redbridge","6BADULTSOCIA","Adult Social Care","6CLONGT65","Long-Term Support 65+ Years","REV","Revenue","R4440","Learning Disabilities - Seven Kings","05-THIRD","Third Party Payments","05H","Private contractors","6904","Day Centres","91180111","202107",12/10/2020 00:00:00,125,"4855","Arts","REDACTED DATA","SNARESBROOK ARTS PROJECT","6503281","http://opencorporates.com/companies/gb/6503281",""
"London Borough of Redbridge","http://opendatacommunities.org/doc/london-borough-council/redbridge","6BADULTSOCIA","Adult Social Care","6CLONGT65","Long-Term Support 65+ Years","REV","Revenue","R4440","Learning Disabilities - Seven Kings","05-THIRD","Third Party Payments","05H","Private contractors","6904","Day Centres","91180111","202107",12/10/2020 00:00:00,334.7,"4855","Arts","REDACTED DATA","SNARESBROOK ARTS PROJECT","6503281","http://opencorporates.com/companies/gb/6503281",""
"London Borough of Redbridge","http://opendatacommunities.org/doc/london-borough-council/redbridge","6BADULTSOCIA","Adult Social Care","6CLONGT65","Long-Term Support 65+ Years","REV","Revenue","R4440","Learning Disabilities - Seven Kings","05-THIRD","Third Party Payments","05H","Private contractors","6904","Day Centres","91180088","202107",12/10/2020 00:00:00,334.7,"4855","Arts","REDACTED DATA","SNARESBROOK ARTS PROJECT","6503281","http://opencorporates.com/companies/gb/6503281",""
"London Borough of Redbridge","http://opendatacommunities.org/doc/london-borough-council/redbridge","6BADULTSOCIA","Adult Social Care","6CLONGT65","Long-Term Support 65+ Years","REV","Revenue","R4440","Learning Disabilities - Seven Kings","05-THIRD","Third Party Payments","05H","Private contractors","6904","Day Centres","91180088","202107",12/10/2020 00:00:00,334.7,"4855","Arts","REDACTED DATA","SNARESBROOK ARTS PROJECT","6503281","http://opencorporates.com/companies/gb/6503281",""
"London Borough of Redbridge","http://opendatacommunities.org/doc/london-borough-council/redbridge","6BADULTSOCIA","Adult Social Care","6CLONGT65","Long-Term Support 65+ Years","REV","Revenue","R4440","Learning Disabilities - Seven Kings","05-THIRD","Third Party Payments","05H","Private contractors","6904","Day Centres","91180088","202107",12/10/2020 00:00:00,125,"4855","Arts","REDACTED DATA","SNARESBROOK ARTS PROJECT","6503281","http://opencorporates.com/companies/gb/6503281",""
"London Borough of Redbridge","http://opendatacommunities.org/doc/london-borough-council/redbridge","6BADULTSOCIA","Adult Social Care","6CLONGT65","Long-Term Support 65+ Years","REV","Revenue","R4440","Learning Disabilities - Seven Kings","05-THIRD","Third Party Payments","05H","Private contractors","6904","Day Centres","91180105","202107",12/10/2020 00:00:00,334.7,"4855","Arts","REDACTED DATA","SNARESBROOK ARTS PROJECT","6503281","http://opencorporates.com/companies/gb/6503281",""
"London Borough of Redbridge","http://opendatacommunities.org/doc/london-borough-council/redbridge","6BADULTSOCIA","Adult Social Care","6CLONGT65","Long-Term Support 65+ Years","REV","Revenue","R4440","Learning Disabilities - Seven Kings","05-THIRD","Third Party Payments","05H","Private contractors","6904","Day Centres","91180099","202107",12/10/2020 00:00:00,334.7,"4855","Arts","REDACTED DATA","SNARESBROOK ARTS PROJECT","6503281","http://opencorporates.com/companies/gb/6503281",""
"London Borough of Redbridge","http://opendatacommunities.org/doc/london-borough-council/redbridge","6BADULTSOCIA","Adult Social Care","6CLONGT65","Long-Term Support 65+ Years","REV","Revenue","R4440","Learning Disabilities - Seven Kings","05-THIRD","Third Party Payments","05H","Private contractors","6904","Day Centres","91180099","202107",12/10/2020 00:00:00,334.7,"4855","Arts","REDACTED DATA","SNARESBROOK ARTS PROJECT","6503281","http://opencorporates.com/companies/gb/6503281",""
"London Borough of Redbridge","http://opendatacommunities.org/doc/london-borough-council/redbridge","6BADULTSOCIA","Adult Social Care","6CLONGT65","Long-Term Support 65+ Years","REV","Revenue","R4442","Physical Disabilities - Seven Kings","06-TRANSFER","Transfer Payments","06B","Social Services Clients","7053","Direct Payments","3611398","202107",09/10/2020 00:00:00,792.32,"90005","Home Care Services DP","REDACTED DATA","REDACTED DATA","",,""
"London Borough of Redbridge","http://opendatacommunities.org/doc/london-borough-council/redbridge","5BHRAEXPEND","HRA Expenditure","5CHOUMGTSUPP","Housing Management & Support Services","REV","Revenue","R5044","Housing IT System","04-SUPPLIES","Supplies And Services","04F","Communications and computing","5853","Computer Software","60442614","202107",06/10/2020 00:00:00,660,"12100","Business and Management Consultants","REDACTED DATA","M3 HOUSING LTD","4966582","http://opencorporates.com/companies/gb/4966582","832980608"
"London Borough of Redbridge","http://opendatacommunities.org/doc/london-borough-council/redbridge","9BNONBVO","Outside the BVACOP Objective Structure","9CNONBVO","Outside the BVACOP Objective Structure","REV","Revenue","R7701","Fleet Management","03-TRANSPORT","Transport","03C","Contract hire and operating leases","5201","Other Hired Transport","675885","202107",01/09/2020 00:00:00,660,"82050","Van and Truck Hire","REDACTED DATA","E H ROBERTS - PENET GROUP LTD","4590044","http://opencorporates.com/companies/gb/4590044",""
"London Borough of Redbridge","http://opendatacommunities.org/doc/london-borough-council/redbridge","4BMANGT&SUPP","Management & Support Services","4CHIGHRDROUT","Highways/Roads (Routine)","REV","Revenue","R7070","Reactive Maintenance","05-THIRD","Third Party Payments","05H","Private contractors","6915","Contractor Payments","3612801","202107",22/10/2020 00:00:00,659.98,"18632","Civil Engineers","REDACTED DATA","KENSON CONTRACTORS BENINGTON LTD","1314691","http://opencorporates.com/companies/gb/1314691","301629589"
"London Borough of Redbridge","http://opendatacommunities.org/doc/london-borough-council/redbridge","3BINDSCHFUND","Individual School Funds","3CDELSECOND","Delegated Individual Secondary School Budgets","REV","Revenue","S2001","TRINITY : Teachers - Supply","01-EMPLOYEES","Employees","01A","Direct employee expenses","4","Agency Staff - Pay","60440906","202106",23/09/2020 00:00:00,659.9,"31230","Employment and Recruitment Agencies","REDACTED DATA","ACADEMICS LIMITED","5709113","http://opencorporates.com/companies/gb/5709113",""
"London Borough of Redbridge","http://opendatacommunities.org/doc/london-borough-council/redbridge","3BINDSCHFUND","Individual School Funds","3CDELSECOND","Delegated Individual Secondary School Budgets","REV","Revenue","S2001","TRINITY : Teachers - Supply","01-EMPLOYEES","Employees","01A","Direct employee expenses","4","Agency Staff - Pay","60440597","202106",16/09/2020 00:00:00,659.9,"31230","Employment and Recruitment Agencies","REDACTED DATA","ACADEMICS LIMITED","5709113","http://opencorporates.com/companies/gb/5709113",""
"London Borough of Redbridge","http://opendatacommunities.org/doc/london-borough-council/redbridge","2BECODEV","Economic Development","","","REV","Revenue","R9870","School planned & reactive works","02-PREMISES","Premises","02A","Repairs, alteration and maintenance of buildings","3026","Minor Maintenance","3610872","202107",30/09/2020 00:00:00,659.2,"16111","Catering Equipment","REDACTED DATA","J SCOTT & SONS  LTD","",,"354241082"
"London Borough of Redbridge","http://opendatacommunities.org/doc/london-borough-council/redbridge","6BADULTSOCIA","Adult Social Care","6COTHADSERV","Other Adult Services","REV","Revenue","R4447","Older People - Wanstead & Woodford","05-THIRD","Third Party Payments","05H","Private contractors","6910","Care Packages","60441637","202107",01/08/2020 00:00:00,658.75,"8640","Boarding Kennels and Catteries","REDACTED DATA","CHINGFORD KENNELS & CATTERY","",,""
"London Borough of Redbridge","http://opendatacommunities.org/doc/london-borough-council/redbridge","6BADULTSOCIA","Adult Social Care","6CLONGT65","Long-Term Support 65+ Years","REV","Revenue","R4438","Older People - Cranbrook & Loxford","05-THIRD","Third Party Payments","05A","Independent units within the council","6502","Agency Homecare","91178247","202107",16/09/2020 00:00:00,789.82,"79980","Training Services","REDACTED DATA","CHOSEN CARE GROUP LTD","6942967","http://opencorporates.com/companies/gb/6942967",""
"London Borough of Redbridge","http://opendatacommunities.org/doc/london-borough-council/redbridge","9BNONBVO","Outside the BVACOP Objective Structure","9CNONBVO","Outside the BVACOP Objective Structure","REV","Revenue","R5132","Repairs and Maintenance - Other","02-PREMISES","Premises","02A","Repairs, alteration and maintenance of buildings","3038","Service Repairs","80037767","202106",15/09/2020 00:00:00,657.72,"66530","Satellite and Digital Television - Equipment and Services","REDACTED DATA","CABLE TELEVISION SERVICES LTD","",,""
"London Borough of Redbridge","http://opendatacommunities.org/doc/london-borough-council/redbridge","6BADULTSOCIA","Adult Social Care","6CLONGT65","Long-Term Support 65+ Years","REV","Revenue","R4438","Older People - Cranbrook & Loxford","06-TRANSFER","Transfer Payments","06B","Social Services Clients","7053","Direct Payments","3611233","202107",09/10/2020 00:00:00,1070.32,"90005","Home Care Services DP","REDACTED DATA","REDACTED DATA","",,""
"London Borough of Redbridge","http://opendatacommunities.org/doc/london-borough-council/redbridge","6BADULTSOCIA","Adult Social Care","6CLONGT65","Long-Term Support 65+ Years","REV","Revenue","R4438","Older People - Cranbrook & Loxford","09-INCOME","Income","09C","Customer and Client Receipts","8545","Direct Payments Income","3611233","202107",09/10/2020 00:00:00,-281.96,"90005","Home Care Services DP","REDACTED DATA","REDACTED DATA","",,""
"London Borough of Redbridge","http://opendatacommunities.org/doc/london-borough-council/redbridge","3BNONSCHFUND","Non-School Funding","3CNONSCH","Non Schools","REV","Revenue","R3962","Early Years - 3 and 4 Year Olds","05-THIRD","Third Party Payments","05A","Independent units within the council","6517","Non-Maintained Schools","3613297","202107",26/10/2020 00:00:00,785.92,"17600","Childminders","REDACTED DATA","JAYSHREE RAMDHARY","4150284970","http://opencorporates.com/companies/gb/4150284970",""
"London Borough of Redbridge","http://opendatacommunities.org/doc/london-borough-council/redbridge","6BADULTSOCIA","Adult Social Care","6CLONGT1864","Long-Term Support 18 - 64 Years","REV","Revenue","R4443","Learning Disabilities - Fairlop","06-TRANSFER","Transfer Payments","06B","Social Services Clients","7066","Supported Living","91176797","202107",01/10/2020 00:00:00,784.76,"43419","Home Care Services","REDACTED DATA","KINGS LODGE","",,""
"London Borough of Redbridge","http://opendatacommunities.org/doc/london-borough-council/redbridge","6BADULTSOCIA","Adult Social Care","6CLONGT65","Long-Term Support 65+ Years","REV","Revenue","R4446","Learning Disabilities - Wanstead and Woodford","06-TRANSFER","Transfer Payments","06B","Social Services Clients","7053","Direct Payments","3611450","202107",09/10/2020 00:00:00,784.64,"90005","Home Care Services DP","REDACTED DATA","REDACTED DATA","",,""
"London Borough of Redbridge","http://opendatacommunities.org/doc/london-borough-council/redbridge","6BADULTSOCIA","Adult Social Care","6CLONGT1864","Long-Term Support 18 - 64 Years","REV","Revenue","R4445","Physical Disabilities - Fairlop","06-TRANSFER","Transfer Payments","06B","Social Services Clients","7053","Direct Payments","3611420","202107",09/10/2020 00:00:00,806.24,"90005","Home Care Services DP","REDACTED DATA","REDACTED DATA","",,""
"London Borough of Redbridge","http://opendatacommunities.org/doc/london-borough-council/redbridge","6BADULTSOCIA","Adult Social Care","6CLONGT1864","Long-Term Support 18 - 64 Years","REV","Revenue","R4445","Physical Disabilities - Fairlop","09-INCOME","Income","09C","Customer and Client Receipts","8545","Direct Payments Income","3611420","202107",09/10/2020 00:00:00,-22.28,"90005","Home Care Services DP","REDACTED DATA","REDACTED DATA","",,""
"London Borough of Redbridge","http://opendatacommunities.org/doc/london-borough-council/redbridge","6BADULTSOCIA","Adult Social Care","6CLONGT65","Long-Term Support 65+ Years","REV","Revenue","R4444","Older People - Fairlop","06-TRANSFER","Transfer Payments","06B","Social Services Clients","7053","Direct Payments","3611193","202107",09/10/2020 00:00:00,1167.6,"90005","Home Care Services DP","REDACTED DATA","REDACTED DATA","",,""
"London Borough of Redbridge","http://opendatacommunities.org/doc/london-borough-council/redbridge","6BADULTSOCIA","Adult Social Care","6CLONGT65","Long-Term Support 65+ Years","REV","Revenue","R4444","Older People - Fairlop","09-INCOME","Income","09C","Customer and Client Receipts","8545","Direct Payments Income","3611193","202107",09/10/2020 00:00:00,-384.16,"90005","Home Care Services DP","REDACTED DATA","REDACTED DATA","",,""
"London Borough of Redbridge","http://opendatacommunities.org/doc/london-borough-council/redbridge","6BADULTSOCIA","Adult Social Care","6CLONGT65","Long-Term Support 65+ Years","REV","Revenue","R4438","Older People - Cranbrook & Loxford","06-TRANSFER","Transfer Payments","06B","Social Services Clients","7053","Direct Payments","3611443","202107",09/10/2020 00:00:00,1125.88,"90005","Home Care Services DP","REDACTED DATA","REDACTED DATA","",,""
"London Borough of Redbridge","http://opendatacommunities.org/doc/london-borough-council/redbridge","6BADULTSOCIA","Adult Social Care","6CLONGT65","Long-Term Support 65+ Years","REV","Revenue","R4438","Older People - Cranbrook & Loxford","09-INCOME","Income","09C","Customer and Client Receipts","8545","Direct Payments Income","3611443","202107",09/10/2020 00:00:00,-672.4,"90005","Home Care Services DP","REDACTED DATA","REDACTED DATA","",,""
"London Borough of Redbridge","http://opendatacommunities.org/doc/london-borough-council/redbridge","6BADULTSOCIA","Adult Social Care","6CLONGT65","Long-Term Support 65+ Years","REV","Revenue","R4438","Older People - Cranbrook & Loxford","09-INCOME","Income","09C","Customer and Client Receipts","8545","Direct Payments Income","3611443","202107",09/10/2020 00:00:00,328.24,"90005","Home Care Services DP","REDACTED DATA","REDACTED DATA","",,""
"London Borough of Redbridge","http://opendatacommunities.org/doc/london-borough-council/redbridge","9BNONBVO","Outside the BVACOP Objective Structure","9CNONBVO","Outside the BVACOP Objective Structure","REV","Revenue","R5214","Environmental Services Team","02-PREMISES","Premises","02H","Cleaning and domestic supplies","4622","Cleaning Equipment & Materials","60442619","202107",14/10/2020 00:00:00,651,"19000","Cleaning Contractors Equipment and Supplies","REDACTED DATA","GREENER SOLUTIONS LTD","7341234","http://opencorporates.com/companies/gb/7341234","100425578"
"London Borough of Redbridge","http://opendatacommunities.org/doc/london-borough-council/redbridge","3BINDSCHFUND","Individual School Funds","3CDELSECOND","Delegated Individual Secondary School Budgets","REV","Revenue","S2007","TRINITY : Continual Professional Devlelopment","01-EMPLOYEES","Employees","01B","Indirect employee expenses","2403","External Training","60441848","202107",03/10/2020 00:00:00,650,"29380","Educational Training Providers","REDACTED DATA","THE SCHOOLS NETWORK LTD","8073410","http://opencorporates.com/companies/gb/8073410","135221255"
"London Borough of Redbridge","http://opendatacommunities.org/doc/london-borough-council/redbridge","6BADULTSOCIA","Adult Social Care","6CADMENHLTH","Adults Under 65 with Mental Health Needs","REV","Revenue","R4213","MH Direct Payments","06-TRANSFER","Transfer Payments","06B","Social Services Clients","7053","Direct Payments","3611518","202107",09/10/2020 00:00:00,779.52,"90005","Home Care Services DP","REDACTED DATA","REDACTED DATA","",,""
"London Borough of Redbridge","http://opendatacommunities.org/doc/london-borough-council/redbridge","5BGFHOUSING","General Fund Housing","5CHOMELESS","Homelessness","REV","Revenue","R5622","The Foyer","02-PREMISES","Premises","02B","Energy costs","4002","Gas","80037805","202106",08/04/2020 00:00:00,741.72,"30586","Electricity Companies","REDACTED DATA","CORONA ENERGY RETAIL 4 LIMITED","2798334","http://opencorporates.com/companies/gb/2798334",""
"London Borough of Redbridge","http://opendatacommunities.org/doc/london-borough-council/redbridge","5BGFHOUSING","General Fund Housing","5CHOMELESS","Homelessness","REV","Revenue","R5622","The Foyer","02-PREMISES","Premises","02B","Energy costs","4002","Gas","80037810","202106",05/08/2020 00:00:00,741.49,"30586","Electricity Companies","REDACTED DATA","CORONA ENERGY RETAIL 4 LIMITED","2798334","http://opencorporates.com/companies/gb/2798334",""
"London Borough of Redbridge","http://opendatacommunities.org/doc/london-borough-council/redbridge","6BADULTSOCIA","Adult Social Care","6CLONGT1864","Long-Term Support 18 - 64 Years","REV","Revenue","R4437","Learning Disabilities - Cranbrook & Loxford","06-TRANSFER","Transfer Payments","06B","Social Services Clients","7053","Direct Payments","3611613","202107",09/10/2020 00:00:00,778.4,"90005","Home Care Services DP","REDACTED DATA","REDACTED DATA","",,""
"London Borough of Redbridge","http://opendatacommunities.org/doc/london-borough-council/redbridge","6BADULTSOCIA","Adult Social Care","6CLONGT1864","Long-Term Support 18 - 64 Years","REV","Revenue","R4441","Older People - Seven Kings","06-TRANSFER","Transfer Payments","06B","Social Services Clients","7053","Direct Payments","3611453","202107",09/10/2020 00:00:00,778.4,"90005","Home Care Services DP","REDACTED DATA","REDACTED DATA","",,""
"London Borough of Redbridge","http://opendatacommunities.org/doc/london-borough-council/redbridge","6BADULTSOCIA","Adult Social Care","6CLONGT65","Long-Term Support 65+ Years","REV","Revenue","R4438","Older People - Cranbrook & Loxford","06-TRANSFER","Transfer Payments","06B","Social Services Clients","7053","Direct Payments","3611380","202107",09/10/2020 00:00:00,778.4,"90005","Home Care Services DP","REDACTED DATA","REDACTED DATA","",,""
"London Borough of Redbridge","http://opendatacommunities.org/doc/london-borough-council/redbridge","6BADULTSOCIA","Adult Social Care","6CLONGT65","Long-Term Support 65+ Years","REV","Revenue","R4439","Physical Disabilities - Cranbrook & Loxford","06-TRANSFER","Transfer Payments","06B","Social Services Clients","7053","Direct Payments","3611176","202107",09/10/2020 00:00:00,778.4,"90005","Home Care Services DP","REDACTED DATA","REDACTED DATA","",,""
"London Borough of Redbridge","http://opendatacommunities.org/doc/london-borough-council/redbridge","6BADULTSOCIA","Adult Social Care","6CLONGT65","Long-Term Support 65+ Years","REV","Revenue","R4440","Learning Disabilities - Seven Kings","06-TRANSFER","Transfer Payments","06B","Social Services Clients","7053","Direct Payments","3611533","202107",09/10/2020 00:00:00,778.4,"90005","Home Care Services DP","REDACTED DATA","REDACTED DATA","",,""
"London Borough of Redbridge","http://opendatacommunities.org/doc/london-borough-council/redbridge","6BADULTSOCIA","Adult Social Care","6CLONGT65","Long-Term Support 65+ Years","REV","Revenue","R4442","Physical Disabilities - Seven Kings","06-TRANSFER","Transfer Payments","06B","Social Services Clients","7053","Direct Payments","3611523","202107",09/10/2020 00:00:00,778.4,"90005","Home Care Services DP","REDACTED DATA","REDACTED DATA","",,""
"London Borough of Redbridge","http://opendatacommunities.org/doc/london-borough-council/redbridge","6BADULTSOCIA","Adult Social Care","6CLONGT65","Long-Term Support 65+ Years","REV","Revenue","R4444","Older People - Fairlop","06-TRANSFER","Transfer Payments","06B","Social Services Clients","7053","Direct Payments","3611616","202107",09/10/2020 00:00:00,778.4,"90005","Home Care Services DP","REDACTED DATA","REDACTED DATA","",,""
"London Borough of Redbridge","http://opendatacommunities.org/doc/london-borough-council/redbridge","3BINDSCHFUND","Individual School Funds","3CDELSECOND","Delegated Individual Secondary School Budgets","REV","Revenue","S3571","KING SOLOMON - Exams","04-SUPPLIES","Supplies And Services","04H","Grants and subscriptions","5955","Fees","60442752","202107",15/09/2020 00:00:00,648.49,"62450","Publishers","REDACTED DATA","PEARSON EDUCATION LTD(HARLOW)","8728828","http://opencorporates.com/companies/gb/8728828","278537121"
"London Borough of Redbridge","http://opendatacommunities.org/doc/london-borough-council/redbridge","3BINDSCHFUND","Individual School Funds","3CDELSECOND","Delegated Individual Secondary School Budgets","REV","Revenue","S3561","KING SOLOMON -  Modern Foreign Languages","04-SUPPLIES","Supplies And Services","04A","Equipment, furniture and materials","5502","Equipment Purchase","60440145","202106",09/09/2020 00:00:00,648.49,"62450","Publishers","REDACTED DATA","PEARSON EDUCATION LTD(HARLOW)","8728828","http://opencorporates.com/companies/gb/8728828",""
"London Borough of Redbridge","http://opendatacommunities.org/doc/london-borough-council/redbridge","2BBUSISUP","Business Support","","","REV","Revenue","R6534","P & BC General Services","04-SUPPLIES","Supplies And Services","04D","Printing, stationery and general office expenses","5705","Postage","60443069","202107",30/06/2020 00:00:00,647.7,"49180","Mailing Houses","REDACTED DATA","OPUS TRUST MARKETING LIMITED","3829462","http://opencorporates.com/companies/gb/3829462","232730729"
"London Borough of Redbridge","http://opendatacommunities.org/doc/london-borough-council/redbridge","1BOTHEROPI&E","Other Operating Income & Expenditure","1CTRADSURDEF","Trading Account Surpluses & Deficits","REV","Revenue","R9352","Legal Supplies & Services","04-SUPPLIES","Supplies And Services","04D","Printing, stationery and general office expenses","5705","Postage","60441672","202107",30/09/2020 00:00:00,647.23,"22620","Courier and Messenger Services","REDACTED DATA","ANGELS COURIER SERVICE LTD","2949091","http://opencorporates.com/companies/gb/2949091","648831896"
"London Borough of Redbridge","http://opendatacommunities.org/doc/london-borough-council/redbridge","6BSOCIALSERV","Social Services","6CCHILLOOKED","Children Looked After","REV","Revenue","R2117","SEN and CD Care and Support Packages Social Care","06-TRANSFER","Transfer Payments","06B","Social Services Clients","7050","Agency Homecare","60443240","202107",10/10/2019 00:00:00,776,"31230","Employment and Recruitment Agencies","REDACTED DATA","SHARED CARE SERVICES LTD","4704680","http://opencorporates.com/companies/gb/4704680",""
"London Borough of Redbridge","http://opendatacommunities.org/doc/london-borough-council/redbridge","3BINDSCHFUND","Individual School Funds","3CDELPRIMARY","Delegated Individual Primary School Budgets","REV","Revenue","S2335","GROVE : COMPUTERS","04-SUPPLIES","Supplies And Services","04F","Communications and computing","5862","Curriculum Software","60442685","202107",09/10/2020 00:00:00,646,"32415","Environmental Consultants","REDACTED DATA","THE KEY SUPPORT SERVICES LTD","8268303","http://opencorporates.com/companies/gb/8268303","185442884"
"London Borough of Redbridge","http://opendatacommunities.org/doc/london-borough-council/redbridge","2BECODEV","Economic Development","","","REV","Revenue","R9870","School planned & reactive works","02-PREMISES","Premises","02A","Repairs, alteration and maintenance of buildings","3026","Minor Maintenance","3612527","202107",12/10/2020 00:00:00,645.99,"11040","Builders","REDACTED DATA","M & G CONSTRUCTION LTD.","1918880","http://opencorporates.com/companies/gb/1918880","406392853"
"London Borough of Redbridge","http://opendatacommunities.org/doc/london-borough-council/redbridge","6BSOCIALSERV","Social Services","6CCHILLOOKED","Children Looked After","REV","Revenue","R2117","SEN and CD Care and Support Packages Social Care","06-TRANSFER","Transfer Payments","06B","Social Services Clients","7050","Agency Homecare","60440750","202106",15/09/2020 00:00:00,775,"79980","Training Services","REDACTED DATA","ASK CARE LTD","5656634","http://opencorporates.com/companies/gb/5656634",""
"London Borough of Redbridge","http://opendatacommunities.org/doc/london-borough-council/redbridge","1BOTHEROPI&E","Other Operating Income & Expenditure","1CTRADSURDEF","Trading Account Surpluses & Deficits","REV","Revenue","R9576","Broadway Chambers Service Charge Account","02-PREMISES","Premises","02H","Cleaning and domestic supplies","4620","Cleaning Contract Payments","3612557","202107",06/10/2020 00:00:00,642.48,"15269","Cleaning Services - Commercial","REDACTED DATA","LEWIS & GRAVES PARTNERSHIP LLP","8953594","http://opencorporates.com/companies/gb/8953594","135553810"
"London Borough of Redbridge","http://opendatacommunities.org/doc/london-borough-council/redbridge","1BOTHEROPI&E","Other Operating Income & Expenditure","1CTRADSURDEF","Trading Account Surpluses & Deficits","REV","Revenue","R9551","CLM Maintenance","02-PREMISES","Premises","02A","Repairs, alteration and maintenance of buildings","3037","Service Contracts","3609031","202106",17/09/2020 00:00:00,641.92,"30580","Electricians and Electrical Contractors","REDACTED DATA","AJS LTD","2944618","http://opencorporates.com/companies/gb/2944618",""
"London Borough of Redbridge","http://opendatacommunities.org/doc/london-borough-council/redbridge","3BINDSCHFUND","Individual School Funds","3CDELSECOND","Delegated Individual Secondary School Budgets","REV","Revenue","S2075","TRINITY : ICT learning resources","04-SUPPLIES","Supplies And Services","04H","Grants and subscriptions","5956","Subscriptions","60442478","202107",13/10/2020 00:00:00,641.58,"20703","Computer Systems and Software","REDACTED DATA","PQ TRAINING UK LTD T/A JOSKOS SOLUTIONS","4212442","http://opencorporates.com/companies/gb/4212442","774327413"
"London Borough of Redbridge","http://opendatacommunities.org/doc/london-borough-council/redbridge","3BNONSCHFUND","Non-School Funding","3CNONSCH","Non Schools","REV","Revenue","R3962","Early Years - 3 and 4 Year Olds","05-THIRD","Third Party Payments","05A","Independent units within the council","6517","Non-Maintained Schools","3613398","202107",26/10/2020 00:00:00,769.86,"59760","Playgroups, Nurseries and Creches","REDACTED DATA","WOODFORD PRE-SCHOOL PLAYGROUP","",,""
"London Borough of Redbridge","http://opendatacommunities.org/doc/london-borough-council/redbridge","6BSOCIALSERV","Social Services","6CASYLUMSEEK","Asylum Seekers","REV","Revenue","R2129","Unaccompanied Asylum Seekers","05-THIRD","Third Party Payments","05E","Government departments","6962","Semi-Independent (Children Services)","60441537","202107",30/09/2020 00:00:00,769.32,"47846","Letting Agents","REDACTED DATA","FINEFAIR CONSULTANCY  LTD(NIGHTLY LETS)","4661895","http://opencorporates.com/companies/gb/4661895","809945391"
"London Borough of Redbridge","http://opendatacommunities.org/doc/london-borough-council/redbridge","6BSOCIALSERV","Social Services","6CASYLUMSEEK","Asylum Seekers","REV","Revenue","R2129","Unaccompanied Asylum Seekers","05-THIRD","Third Party Payments","05E","Government departments","6962","Semi-Independent (Children Services)","60441938","202107",30/09/2020 00:00:00,769.32,"47846","Letting Agents","REDACTED DATA","FINEFAIR CONSULTANCY  LTD(NIGHTLY LETS)","4661895","http://opencorporates.com/companies/gb/4661895","809945391"
"London Borough of Redbridge","http://opendatacommunities.org/doc/london-borough-council/redbridge","6BSOCIALSERV","Social Services","6CASYLUMSEEK","Asylum Seekers","REV","Revenue","R2129","Unaccompanied Asylum Seekers","05-THIRD","Third Party Payments","05E","Government departments","6962","Semi-Independent (Children Services)","60441930","202107",30/09/2020 00:00:00,769.32,"47846","Letting Agents","REDACTED DATA","FINEFAIR CONSULTANCY  LTD(NIGHTLY LETS)","4661895","http://opencorporates.com/companies/gb/4661895","809945391"
"London Borough of Redbridge","http://opendatacommunities.org/doc/london-borough-council/redbridge","6BSOCIALSERV","Social Services","6CCHILCOMSNG","Children's Services - Commissioning & Social Work","REV","Revenue","R2186","F&A - Leaving Care Team","04-SUPPLIES","Supplies And Services","04K","Miscellaneous expenses","6289","Children Services Supportive Activities","60441989","202107",30/09/2020 00:00:00,769.32,"47846","Letting Agents","REDACTED DATA","FINEFAIR CONSULTANCY  LTD(NIGHTLY LETS)","4661895","http://opencorporates.com/companies/gb/4661895","809945391"
"London Borough of Redbridge","http://opendatacommunities.org/doc/london-borough-council/redbridge","6BSOCIALSERV","Social Services","6CCHILCOMSNG","Children's Services - Commissioning & Social Work","REV","Revenue","R2186","F&A - Leaving Care Team","05-THIRD","Third Party Payments","05E","Government departments","6962","Semi-Independent (Children Services)","60441987","202107",30/09/2020 00:00:00,769.32,"47846","Letting Agents","REDACTED DATA","FINEFAIR CONSULTANCY  LTD(NIGHTLY LETS)","4661895","http://opencorporates.com/companies/gb/4661895","809945391"
"London Borough of Redbridge","http://opendatacommunities.org/doc/london-borough-council/redbridge","6BADULTSOCIA","Adult Social Care","6CLONGT65","Long-Term Support 65+ Years","REV","Revenue","R4438","Older People - Cranbrook & Loxford","05-THIRD","Third Party Payments","05A","Independent units within the council","6502","Agency Homecare","91176865","202107",14/09/2020 00:00:00,768.69,"79980","Training Services","REDACTED DATA","CHOSEN CARE GROUP LTD","6942967","http://opencorporates.com/companies/gb/6942967",""
"London Borough of Redbridge","http://opendatacommunities.org/doc/london-borough-council/redbridge","6BADULTSOCIA","Adult Social Care","6CLONGT65","Long-Term Support 65+ Years","REV","Revenue","R4440","Learning Disabilities - Seven Kings","05-THIRD","Third Party Payments","05A","Independent units within the council","6502","Agency Homecare","91179777","202107",06/10/2020 00:00:00,767.44,"43419","Home Care Services","REDACTED DATA","REDSPOT CARE LTD","4391659","http://opencorporates.com/companies/gb/4391659",""
"London Borough of Redbridge","http://opendatacommunities.org/doc/london-borough-council/redbridge","6BADULTSOCIA","Adult Social Care","6CLONGT65","Long-Term Support 65+ Years","REV","Revenue","R4440","Learning Disabilities - Seven Kings","05-THIRD","Third Party Payments","05A","Independent units within the council","6502","Agency Homecare","91179758","202107",06/10/2020 00:00:00,767.44,"43419","Home Care Services","REDACTED DATA","REDSPOT CARE LTD","4391659","http://opencorporates.com/companies/gb/4391659",""
"London Borough of Redbridge","http://opendatacommunities.org/doc/london-borough-council/redbridge","6BADULTSOCIA","Adult Social Care","6CLONGT65","Long-Term Support 65+ Years","REV","Revenue","R4440","Learning Disabilities - Seven Kings","05-THIRD","Third Party Payments","05A","Independent units within the council","6502","Agency Homecare","91179740","202107",06/10/2020 00:00:00,767.44,"43419","Home Care Services","REDACTED DATA","REDSPOT CARE LTD","4391659","http://opencorporates.com/companies/gb/4391659",""
"London Borough of Redbridge","http://opendatacommunities.org/doc/london-borough-council/redbridge","6BADULTSOCIA","Adult Social Care","6CLONGT65","Long-Term Support 65+ Years","REV","Revenue","R4440","Learning Disabilities - Seven Kings","05-THIRD","Third Party Payments","05A","Independent units within the council","6502","Agency Homecare","91179722","202107",06/10/2020 00:00:00,767.44,"43419","Home Care Services","REDACTED DATA","REDSPOT CARE LTD","4391659","http://opencorporates.com/companies/gb/4391659",""
"London Borough of Redbridge","http://opendatacommunities.org/doc/london-borough-council/redbridge","6BADULTSOCIA","Adult Social Care","6CADMENHLTH","Adults Under 65 with Mental Health Needs","REV","Revenue","R4213","MH Direct Payments","06-TRANSFER","Transfer Payments","06B","Social Services Clients","7053","Direct Payments","3611247","202107",09/10/2020 00:00:00,767.28,"90005","Home Care Services DP","REDACTED DATA","REDACTED DATA","",,""
"London Borough of Redbridge","http://opendatacommunities.org/doc/london-borough-council/redbridge","9BNONBVO","Outside the BVACOP Objective Structure","9CNONBVO","Outside the BVACOP Objective Structure","REV","Revenue","R7602","Street Cleansing","04-SUPPLIES","Supplies And Services","04C","Clothes, uniform and laundry","5651","Protective Clothing","60441129","202107",25/09/2020 00:00:00,635.87,"81420","Uniforms and Staff Wear","REDACTED DATA","SMI INT GROUP LTD","7644080","http://opencorporates.com/companies/gb/7644080","217124496"
"London Borough of Redbridge","http://opendatacommunities.org/doc/london-borough-council/redbridge","1BOTHEROPI&E","Other Operating Income & Expenditure","1CTRADSURDEF","Trading Account Surpluses & Deficits","REV","Revenue","R9556","CLM Cleaning","02-PREMISES","Premises","02H","Cleaning and domestic supplies","4620","Cleaning Contract Payments","3612561","202107",31/08/2020 00:00:00,635,"15269","Cleaning Services - Commercial","REDACTED DATA","INTEGRA CLEANING GROUP LTD T/A INTEGRA CLEANING SERVICES","11515809","http://opencorporates.com/companies/gb/11515809","306040161"
"London Borough of Redbridge","http://opendatacommunities.org/doc/london-borough-council/redbridge","6BSOCIALSERV","Social Services","6CCHILLOOKED","Children Looked After","REV","Revenue","R2117","SEN and CD Care and Support Packages Social Care","06-TRANSFER","Transfer Payments","06B","Social Services Clients","7050","Agency Homecare","60442175","202107",07/10/2020 00:00:00,761.12,"43419","Home Care Services","REDACTED DATA","VERITY HEALTHCARE LIMITED","7462140","http://opencorporates.com/companies/gb/7462140","142783505"
"London Borough of Redbridge","http://opendatacommunities.org/doc/london-borough-council/redbridge","9BNONBVO","Outside the BVACOP Objective Structure","9CNONBVO","Outside the BVACOP Objective Structure","REV","Revenue","R7602","Street Cleansing","04-SUPPLIES","Supplies And Services","04A","Equipment, furniture and materials","5502","Equipment Purchase","60443572","202107",30/09/2020 00:00:00,634,"15269","Cleaning Services - Commercial","REDACTED DATA","LEWIS & GRAVES PARTNERSHIP LLP","8953594","http://opencorporates.com/companies/gb/8953594","135553810"
"London Borough of Redbridge","http://opendatacommunities.org/doc/london-borough-council/redbridge","4BMANGT&SUPP","Management & Support Services","4CHIGHRDROUT","Highways/Roads (Routine)","REV","Revenue","R7070","Reactive Maintenance","05-THIRD","Third Party Payments","05H","Private contractors","6915","Contractor Payments","3612143","202107",15/10/2020 00:00:00,633.57,"18632","Civil Engineers","REDACTED DATA","KENSON CONTRACTORS BENINGTON LTD","1314691","http://opencorporates.com/companies/gb/1314691","301629589"
"London Borough of Redbridge","http://opendatacommunities.org/doc/london-borough-council/redbridge","4BMANGT&SUPP","Management & Support Services","4CHIGHRDROUT","Highways/Roads (Routine)","REV","Revenue","R7070","Reactive Maintenance","05-THIRD","Third Party Payments","05H","Private contractors","6915","Contractor Payments","3611781","202107",08/10/2020 00:00:00,633.57,"18632","Civil Engineers","REDACTED DATA","KENSON CONTRACTORS BENINGTON LTD","1314691","http://opencorporates.com/companies/gb/1314691","301629589"
"London Borough of Redbridge","http://opendatacommunities.org/doc/london-borough-council/redbridge","4BMANGT&SUPP","Management & Support Services","4CHIGHRDROUT","Highways/Roads (Routine)","REV","Revenue","R7070","Reactive Maintenance","05-THIRD","Third Party Payments","05H","Private contractors","6915","Contractor Payments","3611817","202107",08/10/2020 00:00:00,633.57,"18632","Civil Engineers","REDACTED DATA","KENSON CONTRACTORS BENINGTON LTD","1314691","http://opencorporates.com/companies/gb/1314691","301629589"
"London Borough of Redbridge","http://opendatacommunities.org/doc/london-borough-council/redbridge","6BADULTSOCIA","Adult Social Care","6CLONGT65","Long-Term Support 65+ Years","REV","Revenue","R4440","Learning Disabilities - Seven Kings","06-TRANSFER","Transfer Payments","06B","Social Services Clients","7053","Direct Payments","3611466","202107",09/10/2020 00:00:00,117.56,"90005","Home Care Services DP","REDACTED DATA","REDACTED DATA","",,""
"London Borough of Redbridge","http://opendatacommunities.org/doc/london-borough-council/redbridge","6BADULTSOCIA","Adult Social Care","6CLONGT65","Long-Term Support 65+ Years","REV","Revenue","R4440","Learning Disabilities - Seven Kings","06-TRANSFER","Transfer Payments","06B","Social Services Clients","7053","Direct Payments","3611466","202107",09/10/2020 00:00:00,834,"90005","Home Care Services DP","REDACTED DATA","REDACTED DATA","",,""
"London Borough of Redbridge","http://opendatacommunities.org/doc/london-borough-council/redbridge","6BADULTSOCIA","Adult Social Care","6CLONGT65","Long-Term Support 65+ Years","REV","Revenue","R4440","Learning Disabilities - Seven Kings","09-INCOME","Income","09C","Customer and Client Receipts","8545","Direct Payments Income","3611466","202107",09/10/2020 00:00:00,-191.6,"90005","Home Care Services DP","REDACTED DATA","REDACTED DATA","",,""
"London Borough of Redbridge","http://opendatacommunities.org/doc/london-borough-council/redbridge","1BOTHEROPI&E","Other Operating Income & Expenditure","1CTRADSURDEF","Trading Account Surpluses & Deficits","REV","Revenue","R9571","98-100 Ilford Lane","02-PREMISES","Premises","02H","Cleaning and domestic supplies","4620","Cleaning Contract Payments","3612558","202107",06/10/2020 00:00:00,631.97,"15269","Cleaning Services - Commercial","REDACTED DATA","LEWIS & GRAVES PARTNERSHIP LLP","8953594","http://opencorporates.com/companies/gb/8953594","135553810"
"London Borough of Redbridge","http://opendatacommunities.org/doc/london-borough-council/redbridge","4BMANGT&SUPP","Management & Support Services","4CHIGHRDROUT","Highways/Roads (Routine)","REV","Revenue","R7070","Reactive Maintenance","05-THIRD","Third Party Payments","05H","Private contractors","6915","Contractor Payments","3612918","202107",22/10/2020 00:00:00,631.15,"18632","Civil Engineers","REDACTED DATA","KENSON CONTRACTORS BENINGTON LTD","1314691","http://opencorporates.com/companies/gb/1314691","301629589"
"London Borough of Redbridge","http://opendatacommunities.org/doc/london-borough-council/redbridge","9BNONBVO","Outside the BVACOP Objective Structure","9CNONBVO","Outside the BVACOP Objective Structure","REV","Revenue","R7701","Fleet Management","03-TRANSPORT","Transport","03C","Contract hire and operating leases","5201","Other Hired Transport","675884","202107",31/08/2020 00:00:00,630,"82050","Van and Truck Hire","REDACTED DATA","E H ROBERTS - PENET GROUP LTD","4590044","http://opencorporates.com/companies/gb/4590044",""
"London Borough of Redbridge","http://opendatacommunities.org/doc/london-borough-council/redbridge","4BMANGT&SUPP","Management & Support Services","4CHIGHRDROUT","Highways/Roads (Routine)","REV","Revenue","R7070","Reactive Maintenance","05-THIRD","Third Party Payments","05H","Private contractors","6915","Contractor Payments","3612146","202107",15/10/2020 00:00:00,629.17,"18632","Civil Engineers","REDACTED DATA","KENSON CONTRACTORS BENINGTON LTD","1314691","http://opencorporates.com/companies/gb/1314691","301629589"
"London Borough of Redbridge","http://opendatacommunities.org/doc/london-borough-council/redbridge","6BADULTSOCIA","Adult Social Care","6CLONGT65","Long-Term Support 65+ Years","REV","Revenue","R4444","Older People - Fairlop","05-THIRD","Third Party Payments","05H","Private contractors","6909","Nursing Homes","91176437","202107",29/09/2020 00:00:00,2321.24,"53350","Nursing Homes","REDACTED DATA","AVALON NURSING HOME (ELDERLY CARE HOME LTD)","9140646","http://opencorporates.com/companies/gb/9140646",""
"London Borough of Redbridge","http://opendatacommunities.org/doc/london-borough-council/redbridge","6BADULTSOCIA","Adult Social Care","6CLONGT65","Long-Term Support 65+ Years","REV","Revenue","R4444","Older People - Fairlop","09-INCOME","Income","09C","Customer and Client Receipts","8557","Nursing Home Charges","91176437","202107",29/09/2020 00:00:00,-494,"53350","Nursing Homes","REDACTED DATA","AVALON NURSING HOME (ELDERLY CARE HOME LTD)","9140646","http://opencorporates.com/companies/gb/9140646",""
"London Borough of Redbridge","http://opendatacommunities.org/doc/london-borough-council/redbridge","6BADULTSOCIA","Adult Social Care","6CLONGT65","Long-Term Support 65+ Years","REV","Revenue","R4444","Older People - Fairlop","09-INCOME","Income","09C","Customer and Client Receipts","8557","Nursing Home Charges","91176437","202107",29/09/2020 00:00:00,-1072.44,"53350","Nursing Homes","REDACTED DATA","AVALON NURSING HOME (ELDERLY CARE HOME LTD)","9140646","http://opencorporates.com/companies/gb/9140646",""
"London Borough of Redbridge","http://opendatacommunities.org/doc/london-borough-council/redbridge","6BSOCIALSERV","Social Services","6CCHILLOOKED","Children Looked After","REV","Revenue","R2117","SEN and CD Care and Support Packages Social Care","06-TRANSFER","Transfer Payments","06B","Social Services Clients","7050","Agency Homecare","60442093","202107",07/10/2020 00:00:00,754,"43419","Home Care Services","REDACTED DATA","CARE AVENUES LIMITED","",,""
"London Borough of Redbridge","http://opendatacommunities.org/doc/london-borough-council/redbridge","3BINDSCHFUND","Individual School Funds","3CNONSCH","Non Schools","REV","Revenue","R2001","Secondary Schools SEN Top Up Fees","05-THIRD","Third Party Payments","05G","Other establishments","7430","LBR Pre 16 Top Up","3613640","202107",28/10/2020 00:00:00,753.41,"17580","Childcare Services","REDACTED DATA","THE ATAM ACADEMY","7549443","http://opencorporates.com/companies/gb/7549443",""
"London Borough of Redbridge","http://opendatacommunities.org/doc/london-borough-council/redbridge","3BNONSCHFUND","Non-School Funding","3CNONSCH","Non Schools","REV","Revenue","R3963","Early Years - 2 Year Olds - Statutory Place Funding","05-THIRD","Third Party Payments","05A","Independent units within the council","6517","Non-Maintained Schools","3613485","202107",26/10/2020 00:00:00,753.37,"17600","Childminders","REDACTED DATA","NATASHA SACHDEVA","6492731015","http://opencorporates.com/companies/gb/6492731015",""
"London Borough of Redbridge","http://opendatacommunities.org/doc/london-borough-council/redbridge","6BADULTSOCIA","Adult Social Care","6CLONGT65","Long-Term Support 65+ Years","REV","Revenue","R4438","Older People - Cranbrook & Loxford","06-TRANSFER","Transfer Payments","06B","Social Services Clients","7053","Direct Payments","3611387","202107",09/10/2020 00:00:00,847.92,"90005","Home Care Services DP","REDACTED DATA","REDACTED DATA","",,""
"London Borough of Redbridge","http://opendatacommunities.org/doc/london-borough-council/redbridge","6BADULTSOCIA","Adult Social Care","6CLONGT65","Long-Term Support 65+ Years","REV","Revenue","R4438","Older People - Cranbrook & Loxford","09-INCOME","Income","09C","Customer and Client Receipts","8545","Direct Payments Income","3611387","202107",09/10/2020 00:00:00,-94.8,"90005","Home Care Services DP","REDACTED DATA","REDACTED DATA","",,""
"London Borough of Redbridge","http://opendatacommunities.org/doc/london-borough-council/redbridge","6BADULTSOCIA","Adult Social Care","6CLONGT1864","Long-Term Support 18 - 64 Years","REV","Revenue","R4441","Older People - Seven Kings","06-TRANSFER","Transfer Payments","06B","Social Services Clients","7053","Direct Payments","3611177","202107",09/10/2020 00:00:00,889.6,"90005","Home Care Services DP","REDACTED DATA","REDACTED DATA","",,""
"London Borough of Redbridge","http://opendatacommunities.org/doc/london-borough-council/redbridge","6BADULTSOCIA","Adult Social Care","6CLONGT1864","Long-Term Support 18 - 64 Years","REV","Revenue","R4441","Older People - Seven Kings","09-INCOME","Income","09C","Customer and Client Receipts","8545","Direct Payments Income","3611177","202107",09/10/2020 00:00:00,-137.8,"90005","Home Care Services DP","REDACTED DATA","REDACTED DATA","",,""
"London Borough of Redbridge","http://opendatacommunities.org/doc/london-borough-council/redbridge","6BADULTSOCIA","Adult Social Care","6CNONSALT","Non-Salt and Support Services","REV","Revenue","R4448","Physical Disabilities - Wanstead & Woodford","06-TRANSFER","Transfer Payments","06B","Social Services Clients","7053","Direct Payments","3611369","202107",09/10/2020 00:00:00,750.6,"90005","Home Care Services DP","REDACTED DATA","REDACTED DATA","",,""
"London Borough of Redbridge","http://opendatacommunities.org/doc/london-borough-council/redbridge","2BBUSISUP","Business Support","","","REV","Revenue","R6534","P & BC General Services","04-SUPPLIES","Supplies And Services","04D","Printing, stationery and general office expenses","5707","Advertising & publications non promotional","60443428","202107",24/10/2020 00:00:00,625,"52860","Newspaper and Magazine Publishers","REDACTED DATA","ARCHANT COMMUNITY MEDIA LIMITED","19300","http://opencorporates.com/companies/gb/19300","711518562"
"London Borough of Redbridge","http://opendatacommunities.org/doc/london-borough-council/redbridge","6BADULTSOCIA","Adult Social Care","6CADMENHLTH","Adults Under 65 with Mental Health Needs","REV","Revenue","R4463","Mental Health Capacity Act and Safeguarding Adults","04-SUPPLIES","Supplies And Services","04H","Grants and subscriptions","5954","Professional Fees","60441776","202107",08/08/2020 00:00:00,750,"5170","Assessors","REDACTED DATA","Sonic Assessments Limited","12000113","http://opencorporates.com/companies/gb/12000113",""
"London Borough of Redbridge","http://opendatacommunities.org/doc/london-borough-council/redbridge","6BADULTSOCIA","Adult Social Care","6CADMENHLTH","Adults Under 65 with Mental Health Needs","REV","Revenue","R4463","Mental Health Capacity Act and Safeguarding Adults","04-SUPPLIES","Supplies And Services","04H","Grants and subscriptions","5954","Professional Fees","60441777","202107",29/08/2020 00:00:00,750,"5170","Assessors","REDACTED DATA","Sonic Assessments Limited","12000113","http://opencorporates.com/companies/gb/12000113",""
"London Borough of Redbridge","http://opendatacommunities.org/doc/london-borough-council/redbridge","4BMANGT&SUPP","Management & Support Services","4CHIGHRDROUT","Highways/Roads (Routine)","REV","Revenue","R7070","Reactive Maintenance","05-THIRD","Third Party Payments","05H","Private contractors","6915","Contractor Payments","3612122","202107",15/10/2020 00:00:00,624.8,"18632","Civil Engineers","REDACTED DATA","KENSON CONTRACTORS BENINGTON LTD","1314691","http://opencorporates.com/companies/gb/1314691","301629589"
"London Borough of Redbridge","http://opendatacommunities.org/doc/london-borough-council/redbridge","6BADULTSOCIA","Adult Social Care","6CNONSALT","Non-Salt and Support Services","REV","Revenue","R4448","Physical Disabilities - Wanstead & Woodford","06-TRANSFER","Transfer Payments","06B","Social Services Clients","7053","Direct Payments","3611122","202107",09/10/2020 00:00:00,778.4,"90005","Home Care Services DP","REDACTED DATA","REDACTED DATA","",,""
"London Borough of Redbridge","http://opendatacommunities.org/doc/london-borough-council/redbridge","6BADULTSOCIA","Adult Social Care","6CNONSALT","Non-Salt and Support Services","REV","Revenue","R4448","Physical Disabilities - Wanstead & Woodford","09-INCOME","Income","09C","Customer and Client Receipts","8545","Direct Payments Income","3611122","202107",09/10/2020 00:00:00,65.8,"90005","Home Care Services DP","REDACTED DATA","REDACTED DATA","",,""
"London Borough of Redbridge","http://opendatacommunities.org/doc/london-borough-council/redbridge","6BADULTSOCIA","Adult Social Care","6CNONSALT","Non-Salt and Support Services","REV","Revenue","R4448","Physical Disabilities - Wanstead & Woodford","09-INCOME","Income","09C","Customer and Client Receipts","8545","Direct Payments Income","3611122","202107",09/10/2020 00:00:00,-97.04,"90005","Home Care Services DP","REDACTED DATA","REDACTED DATA","",,""
"London Borough of Redbridge","http://opendatacommunities.org/doc/london-borough-council/redbridge","1BOTHEROPI&E","Other Operating Income & Expenditure","1CTRADSURDEF","Trading Account Surpluses & Deficits","REV","Revenue","R9556","CLM Cleaning","02-PREMISES","Premises","02H","Cleaning and domestic supplies","4620","Cleaning Contract Payments","3612547","202107",31/07/2020 00:00:00,622.5,"12100","Business and Management Consultants","REDACTED DATA","KJP UK LTD T/A One Consulting Group","6591306","http://opencorporates.com/companies/gb/6591306","935274119"
"London Borough of Redbridge","http://opendatacommunities.org/doc/london-borough-council/redbridge","6BADULTSOCIA","Adult Social Care","6CLONGT65","Long-Term Support 65+ Years","REV","Revenue","R4438","Older People - Cranbrook & Loxford","05-THIRD","Third Party Payments","05A","Independent units within the council","6502","Agency Homecare","91178237","202107",16/09/2020 00:00:00,746.81,"79980","Training Services","REDACTED DATA","CHOSEN CARE GROUP LTD","6942967","http://opencorporates.com/companies/gb/6942967",""
"London Borough of Redbridge","http://opendatacommunities.org/doc/london-borough-council/redbridge","9BNONBVO","Outside the BVACOP Objective Structure","9CNONBVO","Outside the BVACOP Objective Structure","REV","Revenue","R5132","Repairs and Maintenance - Other","02-PREMISES","Premises","02A","Repairs, alteration and maintenance of buildings","3038","Service Repairs","80037861","202107",08/10/2020 00:00:00,621.9,"9321","Boilers - Servicing, Replacements and Repairs","REDACTED DATA","ATLAS MAINTENANCE SERVICES LTD","8203263","http://opencorporates.com/companies/gb/8203263","313820630"
"London Borough of Redbridge","http://opendatacommunities.org/doc/london-borough-council/redbridge","1BOTHEROPI&E","Other Operating Income & Expenditure","1CTRADSURDEF","Trading Account Surpluses & Deficits","REV","Revenue","R9557","CLM Utilities","02-PREMISES","Premises","02B","Energy costs","4000","Electricity","70115820","202107",15/10/2020 00:00:00,621.88,"39564","Gas Companies","REDACTED DATA","KENT COUNTY COUNCIL (GAS & ELECTRIC)","",,"204269191"
"London Borough of Redbridge","http://opendatacommunities.org/doc/london-borough-council/redbridge","6BADULTSOCIA","Adult Social Care","6COTHADSERV","Other Adult Services","REV","Revenue","R4447","Older People - Wanstead & Woodford","06-TRANSFER","Transfer Payments","06B","Social Services Clients","7053","Direct Payments","3611471","202107",09/10/2020 00:00:00,1153.72,"90005","Home Care Services DP","REDACTED DATA","REDACTED DATA","",,""
"London Borough of Redbridge","http://opendatacommunities.org/doc/london-borough-council/redbridge","6BADULTSOCIA","Adult Social Care","6COTHADSERV","Other Adult Services","REV","Revenue","R4447","Older People - Wanstead & Woodford","09-INCOME","Income","09C","Customer and Client Receipts","8545","Direct Payments Income","3611471","202107",09/10/2020 00:00:00,-410.64,"90005","Home Care Services DP","REDACTED DATA","REDACTED DATA","",,""
"London Borough of Redbridge","http://opendatacommunities.org/doc/london-borough-council/redbridge","6BSOCIALSERV","Social Services","6CCHILLOOKED","Children Looked After","REV","Revenue","R2117","SEN and CD Care and Support Packages Social Care","06-TRANSFER","Transfer Payments","06B","Social Services Clients","7050","Agency Homecare","60438033","202107",10/08/2020 00:00:00,742.4,"43419","Home Care Services","REDACTED DATA","VERITY HEALTHCARE LIMITED","7462140","http://opencorporates.com/companies/gb/7462140","142783505"
"London Borough of Redbridge","http://opendatacommunities.org/doc/london-borough-council/redbridge","6BSOCIALSERV","Social Services","6CCHILLOOKED","Children Looked After","REV","Revenue","R2117","SEN and CD Care and Support Packages Social Care","06-TRANSFER","Transfer Payments","06B","Social Services Clients","7050","Agency Homecare","60443205","202107",21/10/2020 00:00:00,741.4,"31230","Employment and Recruitment Agencies","REDACTED DATA","HOPE SUPER JOBS LTD","5081894","http://opencorporates.com/companies/gb/5081894","872555205"
"London Borough of Redbridge","http://opendatacommunities.org/doc/london-borough-council/redbridge","9BNONBVO","Outside the BVACOP Objective Structure","9CNONBVO","Outside the BVACOP Objective Structure","REV","Revenue","R7701","Fleet Management","03-TRANSPORT","Transport","03C","Contract hire and operating leases","5201","Other Hired Transport","675844","202107",30/09/2020 00:00:00,617.12,"82050","Van and Truck Hire","REDACTED DATA","NORTHGATE VEHICLE HIRE LTD","1434157","http://opencorporates.com/companies/gb/1434157","244223002"
"London Borough of Redbridge","http://opendatacommunities.org/doc/london-borough-council/redbridge","6BADULTSOCIA","Adult Social Care","6CLONGT1864","Long-Term Support 18 - 64 Years","REV","Revenue","R4437","Learning Disabilities - Cranbrook & Loxford","05-THIRD","Third Party Payments","05H","Private contractors","6904","Day Centres","91180128","202107",06/10/2020 00:00:00,332.25,"25820","Disability and Special Needs - Services","REDACTED DATA","BR3AK FREE LTD","6274766","http://opencorporates.com/companies/gb/6274766",""
"London Borough of Redbridge","http://opendatacommunities.org/doc/london-borough-council/redbridge","6BADULTSOCIA","Adult Social Care","6CLONGT1864","Long-Term Support 18 - 64 Years","REV","Revenue","R4437","Learning Disabilities - Cranbrook & Loxford","05-THIRD","Third Party Payments","05H","Private contractors","6904","Day Centres","91182720","202107",26/10/2020 00:00:00,332.25,"25820","Disability and Special Needs - Services","REDACTED DATA","BR3AK FREE LTD","6274766","http://opencorporates.com/companies/gb/6274766",""
"London Borough of Redbridge","http://opendatacommunities.org/doc/london-borough-council/redbridge","6BADULTSOCIA","Adult Social Care","6CLONGT1864","Long-Term Support 18 - 64 Years","REV","Revenue","R4437","Learning Disabilities - Cranbrook & Loxford","05-THIRD","Third Party Payments","05H","Private contractors","6904","Day Centres","91182720","202107",26/10/2020 00:00:00,75,"25820","Disability and Special Needs - Services","REDACTED DATA","BR3AK FREE LTD","6274766","http://opencorporates.com/companies/gb/6274766",""
"London Borough of Redbridge","http://opendatacommunities.org/doc/london-borough-council/redbridge","6BADULTSOCIA","Adult Social Care","6CLONGT1864","Long-Term Support 18 - 64 Years","REV","Revenue","R4437","Learning Disabilities - Cranbrook & Loxford","05-THIRD","Third Party Payments","05H","Private contractors","6904","Day Centres","91180135","202107",12/10/2020 00:00:00,332.25,"25820","Disability and Special Needs - Services","REDACTED DATA","BR3AK FREE LTD","6274766","http://opencorporates.com/companies/gb/6274766",""
"London Borough of Redbridge","http://opendatacommunities.org/doc/london-borough-council/redbridge","6BADULTSOCIA","Adult Social Care","6CLONGT1864","Long-Term Support 18 - 64 Years","REV","Revenue","R4437","Learning Disabilities - Cranbrook & Loxford","05-THIRD","Third Party Payments","05H","Private contractors","6904","Day Centres","91182720","202107",26/10/2020 00:00:00,332.25,"25820","Disability and Special Needs - Services","REDACTED DATA","BR3AK FREE LTD","6274766","http://opencorporates.com/companies/gb/6274766",""
"London Borough of Redbridge","http://opendatacommunities.org/doc/london-borough-council/redbridge","6BADULTSOCIA","Adult Social Care","6CLONGT1864","Long-Term Support 18 - 64 Years","REV","Revenue","R4437","Learning Disabilities - Cranbrook & Loxford","05-THIRD","Third Party Payments","05H","Private contractors","6904","Day Centres","91180128","202107",06/10/2020 00:00:00,332.25,"25820","Disability and Special Needs - Services","REDACTED DATA","BR3AK FREE LTD","6274766","http://opencorporates.com/companies/gb/6274766",""
"London Borough of Redbridge","http://opendatacommunities.org/doc/london-borough-council/redbridge","6BADULTSOCIA","Adult Social Care","6CLONGT1864","Long-Term Support 18 - 64 Years","REV","Revenue","R4437","Learning Disabilities - Cranbrook & Loxford","05-THIRD","Third Party Payments","05H","Private contractors","6904","Day Centres","91180128","202107",06/10/2020 00:00:00,75,"25820","Disability and Special Needs - Services","REDACTED DATA","BR3AK FREE LTD","6274766","http://opencorporates.com/companies/gb/6274766",""
"London Borough of Redbridge","http://opendatacommunities.org/doc/london-borough-council/redbridge","6BADULTSOCIA","Adult Social Care","6CLONGT1864","Long-Term Support 18 - 64 Years","REV","Revenue","R4437","Learning Disabilities - Cranbrook & Loxford","05-THIRD","Third Party Payments","05H","Private contractors","6904","Day Centres","91180135","202107",12/10/2020 00:00:00,332.25,"25820","Disability and Special Needs - Services","REDACTED DATA","BR3AK FREE LTD","6274766","http://opencorporates.com/companies/gb/6274766",""
"London Borough of Redbridge","http://opendatacommunities.org/doc/london-borough-council/redbridge","6BADULTSOCIA","Adult Social Care","6CLONGT1864","Long-Term Support 18 - 64 Years","REV","Revenue","R4437","Learning Disabilities - Cranbrook & Loxford","05-THIRD","Third Party Payments","05H","Private contractors","6904","Day Centres","91180135","202107",12/10/2020 00:00:00,75,"25820","Disability and Special Needs - Services","REDACTED DATA","BR3AK FREE LTD","6274766","http://opencorporates.com/companies/gb/6274766",""
"London Borough of Redbridge","http://opendatacommunities.org/doc/london-borough-council/redbridge","6BADULTSOCIA","Adult Social Care","6CLONGT1864","Long-Term Support 18 - 64 Years","REV","Revenue","R4437","Learning Disabilities - Cranbrook & Loxford","05-THIRD","Third Party Payments","05H","Private contractors","6904","Day Centres","91181546","202107",19/10/2020 00:00:00,332.25,"25820","Disability and Special Needs - Services","REDACTED DATA","BR3AK FREE LTD","6274766","http://opencorporates.com/companies/gb/6274766",""
"London Borough of Redbridge","http://opendatacommunities.org/doc/london-borough-council/redbridge","6BADULTSOCIA","Adult Social Care","6CLONGT1864","Long-Term Support 18 - 64 Years","REV","Revenue","R4437","Learning Disabilities - Cranbrook & Loxford","05-THIRD","Third Party Payments","05H","Private contractors","6904","Day Centres","91181546","202107",19/10/2020 00:00:00,75,"25820","Disability and Special Needs - Services","REDACTED DATA","BR3AK FREE LTD","6274766","http://opencorporates.com/companies/gb/6274766",""
"London Borough of Redbridge","http://opendatacommunities.org/doc/london-borough-council/redbridge","6BADULTSOCIA","Adult Social Care","6CLONGT1864","Long-Term Support 18 - 64 Years","REV","Revenue","R4437","Learning Disabilities - Cranbrook & Loxford","05-THIRD","Third Party Payments","05H","Private contractors","6904","Day Centres","91181546","202107",19/10/2020 00:00:00,332.25,"25820","Disability and Special Needs - Services","REDACTED DATA","BR3AK FREE LTD","6274766","http://opencorporates.com/companies/gb/6274766",""
"London Borough of Redbridge","http://opendatacommunities.org/doc/london-borough-council/redbridge","6BADULTSOCIA","Adult Social Care","6CLONGT65","Long-Term Support 65+ Years","REV","Revenue","R4442","Physical Disabilities - Seven Kings","06-TRANSFER","Transfer Payments","06B","Social Services Clients","7053","Direct Payments","3611549","202107",09/10/2020 00:00:00,875.72,"90005","Home Care Services DP","REDACTED DATA","REDACTED DATA","",,""
"London Borough of Redbridge","http://opendatacommunities.org/doc/london-borough-council/redbridge","6BADULTSOCIA","Adult Social Care","6CLONGT65","Long-Term Support 65+ Years","REV","Revenue","R4442","Physical Disabilities - Seven Kings","09-INCOME","Income","09C","Customer and Client Receipts","8545","Direct Payments Income","3611549","202107",09/10/2020 00:00:00,-137.76,"90005","Home Care Services DP","REDACTED DATA","REDACTED DATA","",,""
"London Borough of Redbridge","http://opendatacommunities.org/doc/london-borough-council/redbridge","5BGFHOUSING","General Fund Housing","5CHOMELESS","Homelessness","REV","Revenue","R5654","St Georgio","05-THIRD","Third Party Payments","05H","Private contractors","6915","Contractor Payments","3610844","202107",28/09/2020 00:00:00,614.2,"35290","Fire Alarm Systems","REDACTED DATA","MULTI-ALARM SYSTEMS (GB) LTD","1020755","http://opencorporates.com/companies/gb/1020755","358056637"
"London Borough of Redbridge","http://opendatacommunities.org/doc/london-borough-council/redbridge","4BMANGT&SUPP","Management & Support Services","4CHIGHRDROUT","Highways/Roads (Routine)","REV","Revenue","R7070","Reactive Maintenance","05-THIRD","Third Party Payments","05H","Private contractors","6915","Contractor Payments","3612125","202107",15/10/2020 00:00:00,613.77,"18632","Civil Engineers","REDACTED DATA","KENSON CONTRACTORS BENINGTON LTD","1314691","http://opencorporates.com/companies/gb/1314691","301629589"
"London Borough of Redbridge","http://opendatacommunities.org/doc/london-borough-council/redbridge","6BADULTSOCIA","Adult Social Care","6CLONGT1864","Long-Term Support 18 - 64 Years","REV","Revenue","R4437","Learning Disabilities - Cranbrook & Loxford","06-TRANSFER","Transfer Payments","06B","Social Services Clients","7066","Supported Living","91178194","202107",01/10/2020 00:00:00,734.4,"17020","Charities and Voluntary Organisations","REDACTED DATA","THREE C'S SUPPORT","2768427","http://opencorporates.com/companies/gb/2768427",""
"London Borough of Redbridge","http://opendatacommunities.org/doc/london-borough-council/redbridge","6BADULTSOCIA","Adult Social Care","6CLONGT1864","Long-Term Support 18 - 64 Years","REV","Revenue","R4437","Learning Disabilities - Cranbrook & Loxford","06-TRANSFER","Transfer Payments","06B","Social Services Clients","7066","Supported Living","91178193","202107",01/10/2020 00:00:00,734.4,"17020","Charities and Voluntary Organisations","REDACTED DATA","THREE C'S SUPPORT","2768427","http://opencorporates.com/companies/gb/2768427",""
"London Borough of Redbridge","http://opendatacommunities.org/doc/london-borough-council/redbridge","6BADULTSOCIA","Adult Social Care","6CLONGT65","Long-Term Support 65+ Years","REV","Revenue","R4440","Learning Disabilities - Seven Kings","06-TRANSFER","Transfer Payments","06B","Social Services Clients","7066","Supported Living","91178201","202107",01/10/2020 00:00:00,734.4,"17020","Charities and Voluntary Organisations","REDACTED DATA","THREE C'S SUPPORT","2768427","http://opencorporates.com/companies/gb/2768427",""
"London Borough of Redbridge","http://opendatacommunities.org/doc/london-borough-council/redbridge","6BSOCIALSERV","Social Services","6CCHILLOOKED","Children Looked After","REV","Revenue","R2117","SEN and CD Care and Support Packages Social Care","06-TRANSFER","Transfer Payments","06B","Social Services Clients","7050","Agency Homecare","60442821","202107",12/06/2020 00:00:00,734.35,"31230","Employment and Recruitment Agencies","REDACTED DATA","HOPE SUPER JOBS LTD","5081894","http://opencorporates.com/companies/gb/5081894","872555205"
"London Borough of Redbridge","http://opendatacommunities.org/doc/london-borough-council/redbridge","6BADULTSOCIA","Adult Social Care","6CLONGT65","Long-Term Support 65+ Years","REV","Revenue","R4440","Learning Disabilities - Seven Kings","06-TRANSFER","Transfer Payments","06B","Social Services Clients","7053","Direct Payments","3611452","202107",09/10/2020 00:00:00,984.88,"90005","Home Care Services DP","REDACTED DATA","REDACTED DATA","",,""
"London Borough of Redbridge","http://opendatacommunities.org/doc/london-borough-council/redbridge","6BADULTSOCIA","Adult Social Care","6CLONGT65","Long-Term Support 65+ Years","REV","Revenue","R4440","Learning Disabilities - Seven Kings","09-INCOME","Income","09C","Customer and Client Receipts","8545","Direct Payments Income","3611452","202107",09/10/2020 00:00:00,-251.6,"90005","Home Care Services DP","REDACTED DATA","REDACTED DATA","",,""
"London Borough of Redbridge","http://opendatacommunities.org/doc/london-borough-council/redbridge","3BNONSCHFUND","Non-School Funding","3CNONSCH","Non Schools","REV","Revenue","R3962","Early Years - 3 and 4 Year Olds","05-THIRD","Third Party Payments","05A","Independent units within the council","6517","Non-Maintained Schools","3612254","202107",15/10/2020 00:00:00,732.38,"17600","Childminders","REDACTED DATA","Rubeena Ali","2647369084","http://opencorporates.com/companies/gb/2647369084",""
"London Borough of Redbridge","http://opendatacommunities.org/doc/london-borough-council/redbridge","3BNONSCHFUND","Non-School Funding","3CNONSCH","Non Schools","REV","Revenue","R3962","Early Years - 3 and 4 Year Olds","05-THIRD","Third Party Payments","05A","Independent units within the council","6517","Non-Maintained Schools","3612253","202107",15/10/2020 00:00:00,732.38,"17600","Childminders","REDACTED DATA","Mrs Maliha Inam","1083735005","http://opencorporates.com/companies/gb/1083735005",""
"London Borough of Redbridge","http://opendatacommunities.org/doc/london-borough-council/redbridge","3BNONSCHFUND","Non-School Funding","3CNONSCH","Non Schools","REV","Revenue","R3962","Early Years - 3 and 4 Year Olds","05-THIRD","Third Party Payments","05A","Independent units within the council","6517","Non-Maintained Schools","3612252","202107",15/10/2020 00:00:00,732.38,"17600","Childminders","REDACTED DATA","RU FUTURE LTD","12834306","http://opencorporates.com/companies/gb/12834306",""
"London Borough of Redbridge","http://opendatacommunities.org/doc/london-borough-council/redbridge","3BNONSCHFUND","Non-School Funding","3CNONSCH","Non Schools","REV","Revenue","R3962","Early Years - 3 and 4 Year Olds","05-THIRD","Third Party Payments","05A","Independent units within the council","6517","Non-Maintained Schools","3613512","202107",26/10/2020 00:00:00,732.37,"17600","Childminders","REDACTED DATA","ZARA LEAMAN","9012799863","http://opencorporates.com/companies/gb/9012799863",""
"London Borough of Redbridge","http://opendatacommunities.org/doc/london-borough-council/redbridge","3BNONSCHFUND","Non-School Funding","3CNONSCH","Non Schools","REV","Revenue","R3962","Early Years - 3 and 4 Year Olds","05-THIRD","Third Party Payments","05A","Independent units within the council","6517","Non-Maintained Schools","3613314","202107",26/10/2020 00:00:00,732.37,"17600","Childminders","REDACTED DATA","MEHREEN MUGHAL","8438586864","http://opencorporates.com/companies/gb/8438586864",""
"London Borough of Redbridge","http://opendatacommunities.org/doc/london-borough-council/redbridge","4BMANGT&SUPP","Management & Support Services","4CHIGHRDROUT","Highways/Roads (Routine)","REV","Revenue","R7070","Reactive Maintenance","05-THIRD","Third Party Payments","05H","Private contractors","6915","Contractor Payments","3611780","202107",08/10/2020 00:00:00,609.94,"18632","Civil Engineers","REDACTED DATA","KENSON CONTRACTORS BENINGTON LTD","1314691","http://opencorporates.com/companies/gb/1314691","301629589"
"London Borough of Redbridge","http://opendatacommunities.org/doc/london-borough-council/redbridge","6BADULTSOCIA","Adult Social Care","6CLONGT1864","Long-Term Support 18 - 64 Years","REV","Revenue","R4437","Learning Disabilities - Cranbrook & Loxford","06-TRANSFER","Transfer Payments","06B","Social Services Clients","7053","Direct Payments","3611469","202107",09/10/2020 00:00:00,805.64,"90005","Home Care Services DP","REDACTED DATA","REDACTED DATA","",,""
"London Borough of Redbridge","http://opendatacommunities.org/doc/london-borough-council/redbridge","6BADULTSOCIA","Adult Social Care","6CLONGT1864","Long-Term Support 18 - 64 Years","REV","Revenue","R4437","Learning Disabilities - Cranbrook & Loxford","09-INCOME","Income","09C","Customer and Client Receipts","8545","Direct Payments Income","3611469","202107",09/10/2020 00:00:00,-75.28,"90005","Home Care Services DP","REDACTED DATA","REDACTED DATA","",,""
"London Borough of Redbridge","http://opendatacommunities.org/doc/london-borough-council/redbridge","6BSOCIALSERV","Social Services","6CCHILLOOKED","Children Looked After","REV","Revenue","R2117","SEN and CD Care and Support Packages Social Care","06-TRANSFER","Transfer Payments","06B","Social Services Clients","7050","Agency Homecare","60442173","202107",07/10/2020 00:00:00,730.08,"43419","Home Care Services","REDACTED DATA","VERITY HEALTHCARE LIMITED","7462140","http://opencorporates.com/companies/gb/7462140","142783505"
"London Borough of Redbridge","http://opendatacommunities.org/doc/london-borough-council/redbridge","1BOTHEROPI&E","Other Operating Income & Expenditure","1CTRADSURDEF","Trading Account Surpluses & Deficits","REV","Revenue","R9557","CLM Utilities","02-PREMISES","Premises","02B","Energy costs","4002","Gas","70115613","202107",15/05/2020 00:00:00,636.77,"39564","Gas Companies","REDACTED DATA","KENT COUNTY COUNCIL (GAS & ELECTRIC)","",,"204269191"
"London Borough of Redbridge","http://opendatacommunities.org/doc/london-borough-council/redbridge","1BOTHEROPI&E","Other Operating Income & Expenditure","1CTRADSURDEF","Trading Account Surpluses & Deficits","REV","Revenue","R9556","CLM Cleaning","02-PREMISES","Premises","02H","Cleaning and domestic supplies","4620","Cleaning Contract Payments","3612566","202107",08/09/2020 00:00:00,606.89,"79180","Towel Supply and Washroom Services","REDACTED DATA","RENTOKIL INITIAL UK LTD","293397","http://opencorporates.com/companies/gb/293397","190621474"
"London Borough of Redbridge","http://opendatacommunities.org/doc/london-borough-council/redbridge","6BADULTSOCIA","Adult Social Care","6COTHADSERV","Other Adult Services","REV","Revenue","R4447","Older People - Wanstead & Woodford","05-THIRD","Third Party Payments","05A","Independent units within the council","6502","Agency Homecare","91180588","202107",16/10/2020 00:00:00,727.26,"43419","Home Care Services","REDACTED DATA","CARE NEXUS LTD T/A KARE PLUS REDBRIDGE","9099423316","http://opencorporates.com/companies/gb/9099423316","145075030"
"London Borough of Redbridge","http://opendatacommunities.org/doc/london-borough-council/redbridge","6BADULTSOCIA","Adult Social Care","6CLONGT1864","Long-Term Support 18 - 64 Years","REV","Revenue","R4445","Physical Disabilities - Fairlop","06-TRANSFER","Transfer Payments","06B","Social Services Clients","7053","Direct Payments","3611021","202107",09/10/2020 00:00:00,834,"90005","Home Care Services DP","REDACTED DATA","REDACTED DATA","",,""
"London Borough of Redbridge","http://opendatacommunities.org/doc/london-borough-council/redbridge","6BADULTSOCIA","Adult Social Care","6CLONGT1864","Long-Term Support 18 - 64 Years","REV","Revenue","R4445","Physical Disabilities - Fairlop","09-INCOME","Income","09C","Customer and Client Receipts","8545","Direct Payments Income","3611021","202107",09/10/2020 00:00:00,-107.2,"90005","Home Care Services DP","REDACTED DATA","REDACTED DATA","",,""
"London Borough of Redbridge","http://opendatacommunities.org/doc/london-borough-council/redbridge","6BSOCIALSERV","Social Services","6CCHILCOMSNG","Children's Services - Commissioning & Social Work","REV","Revenue","R2186","F&A - Leaving Care Team","05-THIRD","Third Party Payments","05E","Government departments","6962","Semi-Independent (Children Services)","60440993","202107",23/09/2020 00:00:00,726.3,"64710","Residential Care Homes","REDACTED DATA","HEARTWOOD RESIDENTIAL SERVICES LTD","7122916","http://opencorporates.com/companies/gb/7122916",""
"London Borough of Redbridge","http://opendatacommunities.org/doc/london-borough-council/redbridge","2BECODEV","Economic Development","","","REV","Revenue","R9870","School planned & reactive works","02-PREMISES","Premises","02A","Repairs, alteration and maintenance of buildings","3037","Service Contracts","3609032","202106",17/09/2020 00:00:00,605.2,"30580","Electricians and Electrical Contractors","REDACTED DATA","AJS LTD","2944618","http://opencorporates.com/companies/gb/2944618",""
"London Borough of Redbridge","http://opendatacommunities.org/doc/london-borough-council/redbridge","6BADULTSOCIA","Adult Social Care","6CLONGT65","Long-Term Support 65+ Years","REV","Revenue","R4440","Learning Disabilities - Seven Kings","06-TRANSFER","Transfer Payments","06B","Social Services Clients","7053","Direct Payments","3611394","202107",09/10/2020 00:00:00,917.4,"90005","Home Care Services DP","REDACTED DATA","REDACTED DATA","",,""
"London Borough of Redbridge","http://opendatacommunities.org/doc/london-borough-council/redbridge","6BADULTSOCIA","Adult Social Care","6CLONGT65","Long-Term Support 65+ Years","REV","Revenue","R4440","Learning Disabilities - Seven Kings","09-INCOME","Income","09C","Customer and Client Receipts","8545","Direct Payments Income","3611394","202107",09/10/2020 00:00:00,-191.6,"90005","Home Care Services DP","REDACTED DATA","REDACTED DATA","",,""
"London Borough of Redbridge","http://opendatacommunities.org/doc/london-borough-council/redbridge","6BADULTSOCIA","Adult Social Care","6CLONGT1864","Long-Term Support 18 - 64 Years","REV","Revenue","R4441","Older People - Seven Kings","06-TRANSFER","Transfer Payments","06B","Social Services Clients","7053","Direct Payments","3611328","202107",09/10/2020 00:00:00,736.84,"90005","Home Care Services DP","REDACTED DATA","REDACTED DATA","",,""
"London Borough of Redbridge","http://opendatacommunities.org/doc/london-borough-council/redbridge","6BADULTSOCIA","Adult Social Care","6CLONGT1864","Long-Term Support 18 - 64 Years","REV","Revenue","R4441","Older People - Seven Kings","09-INCOME","Income","09C","Customer and Client Receipts","8545","Direct Payments Income","3611328","202107",09/10/2020 00:00:00,-12.52,"90005","Home Care Services DP","REDACTED DATA","REDACTED DATA","",,""
"London Borough of Redbridge","http://opendatacommunities.org/doc/london-borough-council/redbridge","6BADULTSOCIA","Adult Social Care","6CLONGT1864","Long-Term Support 18 - 64 Years","REV","Revenue","R4441","Older People - Seven Kings","05-THIRD","Third Party Payments","05H","Private contractors","6909","Nursing Homes","91181699","202107",16/10/2020 00:00:00,2214.2,"24200","Day Centres","REDACTED DATA","GABLE COURT NH LTD","11498810","http://opencorporates.com/companies/gb/11498810",""
"London Borough of Redbridge","http://opendatacommunities.org/doc/london-borough-council/redbridge","6BADULTSOCIA","Adult Social Care","6CLONGT1864","Long-Term Support 18 - 64 Years","REV","Revenue","R4441","Older People - Seven Kings","09-INCOME","Income","09C","Customer and Client Receipts","8557","Nursing Home Charges","91181699","202107",16/10/2020 00:00:00,-666.12,"24200","Day Centres","REDACTED DATA","GABLE COURT NH LTD","11498810","http://opencorporates.com/companies/gb/11498810",""
"London Borough of Redbridge","http://opendatacommunities.org/doc/london-borough-council/redbridge","6BADULTSOCIA","Adult Social Care","6CLONGT1864","Long-Term Support 18 - 64 Years","REV","Revenue","R4441","Older People - Seven Kings","09-INCOME","Income","09C","Customer and Client Receipts","8557","Nursing Home Charges","91181699","202107",16/10/2020 00:00:00,-823.84,"24200","Day Centres","REDACTED DATA","GABLE COURT NH LTD","11498810","http://opencorporates.com/companies/gb/11498810",""
"London Borough of Redbridge","http://opendatacommunities.org/doc/london-borough-council/redbridge","6BSOCIALSERV","Social Services","6CCHILLOOKED","Children Looked After","REV","Revenue","R2117","SEN and CD Care and Support Packages Social Care","05-THIRD","Third Party Payments","05H","Private contractors","6902","Respite Care","60440757","202106",21/09/2020 00:00:00,724,"68200","Schools - Special","REDACTED DATA","THE ST CHRISTOPHER SCHOOL ACADEMY TRUST","",,""
"London Borough of Redbridge","http://opendatacommunities.org/doc/london-borough-council/redbridge","5BGFHOUSING","General Fund Housing","5CHOMELESS","Homelessness","REV","Revenue","R5622","The Foyer","02-PREMISES","Premises","02B","Energy costs","4002","Gas","80037819","202106",06/03/2020 00:00:00,689.07,"30586","Electricity Companies","REDACTED DATA","CORONA ENERGY RETAIL 4 LIMITED","2798334","http://opencorporates.com/companies/gb/2798334",""
"London Borough of Redbridge","http://opendatacommunities.org/doc/london-borough-council/redbridge","6BSOCIALSERV","Social Services","6CCHILLOOKED","Children Looked After","REV","Revenue","R2117","SEN and CD Care and Support Packages Social Care","06-TRANSFER","Transfer Payments","06B","Social Services Clients","7053","Direct Payments","3611009","202107",08/10/2020 00:00:00,722.8,"98758","Statutory Payments to Individuals","REDACTED DATA","REDACTED DATA","",,""
"London Borough of Redbridge","http://opendatacommunities.org/doc/london-borough-council/redbridge","6BSOCIALSERV","Social Services","6CCHILLOOKED","Children Looked After","REV","Revenue","R2117","SEN and CD Care and Support Packages Social Care","06-TRANSFER","Transfer Payments","06B","Social Services Clients","7053","Direct Payments","3611010","202107",08/10/2020 00:00:00,722.8,"98758","Statutory Payments to Individuals","REDACTED DATA","REDACTED DATA","",,""
"London Borough of Redbridge","http://opendatacommunities.org/doc/london-borough-council/redbridge","6BSOCIALSERV","Social Services","6CCHILLOOKED","Children Looked After","REV","Revenue","R2117","SEN and CD Care and Support Packages Social Care","06-TRANSFER","Transfer Payments","06B","Social Services Clients","7053","Direct Payments","3610618","202107",02/10/2020 00:00:00,722.8,"98758","Statutory Payments to Individuals","REDACTED DATA","REDACTED DATA","",,""
"London Borough of Redbridge","http://opendatacommunities.org/doc/london-borough-council/redbridge","3BLEACENTFND","LEA Centrally Held School Funds","3CNONSCH","Non Schools","REV","Revenue","R2211","SEN Commissioning DSG","04-SUPPLIES","Supplies And Services","04K","Miscellaneous expenses","6220","Education Otherwise","60443487","202107",27/10/2020 00:00:00,722.5,"53385","Occupational Therapists","REDACTED DATA","My World Therapy","8120353894","http://opencorporates.com/companies/gb/8120353894",""
"London Borough of Redbridge","http://opendatacommunities.org/doc/london-borough-council/redbridge","5BGFHOUSING","General Fund Housing","5CHOMELESS","Homelessness","REV","Revenue","R5622","The Foyer","02-PREMISES","Premises","02B","Energy costs","4002","Gas","80037824","202106",09/09/2019 00:00:00,685.91,"30586","Electricity Companies","REDACTED DATA","CORONA ENERGY RETAIL 4 LIMITED","2798334","http://opencorporates.com/companies/gb/2798334",""
"London Borough of Redbridge","http://opendatacommunities.org/doc/london-borough-council/redbridge","9BNONBVO","Outside the BVACOP Objective Structure","9CNONBVO","Outside the BVACOP Objective Structure","REV","Revenue","R7702","Vehicle Workshop","01-EMPLOYEES","Employees","01A","Direct employee expenses","450","General Weekly Paid Staff - Pay","675703","202106",07/09/2020 00:00:00,600,"39075","Garage Mechanics","REDACTED DATA","THE ENGINEERING P.M LTD","8741501","http://opencorporates.com/companies/gb/8741501",""
"London Borough of Redbridge","http://opendatacommunities.org/doc/london-borough-council/redbridge","3BINDSCHFUND","Individual School Funds","3CDELSECOND","Delegated Individual Secondary School Budgets","REV","Revenue","S3584","KING SOLOMON -  Agency Cover","01-EMPLOYEES","Employees","01A","Direct employee expenses","409","Agency Staff Pay","60441874","202107",04/10/2020 00:00:00,599.97,"31230","Employment and Recruitment Agencies","REDACTED DATA","REMEDY RECRUITMENT GROUP LTD","4651426","http://opencorporates.com/companies/gb/4651426","820791924"
"London Borough of Redbridge","http://opendatacommunities.org/doc/london-borough-council/redbridge","6BADULTSOCIA","Adult Social Care","6CADMENHLTH","Adults Under 65 with Mental Health Needs","REV","Revenue","R4463","Mental Health Capacity Act and Safeguarding Adults","01-EMPLOYEES","Employees","01A","Direct employee expenses","4","Agency Staff - Pay","3610809","202107",07/10/2020 00:00:00,1389.18,"31230","Employment and Recruitment Agencies","REDACTED DATA","MATRIX SCM LTD","2227962","http://opencorporates.com/companies/gb/2227962","249573468"
"London Borough of Redbridge","http://opendatacommunities.org/doc/london-borough-council/redbridge","6BADULTSOCIA","Adult Social Care","6CADMENHLTH","Adults Under 65 with Mental Health Needs","REV","Revenue","R4463","Mental Health Capacity Act and Safeguarding Adults","01-EMPLOYEES","Employees","01A","Direct employee expenses","4","Agency Staff - Pay","3610809","202107",07/10/2020 00:00:00,1589.12,"31230","Employment and Recruitment Agencies","REDACTED DATA","MATRIX SCM LTD","2227962","http://opencorporates.com/companies/gb/2227962","249573468"
"London Borough of Redbridge","http://opendatacommunities.org/doc/london-borough-council/redbridge","6BADULTSOCIA","Adult Social Care","6CADMENHLTH","Adults Under 65 with Mental Health Needs","REV","Revenue","R4484","Multi- Disciplinary Team (Fairlop)","01-EMPLOYEES","Employees","01A","Direct employee expenses","4","Agency Staff - Pay","3610809","202107",07/10/2020 00:00:00,682.29,"31230","Employment and Recruitment Agencies","REDACTED DATA","MATRIX SCM LTD","2227962","http://opencorporates.com/companies/gb/2227962","249573468"
"London Borough of Redbridge","http://opendatacommunities.org/doc/london-borough-council/redbridge","6BADULTSOCIA","Adult Social Care","6CADMENHLTH","Adults Under 65 with Mental Health Needs","REV","Revenue","R4484","Multi- Disciplinary Team (Fairlop)","01-EMPLOYEES","Employees","01A","Direct employee expenses","4","Agency Staff - Pay","3610809","202107",07/10/2020 00:00:00,1178.64,"31230","Employment and Recruitment Agencies","REDACTED DATA","MATRIX SCM LTD","2227962","http://opencorporates.com/companies/gb/2227962","249573468"
"London Borough of Redbridge","http://opendatacommunities.org/doc/london-borough-council/redbridge","6BADULTSOCIA","Adult Social Care","6CADMENHLTH","Adults Under 65 with Mental Health Needs","REV","Revenue","R4484","Multi- Disciplinary Team (Fairlop)","01-EMPLOYEES","Employees","01A","Direct employee expenses","4","Agency Staff - Pay","3610809","202107",07/10/2020 00:00:00,501.48,"31230","Employment and Recruitment Agencies","REDACTED DATA","MATRIX SCM LTD","2227962","http://opencorporates.com/companies/gb/2227962","249573468"
"London Borough of Redbridge","http://opendatacommunities.org/doc/london-borough-council/redbridge","6BADULTSOCIA","Adult Social Care","6CADMENHLTH","Adults Under 65 with Mental Health Needs","REV","Revenue","R4484","Multi- Disciplinary Team (Fairlop)","01-EMPLOYEES","Employees","01A","Direct employee expenses","4","Agency Staff - Pay","3610809","202107",07/10/2020 00:00:00,454.86,"31230","Employment and Recruitment Agencies","REDACTED DATA","MATRIX SCM LTD","2227962","http://opencorporates.com/companies/gb/2227962","249573468"
"London Borough of Redbridge","http://opendatacommunities.org/doc/london-borough-council/redbridge","6BADULTSOCIA","Adult Social Care","6CADMENHLTH","Adults Under 65 with Mental Health Needs","REV","Revenue","R4484","Multi- Disciplinary Team (Fairlop)","01-EMPLOYEES","Employees","01A","Direct employee expenses","4","Agency Staff - Pay","3610809","202107",07/10/2020 00:00:00,1253.1,"31230","Employment and Recruitment Agencies","REDACTED DATA","MATRIX SCM LTD","2227962","http://opencorporates.com/companies/gb/2227962","249573468"
"London Borough of Redbridge","http://opendatacommunities.org/doc/london-borough-council/redbridge","6BADULTSOCIA","Adult Social Care","6CADMENHLTH","Adults Under 65 with Mental Health Needs","REV","Revenue","R4484","Multi- Disciplinary Team (Fairlop)","01-EMPLOYEES","Employees","01A","Direct employee expenses","4","Agency Staff - Pay","3610809","202107",07/10/2020 00:00:00,1263.34,"31230","Employment and Recruitment Agencies","REDACTED DATA","MATRIX SCM LTD","2227962","http://opencorporates.com/companies/gb/2227962","249573468"
"London Borough of Redbridge","http://opendatacommunities.org/doc/london-borough-council/redbridge","6BADULTSOCIA","Adult Social Care","6CADMENHLTH","Adults Under 65 with Mental Health Needs","REV","Revenue","R4484","Multi- Disciplinary Team (Fairlop)","01-EMPLOYEES","Employees","01A","Direct employee expenses","4","Agency Staff - Pay","3610809","202107",07/10/2020 00:00:00,1420.13,"31230","Employment and Recruitment Agencies","REDACTED DATA","MATRIX SCM LTD","2227962","http://opencorporates.com/companies/gb/2227962","249573468"
"London Borough of Redbridge","http://opendatacommunities.org/doc/london-borough-council/redbridge","6BADULTSOCIA","Adult Social Care","6CADMENHLTH","Adults Under 65 with Mental Health Needs","REV","Revenue","R4484","Multi- Disciplinary Team (Fairlop)","01-EMPLOYEES","Employees","01A","Direct employee expenses","4","Agency Staff - Pay","3610809","202107",07/10/2020 00:00:00,1169.53,"31230","Employment and Recruitment Agencies","REDACTED DATA","MATRIX SCM LTD","2227962","http://opencorporates.com/companies/gb/2227962","249573468"
